Workbook

Sheet Reference
A3: Tab Color Coding
A4: Pro Forma and Accrual to Cash
A5: Sumary Sheet (Aggregation of Pro Forma, ATC, and Risk Models)
A6: Revenue Model
A7: Expense Model
A8: Other
A10: Cell Color Coding
A11: SME Input
A12: Worksheet Formula
A13: @Risk Output
A14: Linked to Summary
A15: @Risk Formula

Sheet Src Proforma
E2: =TRIM(CONCATENATE(A2,B2,C2,D2)) ->  | F2: FY19 | G2: FY20 | H2: FY21
F3: $ (000's) | G3: $ (000's) | H3: $ (000's)
E4: Composite Revenue | F4: 2412752.081 | G4: 2239299.029 | H4: 2249316.402
E5: Non-Slice Revenue | F5: -258563.9883 | G5: -172798.2625 | H5: -173811.8293
E6: Slice | F6: 0 | G6: 0 | H6: 0
E7: Tier 2 | F7: 43650.13594 | G7: 12992.76847 | H7: 16878.75928
E8: Load Shaping Revenue | F8: 33635.03511 | G8: 25902.08389 | H8: 30181.66802
E9: Demand Revenue | F9: 42410.65118 | G9: 53201.03301 | H9: 53856.90226
E10: Irrigation Rate Discount | F10: -22127.66944 | G10: -20904.62648 | H10: -20904.62648
E11: Low Density Discount | F11: -40106.99435 | G11: -38504.89985 | H11: -39106.32366
E12: RSS (Non-Federal)/ Other | F12: 4284.489 | G12: 965.7025058 | H12: 1049.765616
E13: Liquidated Damages | F13: 6000 | G13: 0 | H13: 0
E14: Load Shaping True up | F14: -752.984 | G14: 0 | H14: 0
E15: PF customers (TRM) sub-total | F15: 2221180.756 | G15: 2100152.828 | H15: 2117460.717
E16: New Resource Firm Power | F16: -1797.469 | G16: 0 | H16: 0
E17: NR sub-total | F17: -1797.469 | G17: 0 | H17: 0
E18: DSI - Alcoa | F18: 26593.08
E19: DSI - Port Townsend | F19: 4297.44998
E20: DSIs sub-total | F20: 30890.52998 | G20: 4304.44778 | H20: 4290.839817
E21: FPS Other | F21: 4079.826 | G21: 12062.88224 | H21: 12097.87511
E22: FPS sub-total | F22: 4079.826 | G22: 12062.88224 | H22: 12097.87511
E23: Firm Surplus Sale (Rate Case Only and includes Tier 2 sale) | F23: 0 | G23: 52743 | H23: 41686
E24: Committed sales (TF) | F24: 234442.7358 | G24: 42265.00525 | H24: 15817
E25: Balancing sales (unadjusted) | F25: 116376.8915 | G25: 228998.3694 | H25: 221266.9635
E26: Forward DSI and other secondary sales | F26: 16508.981 | G26: 0 | H26: 0
E27: Cal ISO sales | F27: 0 | G27: 22855.89986 | H27: 26464.00893
E28: Forward DSI sale | F28: 0 | G28: 0 | H28: 0
E29: Balancing sales | F29: 367328.6083 | G29: 294119.2745 | H29: 263547.9724
E30: Short-term market sales sub-total | F30: 367328.6083 | G30: 346862.2745 | H30: 305233.9724
E31: PG&E (Wind Energy Exchange Delivery to BPA) 08PB-11984 | F31: 0 | G31: 0 | H31: 0
E32: PG&E (Wind Energy Exchange Delivery to PG&E) 08PB-11984 | F32: 0 | G32: 0 | H32: 0
E33: Other Locational/Seasonal Exchange | F33: 0 | G33: 0 | H33: 0
E34: Avista (WNP-3 Exchange)DE-MS79-85BP92186 | F34: 16143.87242 | G34: 0 | H34: 0
E35: WNP3 Settlement | F35: 16143.87242 | G35: 0 | H35: 0
E36: Long Term Contractual Obligations sub-total | F36: 16143.87242 | G36: 0 | H36: 0
E37: Canadian Entitlement Return for Canada (Total) | F37: 0 | G37: 0 | H37: 0
E38: Canadian Entitlement Return | F38: 0 | G38: 0 | H38: 0
E39: Miscellaneous Credits | F39: 35.465 | G39: 0 | H39: 0
E40: Revenues from Slice Product Conversion | F40: 1016.58 | G40: 0 | H40: 0
E41: Slice True up | F41: -2473.379831 | G41: 0 | H41: 0
E42: Surcharges (Reserves) | F42: 0 | G42: 0 | H42: 0
E43: Liquidated Damages | F43: 0 | G43: 9530.075 | H43: 9489.201
E44: Other Sales sub-total | F44: -1421.334831 | G44: 9530.075 | H44: 9489.201
E45: Gross Sales (400001) | F45: 2636404.789 | G45: 2472912.508 | H45: 2448572.606
E46: Bookouts | F46: -15038.87555 | G46: 0 | H46: 0
E47: Bookout adjustment to Sales (400001) | F47: -15038.87555 | G47: 0 | H47: 0
E48: Lookback Adjustments | F48: -76537.617 | G48: 0 | H48: 0
E49: Provisions for Rate Refunds (449101) | F49: -76537.617 | G49: 0 | H49: 0
E50: GTA Delivery charge | F50: 3305.804 | G50: 299.241 | H50: 299.241
E51: Energy Efficiency Revenues | F51: 9600.00003 | G51: 8000 | H51: 8000
E52: Financial Swap Revenues | F52: 0 | G52: 0 | H52: 0
E53: Upper Baker revenues | F53: 0 | G53: 352.4228821 | H53: 346.5796689
E54: Miscellaneous US Bureau of Reclamation Revenues | F54: 82.284 | G54: 0 | H54: 0
E55: Miscellaneous US Corps of Engineers Revenues | F55: 0 | G55: 0 | H55: 0
E56: Irrigation Pumping Power | F56: 1253.53598 | G56: 1277.601803 | H56: 1277.601803
E57: Reserve Energy | F57: 9925.568 | G57: 9746.145827 | H57: 9746.145827
E58: USBR Owyhee Wheeling Project | F58: 640.266 | G58: 1639.769333 | H58: 1639.769333
E59: Downstream Benefits | F59: 4849.80448 | G59: 6700.877 | H59: 6700.877
E60: Downstream Benefits - Financial accrual (redist to FERC payment) | F60: 0 | G60: 0 | H60: 0
E61: Downstream Benefits (ASPRJ Bureau) | F61: 1087.89 | G61: 0 | H61: 0
E62: Downstream Benefits (ASPRJ CORP) | F62: 1155.462 | G62: 0 | H62: 0
E63: Downstream Benefits subtotal | F63: 7093.15648 | G63: 6700.877 | H63: 6700.877
E64: Miscellaneous Revenues (400002) | F64: 31900.61449 | G64: 28016.05785 | H64: 28010.21463
E65: Balancing Reserve Capacity Balancing Reserve Capacity | F65: 47649.77273 | G65: 69795.67564 | H65: 73189.30127
E66: ACS Risk Share | F66: 699.996 | G66: 0 | H66: 0
E67: Risk Mitigation Tool | F67: 75.996 | G67: 0 | H67: 0
E68: Operating Reserve - Spinning | F68: 22901.11251 | G68: 18029.92636 | H68: 18253.93059
E69: Operating Reserve - Supplemental | F69: 18963.19096 | G69: 18029.92636 | H69: 18253.93059
E70: Operating Reserve - Spinning Adjustment for WNP-3 Settlement Agreement | F70: -95.9722 | G70: 0 | H70: 0
E71: Operating Reserve - Supplemental Adjustment for WNP-3 Settlement Agreement | F71: 0 | G71: 0 | H71: 0
E72: Energy Imbalance | F72: 1031.671699 | G72: 0 | H72: 0
E73: Generation Imbalance | F73: 3772.091174 | G73: 0 | H73: 0
E74: Energy Imbalance Persistent Deviation | F74: 52.565 | G74: 0 | H74: 0
E75: Generation Imbalance Persistent Deviation | F75: 45.045 | G75: 0 | H75: 0
E76: Imbalance Adjustment for Third-Party Deployed Energy | F76: 0 | G76: 0 | H76: 0
E77: Settlement Annual Budget Adjustment | F77: 0 | G77: 0 | H77: 0
E78: Synchronous Condensing | F78: 1272.635 | G78: 831.36 | H78: 831.36
E79: Generation Dropping | F79: 589.232 | G79: 497.838 | H79: 497.838
E80: Redispatch | F80: 224.99962 | G80: 250 | H80: 250
E81: COE/Reclamation Network/Delivery Facilities Segmentation | F81: 8867 | G81: 8806 | H81: 8806
E82: Station Service | F82: 1996.009 | G82: 1660.037 | H82: 1660.037
E83: Operating Reserve Energy | F83: 901.6903368 | G83: 0 | H83: 0
E84: Inter-Business Unit / Gen Inputs for Ancillary and Other Services (400003) | F84: 108947.0348 | G84: 117900.7634 | H84: 121742.3975
E85: 4(h)(10)(c) | F85: 114857.1295 | G85: 86249.9142 | H85: 86852.14226
E86: Colville and Spokane Settlements | F86: 4600.00022 | G86: 4599.999963 | H86: 4600
E87: Treasury Credits (400005 and 400006) | F87: 119457.1297 | G87: 90849.91416 | H87: 91452.14226
E88: TOTAL OPERATING REVENUES | F88: 2805133.076 | G88: 2709679.243 | H88: 2689777.36
E89: Augmentation Purchases | F89: 0 | G89: 0 | H89: 0
E90: Augmentation Power Purchase total | F90: 0 | G90: 0 | H90: 0
E91: Balancing Purchases (unadjusted) | F91: 18914.75388 | G91: 31136.82431 | H91: 24393.21975
E92: (Transmission re-dispatch for Gen Inputs adjustment) | F92: 0 | G92: 250 | H92: 250
E93: Balancing Purchases | F93: 18914.75388 | G93: 31386.82431 | H93: 24643.21975
E94: SILS Power Purchases (within year included in balancing purchases) | F94: 0 | G94: 38555.288 | H94: 29379.944
E95: Committed Purchases (TF) | F95: 156842.8466 | G95: 0 | H95: 0
E96: Non Treaty Storage Agreement expense (TF) | F96: 47793.34101 | G96: 0 | H96: 0
E97: Libby Coordination Agreement (TF) | F97: 29867.54235 | G97: 0 | H97: 0
E98: Balancing Power Purchase sub-total | F98: 253418.4838 | G98: 69942.11231 | H98: 54023.16375
E99: Non-Treaty Storage Agreement Expense - slice portion | F99: 14583.43607 | G99: 0 | H99: 0
E100: Libby Coordination Agreement Expense - slice portion | F100: 9113.641884 | G100: 0 | H100: 0
E101: Rocky Brook Power Purchase | F101: 0 | G101: 0 | H101: 0
E102: Tier 2 Short-Term Power Purchase | F102: 7100.445 | G102: 0 | H102: 0
E103: Tier 2 Short-Term Forecasted Power Purchase | F103: 0 | G103: 12992.76847 | H103: 16878.75928
E104: Tier 2 Load Growth Term Power Purchase12PM-10174 | F104: 2234.50955 | G104: 0 | H104: 0
E105: Tier 2 Load Growth Term Power Purchase17PM-13974 | F105: 177.1575 | G105: 0 | H105: 0
E106: Tier 2 Load Growth Forecasted Power Purchase | F106: 0 | G106: 0 | H106: 0
E107: Tier 2 Vintage Power Purchase12PM-10174 | F107: 20570.54645 | G107: 0 | H107: 0
E108: Tier 2 Vintage Power Purchase13PM-11136 | F108: 10868.58065 | G108: 0 | H108: 0
E109: Tier 2 VintageForecast Power Purchase | F109: 0 | G109: 0 | H109: 0
E110: Tier 2 Vintage Losses 201417PM-13974 | F110: 118.105 | G110: 0 | H110: 0
E111: Tier 2 Vintage Losses 201617PM-13974 | F111: 59.0525 | G111: 0 | H111: 0
E112: Tier 2 VintageForecast Power Purchase | F112: 0 | G112: 0 | H112: 0
E113: Tier 2 Purchases | F113: 41128.39665 | G113: 12992.76847 | H113: 16878.75928
E114: Foote Creek I Wind Project (PacifiCorp)94MS-94375 | F114: 2849.578271 | G114: 2096.1657 | H114: 2096.1657
E115: Foote Creek I Wind Project (Storage for EWEB Amount)94MS-94375 | F115: 21.92958 | G115: 0 | H115: 0
E116: Foote Creek I Wind Project (Transmission for EWEB Amount)94MS-94375 | F116: 14.45084 | G116: 0 | H116: 0
E117: Foote Creek I Wind Project (EWEB)94MS-94375 | F117: 206.8679497 | G117: 0 | H117: 0
E118: Foote Creek I Wind Project (Settlement Credit to EWEB)15PM-12909 | F118: 0 | G118: 358.752 | H118: 358.752
E119: Foote Creek IV Wind Project (SeaWest Windpower Inc.)00PB-10652 | F119: 2179.046729 | G119: 1481.41575 | H119: 0
E120: Foote Creek IV Wind Project (PacifiCorp) (Storage, Generation Control)00PB-10708 | F120: 645.4540695 | G120: 450.3708 | H120: 0
E121: Foote Creek IV Wind Project (PacifiCorp) (UFT)00PB-10708 | F121: 73.008596 | G121: 23.529387 | H121: 0
E122: Condon Wind Project (Condon Wind Power LLC)00PB-10692 | F122: 8401.645301 | G122: 8121.92781 | H122: 8121.92781
E123: Condon Wind Project Tx Loss Adjustment/Gen Imbalance | F123: 73.864 | G123: 0 | H123: 0
E124: Condon Wind Project (Wind Balancing Service)00PB-10692 | F124: 604.99 | G124: 606 | H124: 606
E125: Stateline Wind Project (PPM)01PB-10761 | F125: 8637.107814 | G125: 8481.294789 | H125: 8481.294789
E126: Stateline Wind Project Credit for Losses | F126: -223.61212 | G126: 0 | H126: 0
E127: Stateline Wind Project (Wind Balancing Service)01PB-10761 | F127: 659.8618 | G127: 661.8744 | H127: 661.8744
E128: Klondike Wind Project (PPM/Northwestern Wind Power LLC)02PB-11093 | F128: 1871.056661 | G128: 2103.523147 | H128: 2103.523147
E129: Ashland Solar 00PB-10651 | F129: 0 | G129: 0 | H129: 0
E130: Fourmile Hill Geothermal (Calpine Siskiyou Partners)93956 | F130: 0 | G130: 0 | H130: 0
E131: Risk adjustment for Foote Creek I and IV, Condon, Stateline and Klondike I for energy output above critical, generation imbalance and contractual true-up costs. | F131: 0 | G131: 4023.785042 | H131: 4263.857902
E132: Renewable Purchases - general (excl. Klondike III) | F132: 26015.24949 | G132: 28408.63882 | H132: 26693.39575
E133: Klondike III Wind Project07PB-11860 | F133: 6306.063546 | G133: 6755.8854 | H133: 6755.8854
E134: Klondike III Wind Project (Monthly True Up)07PB-11860 | F134: -94.12008 | G134: 0 | H134: 0
E135: Klondike III Wind Project (Wind Balancing Service)07PB-11860 | F135: 200 | G135: 0 | H135: 0
E136: Critical Wind Quantity Expense Adjustment for Klondike III | F136: 296.1904691 | G136: 1026.475776 | H136: 1087.718853
E137: Renewable Purchases - Klondike III | F137: 6708.133935 | G137: 7782.361176 | H137: 7843.604253
E138: Critical Wind Quantity Expense Adjustment | F138: 1161.066639 | G138: 0 | H138: 0
E139: Total Renewable Purchases | F139: 33884.45007 | G139: 36191 | H139: 34537
E140: Power Purchases | F140: 318243.9584 | G140: 82934.88078 | H140: 70901.92303
E141: Columbia Generating Station | F141: 325250.7582 | G141: 262470.836 | H141: 319461.597
E142: Bureau Of Reclamation | F142: 164000 | G142: 153609 | H142: 151623
E143: Corps of Engineers | F143: 244546 | G143: 252557 | H143: 252557
E144: Long-Term Contract Generating Projects | F144: 11406.56782 | G144: 12708.602 | H144: 13250
E145: Operating Generation | F145: 745203.326 | G145: 681345.438 | H145: 736891.597
E146: Colville Generation Settlement | F146: 19642.91996 | G146: 22997 | H146: 22997
E147: Operating Generation Settlements and Other Payments | F147: 19642.91996 | G147: 22997 | H147: 22997
E148: Trojan Decommissioning | F148: 277.74798 | G148: 1200 | H148: 1200
E149: WNP-1&3 Decommissioning | F149: 413.25 | G149: 431 | H149: 331
E150: Non-Operating Generation | F150: 690.99798 | G150: 1631 | H150: 1531
E151: PNCA Headwater Benefits | F151: 2966.00002 | G151: 3100 | H151: 3100
E152: Purchases for Service at Tier 2 Rates | F152: 41128.397 | G152: 12992.76847 | H152: 16878.75928
E153: Other Power Purchases (e.g. Short term) | F153: 277115.5618 | G153: 69942.11231 | H153: 54023.16375
E154: Gross Contracted Power Purchases (excluding bookout adjustments) <Note 1 | F154: 321209.9588 | G154: 86034.88078 | H154: 74001.92303
E155: Bookout Adjustments to Contracted Power Purchases <Note 1 | F155: -15038.87555 | G155: 0 | H155: 0
E156: Augmentation Power Purchases | F156: 0 | G156: 0 | H156: 0
E157: Augmentation Power Purchases | F157: 0 | G157: 0 | H157: 0
E158: Residential Exchange Program | F158: 241378.383 | G158: 249767.0005 | H158: 249767.0005
E159: Other Settlements | F159: 0 | G159: 0 | H159: 0
E160: Exchanges & Settlements | F160: 241378.383 | G160: 249767.0005 | H160: 249767.0005
E161: Renewable Conservation Rate Credit | F161: 0 | G161: 0 | H161: 0
E162: Renewables | F162: 35332.1166 | G162: 36523 | H162: 34869
E163: Renewable Generation | F163: 35332.1166 | G163: 36523 | H163: 34869
E164: DSM Technology | F164: 0 | G164: 0 | H164: 0
E165: Conservation Purchases | F165: 62270.26898 | G165: 67000 | H165: 67000
E166: Conservation Infrastructure | F166: 23617.283 | G166: 27295.703 | H166: 27295.703
E167: Low Income Weatherization & Tribal | F167: 5738.99999 | G167: 5739 | H167: 5853
E168: Energy Efficiency Development | F168: 9600.00003 | G168: 8000 | H168: 8000
E169: Legacy | F169: 575.344 | G169: 590 | H169: 590
E170: Market Transformation | F170: 12451.05 | G170: 12050 | H170: 12050
E171: Conservation Rate Credit (CRC) | F171: 0 | G171: 0 | H171: 0
E172: DR & Smart Grid | F172: 1181.99975 | G172: 855 | H172: 855
E173: Generation Conservation | F173: 115434.9457 | G173: 121529.703 | H173: 121643.703
E174: Power System Generation Sub-Total | F174: 1463853.773 | G174: 1199828.022 | H174: 1241701.224
E175: Information Technology | F175: 6269.88242 | G175: 6713.765 | H175: 6774.983
E176: Generation Project Coordination | F176: 7081.30835 | G176: 6059.444 | H176: 6204.974
E177: Slice Implementation | F177: 805.59334 | G177: 555.351 | H177: 575.111
E178: Power Services System Operations | F178: 14156.78411 | G178: 13328.56 | H178: 13555.068
E179: Operations Scheduling | F179: 8851.81629 | G179: 8806.398 | H179: 9148.009
E180: Operations Planning | F180: 7501.16854 | G180: 5642.557 | H180: 5839.369
E181: Power Services Scheduling | F181: 16352.98483 | G181: 14448.955 | H181: 14987.378
E182: Power R&D | F182: 2862.9389 | G182: 2662.043 | H182: 2666.201
E183: Sales & Support | F183: 22272.67112 | G183: 23191.279 | H183: 23954.175
E184: Strategy, Finance & Risk Mgmt | F184: 13496.78542 | G184: 16906.045 | H184: 17093.794
E185: Executive & Administrative Services | F185: 3150.10486 | G185: 3879.271 | H185: 3966.843
E186: Conservation Support | F186: 7537.25048 | G186: 8399.412 | H186: 8698.975
E187: Power Services Marketing and Business Support | F187: 49319.75078 | G187: 55038.05 | H187: 56379.988
E188: Power Non-Generation Operations | F188: 79829.51972 | G188: 82815.565 | H188: 84922.434
E189: PS Transmission & Ancillary Services | F189: 83546.34215 | G189: 109527.7318 | H189: 105053.3755
E190: 3rd Party GTA Wheeling | F190: 79999.99996 | G190: 96200 | H190: 96200
E191: PS - 3rd Party Trans & Ancillary Svcs | F191: 3273.16 | G191: 2338 | H191: 2384
E192: Generation Integration | F192: 12642 | G192: 13577 | H192: 13671
E193: Wind Integration Team | F193: 0 | G193: 0 | H193: 0
E194: Telemetering/Equip Replacemt | F194: 0 | G194: 0 | H194: 0
E195: Power Srvcs Trans Acquisition and Ancillary Services Sub-Total | F195: 179461.5021 | G195: 221642.7318 | H195: 217308.3755
E196: Fish & Wildlife | F196: 242999.9999 | G196: 249602.988 | H196: 250031.22
E197: USF&W Lower Snake Hatcheries | F197: 30482.99999 | G197: 30483.249 | H197: 30483.249
E198: Planning Council | F198: 11708.00002 | G198: 11725 | H198: 11956
E199: Environmental Requirements | F199: 0 | G199: 0 | H199: 0
E200: Fish and Wildlife/USF&W/Planning Council Sub-Total | F200: 285190.9999 | G200: 291811.237 | H200: 292470.469
E201: Additional Post-Retirement Contribution | F201: 20289.52298 | G201: 19576.718 | H201: 20830.898
... 33 more rows

Sheet Risk Summary
U2: Outputs for Charting, etc
C3: FY19 | D3: FY19 | E3: FY20 | F3: FY20 | G3: FY21 | H3: FY21 | J3: FY19 | K3: =F3 -> FY20 | L3: =H3 -> FY21 | P3: =J3 -> FY19 | Q3: =K3 -> FY20 | R3: =L3 -> FY21 | S3: FY18 and 19 | T3: Chart Names | U3: =Q3 -> FY20 | V3: =R3 -> FY21 | W3: =S3 -> FY18 and 19
C4: Forecast | D4: Modeled | E4: Forecast | F4: Modeled | G4: Forecast | H4: Modeled | J4: Delta | K4: Delta | L4: Delta | P4: Output
B5: Revenue
B6: Revenue delta from CGS Re-fuel outage duration (delta) | D6: ='CGS Refueling'!B5 ->  | F6: ='CGS Refueling'!C5 ->  | H6: ='CGS Refueling'!D5 ->  | J6: =D6-C6 ->  | K6: =F6-E6 ->  | L6: =H6-G6 ->  | P6: =_xll.RiskOutput($T6&" / "&P$3)+D6 ->  | Q6: =_xll.RiskOutput($T6&" / "&Q$3)+F6 ->  | R6: =_xll.RiskOutput($T6&" / "&R$3)+H6 ->  | S6: =_xll.RiskOutput($T6&" / "&S$3)+Q6+R6 ->  | T6: CGS Outage Revenue Impact
B7: Expense
B8: Columbia Generating Station | C8: =IF(CategoryColumn="","",VLOOKUP(CategoryColumn,ProForma,MATCH(YearRow,ProFormaYears,0)+1,FALSE)) -> 325250.7582 | D8: =CGS!J4 ->  | E8: =IF(CategoryColumn="","",VLOOKUP(CategoryColumn,ProForma,MATCH(YearRow,ProFormaYears,0)+1,FALSE)) -> 262470.836 | F8: =CGS!K4 ->  | G8: =IF(CategoryColumn="","",VLOOKUP(CategoryColumn,ProForma,MATCH(YearRow,ProFormaYears,0)+1,FALSE)) -> 319461.597 | H8: =CGS!L4 ->  | J8: =IF(COUNT(C8:D8)>0,D8-C8,"") ->  | K8: =IF(COUNT(E8:F8)>0,F8-E8,"") ->  | L8: =IF(COUNT(G8:H8)>0,H8-G8,"") ->  | P8: =_xll.RiskOutput($T8&" / "&P$3)+D8 ->  | Q8: =_xll.RiskOutput($T8&" / "&Q$3)+F8 ->  | R8: =_xll.RiskOutput($T8&" / "&R$3)+H8 ->  | S8: =_xll.RiskOutput($T8&" / "&S$3)+Q8+R8 ->  | T8: CGS Total O&M
B9: Bureau Of Reclamation | C9: =IF(CategoryColumn="","",VLOOKUP(CategoryColumn,ProForma,MATCH(YearRow,ProFormaYears,0)+1,FALSE)) -> 164000 | D9: ='Corps & Bureau O&M'!D22 ->  | E9: 153609 | F9: ='Corps & Bureau O&M'!F22 ->  | G9: 151623 | H9: ='Corps & Bureau O&M'!H22 ->  | J9: =IF(COUNT(C9:D9)>0,D9-C9,"") ->  | K9: =IF(COUNT(E9:F9)>0,F9-E9,"") ->  | L9: =IF(COUNT(G9:H9)>0,H9-G9,"") ->  | P9: =_xll.RiskOutput($T9&" / "&P$3)+SUM(D9:D10) ->  | Q9: =_xll.RiskOutput($T9&" / "&Q$3)+SUM(F9:F10) ->  | R9: =_xll.RiskOutput($T9&" / "&R$3)+SUM(H9:H10) ->  | S9: =_xll.RiskOutput($T9&" / "&S$3)+Q9+R9 ->  | T9: Corps and Reclamation O&M
B10: Corps of Engineers | C10: 244546 | D10: ='Corps & Bureau O&M'!D5 ->  | E10: 252557 | F10: ='Corps & Bureau O&M'!F5 ->  | G10: 252557 | H10: ='Corps & Bureau O&M'!H5 -> 
B11: Colville Generation Settlement | C11: 19642.91996 | D11: ='Colville&Spokane'!F5 ->  | E11: 22997 | F11: ='Colville&Spokane'!G5 ->  | G11: 22997 | H11: ='Colville&Spokane'!H5 ->  | P11: =_xll.RiskOutput($T11&" / "&P$3)+D11 ->  | Q11: =_xll.RiskOutput($T11&" / "&Q$3)+F11 ->  | R11: =_xll.RiskOutput($T11&" / "&R$3)+H11 ->  | S11: =_xll.RiskOutput($T11&" / "&S$3)+Q11+R11 ->  | T11: Colville & Spokane Settlements
B13: Conservation Purchases | C13: =IF(CategoryColumn="","",VLOOKUP(CategoryColumn,ProForma,MATCH(YearRow,ProFormaYears,0)+1,FALSE)) -> 62270.26898 | D13: =_xll.RiskPert(C13*0.95,C13,C13*1.025) ->  | E13: 67000 | F13: =_xll.RiskPert(E13*0.9,E13,E13*1.05) ->  | G13: 67000 | H13: =_xll.RiskPert(G13*0.9,G13,G13*1.05) ->  | P13: =_xll.RiskOutput($T13&" / "&P$3)+D13 ->  | Q13: =_xll.RiskOutput($T13&" / "&Q$3)+F13 ->  | R13: =_xll.RiskOutput($T13&" / "&R$3)+H13 ->  | S13: =_xll.RiskOutput($T13&" / "&S$3)+Q13+R13 ->  | T13: Conservation Acquisition | U13: =_xll.RiskOutput(,X13,1)+F13+F14 ->  | V13: =_xll.RiskOutput(,X13,2)+H13+H14 ->  | W13: =_xll.RiskOutput(,X13,3)+U13+V13 ->  | X13: Conservation Acq. & Weatherization
B14: Low Income Weatherization & Tribal | C14: 5738.99999 | D14: =_xll.RiskPert(C14*0.975,C14,C14*1.025) ->  | E14: 5739 | F14: =_xll.RiskPert(E14*0.95,E14,E14*1.05) ->  | G14: 5853 | H14: =_xll.RiskPert(G14*0.95,G14,G14*1.05) ->  | P14: =_xll.RiskOutput($T14&" / "&P$3)+D14 ->  | Q14: =_xll.RiskOutput($T14&" / "&Q$3)+F14 ->  | R14: =_xll.RiskOutput($T14&" / "&R$3)+H14 ->  | S14: =_xll.RiskOutput($T14&" / "&S$3)+Q14+R14 ->  | T14: Low Income Weatherization & Tribal
B16: 3rd Party GTA Wheeling | C16: =IF(CategoryColumn="","",VLOOKUP(CategoryColumn,ProForma,MATCH(YearRow,ProFormaYears,0)+1,FALSE)) -> 79999.99996 | D16: =_xll.RiskPert(C16*0.98,C16,C16*1.01) ->  | E16: 96200 | F16: =_xll.RiskPert(E16*0.96,E16,E16*1.02) ->  | G16: 96200 | H16: =_xll.RiskPert(G16*0.96,G16,G16*1.03) ->  | P16: =_xll.RiskOutput($T16&" / "&P$3)+D16 ->  | Q16: =_xll.RiskOutput($T16&" / "&Q$3)+F16 ->  | R16: =_xll.RiskOutput($T16&" / "&R$3)+H16 ->  | S16: =_xll.RiskOutput($T16&" / "&S$3)+Q16+R16 ->  | T16: 3rd Party GTA Wheeling
B17: PS - 3rd Party Trans & Ancillary Svcs | C17: 3273.16 | D17: =_xll.RiskPert(C17,C17,C17*1.025) ->  | E17: =IF(CategoryColumn="","",VLOOKUP(CategoryColumn,ProForma,MATCH(YearRow,ProFormaYears,0)+1,FALSE)) -> 2338 | F17: =_xll.RiskPert(E17,E17,E17*1.05^2) ->  | G17: 2384 | H17: =_xll.RiskPert(G17,G17,G17*1.05^3) ->  | P17: =_xll.RiskOutput($T17&" / "&P$3)+D17 ->  | Q17: =_xll.RiskOutput($T17&" / "&Q$3)+F17 ->  | R17: =_xll.RiskOutput($T17&" / "&R$3)+H17 ->  | S17: =_xll.RiskOutput($T17&" / "&S$3)+Q17+R17 ->  | T17: 3rd Party Trans & Ancillary Svcs
P19: =_xll.RiskOutput($T19&" / "&P$3)+'F&W Expense'!G14 ->  | Q19: =_xll.RiskOutput($T19&" / "&Q$3)+'F&W Expense'!I14 ->  | R19: =_xll.RiskOutput($T19&" / "&R$3)+'F&W Expense'!K14 ->  | S19: =_xll.RiskOutput($T19&" / "&S$3)+Q19+R19 ->  | T19: Leavenworth Complex O&M
P20: =_xll.RiskOutput($T20&" / "&P$3)+'F&W Expense'!G18 ->  | Q20: =_xll.RiskOutput($T20&" / "&Q$3)+'F&W Expense'!I18 ->  | R20: =_xll.RiskOutput($T20&" / "&R$3)+'F&W Expense'!K18 ->  | S20: =_xll.RiskOutput($T20&" / "&S$3)+Q20+R20 ->  | T20: COE Fish Passage Facilities
B22: Fish & Wildlife | C22: 242999.9999 | D22: ='F&W Expense'!G6 ->  | E22: 249602.988 | F22: ='F&W Expense'!I6 ->  | G22: 250031.22 | H22: ='F&W Expense'!K6 ->  | J22: =IF(COUNT(C22:D22)>0,D22-C22,"") ->  | K22: =IF(COUNT(E22:F22)>0,F22-E22,"") ->  | L22: =IF(COUNT(G22:H22)>0,H22-G22,"") ->  | P22: =_xll.RiskOutput($T22&" / "&P$3)+D22 ->  | Q22: =_xll.RiskOutput($T22&" / "&Q$3)+F22 ->  | R22: =_xll.RiskOutput($T22&" / "&R$3)+H22 ->  | S22: =_xll.RiskOutput($T22&" / "&S$3)+Q22+R22 ->  | T22: F&W Direct Program
B23: USF&W Lower Snake Hatcheries | C23: 30482.99999 | D23: ='F&W Expense'!G24 ->  | E23: 30483.249 | F23: ='F&W Expense'!I24 ->  | G23: 30483.249 | H23: ='F&W Expense'!K24 ->  | J23: =IF(COUNT(C23:D23)>0,D23-C23,"") ->  | K23: =IF(COUNT(E23:F23)>0,F23-E23,"") ->  | L23: =IF(COUNT(G23:H23)>0,H23-G23,"") ->  | P23: =_xll.RiskOutput($T23&" / "&P$3)+D23 ->  | Q23: =_xll.RiskOutput($T23&" / "&Q$3)+F23 ->  | R23: =_xll.RiskOutput($T23&" / "&R$3)+H23 ->  | S23: =_xll.RiskOutput($T23&" / "&S$3)+Q23+R23 ->  | T23: F&W Lower Snake Hatcheries
J24: =IF(COUNT(C24:D24)>0,D24-C24,"") ->  | K24: =IF(COUNT(E24:F24)>0,F24-E24,"") ->  | L24: =IF(COUNT(G24:H24)>0,H24-G24,"") -> 
B25: Borrowings from US Treasury | C25: 70583.32498 | D25: ='Interest Expense'!U14 ->  | E25: 60889.87656 | F25: ='Interest Expense'!V14 ->  | G25: 67687.7088 | H25: ='Interest Expense'!W14 ->  | P25: =_xll.RiskOutput($T25&" / "&P$3)+SUM(D25:D25) ->  | Q25: =_xll.RiskOutput($T25&" / "&Q$3)+SUM(F25:F25) ->  | R25: =_xll.RiskOutput($T25&" / "&R$3)+SUM(H25:H25) ->  | S25: =_xll.RiskOutput($T25&" / "&S$3)+Q25+R25 ->  | T25: Interest and Appropriations
B27: Total Revenue Delta | C27: Increases Net Revenue | J27: =SUM(J6:J6) ->  | K27: =SUM(K6:K6) ->  | L27: =SUM(L6:L6) -> 
B28: RevenueSlice True-up | C28: Increases Net Revenue | J28: =0*Slice0*-1 -> 0 | K28: =0*Slice1*-1 -> 0 | L28: =0*Slice2*-1 -> 0
B29: Base Expenses Delta | C29: Decreases Net Revenue | J29: =SUM(J8:J25) ->  | K29: =SUM(K8:K25) ->  | L29: =SUM(L8:L25) -> 
B30: Expense Slice True-up | C30: Decreases Net Revenue | J30: =(J29*Slice0*-1) ->  | K30: =(K29*Slice1*-1) ->  | L30: =(L29*Slice2*-1) -> 
B32: Revenue Delta | J32: =J27+J28-J30 ->  | K32: =K27+K28-K30 ->  | P32: =_xll.RiskOutput($T32&" / "&P$3)+J32 ->  | Q32: =_xll.RiskOutput($T32&" / "&Q$3)+K32 ->  | R32: =_xll.RiskOutput($T32&" / "&R$3)+L32 ->  | S32: =_xll.RiskOutput($T32&" / "&S$3)+Q32+R32 ->  | T32: NORM Summary Statistics
J34: Slice0 | K34: Slice1 | L34: Slice2
J35: 0.266187 | K35: 0.265953 | L35: 0.265953

Sheet RiskSerializationData (hidden)
A1: 0 | B1: 0
A2: 0
A3: 0
A4: FALSE | B4: 15680 | C4: 7345 | D4: 13120 | E4: 100
A5: FALSE | B5: 15680 | C5: 7345 | D5: 13120 | E5: 500
A6: FALSE | B6: 15680 | C6: 7905 | D6: 3405 | E6: 1545
A7: FALSE | B7: 15680 | C7: 7345 | D7: 13120 | E7: 1500
A8: FALSE | B8: 15680 | C8: 7345 | D8: 13120 | E8: 2000
A9: 0
A10: 0 | B10: FALSE | C10: FALSE | D10: 10 | E10: 0.95 | F10: 1

Sheet NR_to_Cash
A3: Table 2
A4: TOOLKIT NET REVENUE TO CASH ADJUSTMENTS
A5: (in $Thousands)
C6: NR to Cash
C9: FY 2019 | D9: FY 2020 | E9: FY 2021 | G9: Color Key:
G10: SME Input
A11: 1 | B11: Input NRTC Adjustment | C11: =-252117 -> -252117 | D11: -46693.95789 | E11: -68298.06081 | G11: Worksheet Formula
G12: @Risk Output
A13: 5 | B13: NORM Slice True Up Lagging out of this year | C13: =_xll.RiskOutput(,B13,1)+(-'Risk Summary'!J28+'Risk Summary'!J30) ->  | D13: =_xll.RiskOutput(,B13,2)+(-'Risk Summary'!K28+'Risk Summary'!K30) ->  | E13: =_xll.RiskOutput(,B13,3)+(-'Risk Summary'!L28+'Risk Summary'!L30) ->  | G13: Linked to Summary
A14: 6 | B14: NORM Slice True Up Lagging in from previous year | C14: 0 | D14: =-C13 ->  | E14: =-D13 ->  | G14: @Risk Formula
A16: 7 | B16: Net Revenue to Cash Adjustment | C16: =_xll.RiskOutput(,$B16&" "&C$9,1)+SUM(C11:C11)+IF(NrtcRiskOn,SUM(C13:C14,0)) ->  | D16: =_xll.RiskOutput(,$B16&" "&D$9,1)+SUM(D11:D11)+IF(NrtcRiskOn,SUM(D13:D14,0)) ->  | E16: =_xll.RiskOutput(,$B16&" "&E$9,1)+SUM(E11:E11)+IF(NrtcRiskOn,SUM(E13:E14,0)) ->  | G16: Risk Adjustments On?
G17: TRUE
B18: Interest Credit | C18: 9252.23313 | D18: 4922.956 | E18: 6778.1654
B19: Repayment of Treasury Principal | C19: =156250+39372+227088+56573 -> 479283 | D19: 197403 | E19: 532812
B20: Repayment of Treasury Interest | C20: 115820 | D20: 101236 | E20: 111943
B21: Total Treasury Payment | C21: =C20+C19 -> 595103 | D21: =D20+D19 -> 298639 | E21: 644755
J22: -1
B23: (in $Thousands) | C23: =C9 -> FY 2019 | D23: =D9 -> FY 2020 | E23: =E9 -> FY 2021
B24: PS NR | C24: ='Src Proforma'!F233 -> 197454.6822 | D24: 47510.28331 | E24: 68968.19404
B27: BOY Reserves for risk | C27: 342715 | D27: =C28 ->  | E27: =D28 -> 
B28: EOY Reserves for risk | C28: =C27+C24+C16 ->  | D28: =D27+D24+D16 ->  | E28: =E27+E24+E16 -> 
A32: A | B32: B | C32: C | D32: D | E32: E
C34: =C9 -> FY 2019 | D34: =D9 -> FY 2020 | E34: =E9 -> FY 2021
A36: 1 | B36: Non-cash Adj. | C36: =C11 -> -252117 | D36: =D11 -> -46693.95789 | E36: =E11 -> -68298.06081
A38: 2 | B38: Cash Adj. | C38: =#REF! ->  | D38: =#REF! ->  | E38: =#REF! -> 
A40: 3 | B40: Other | C40: =#REF! ->  | D40: =#REF! ->  | E40: =#REF! -> 
A42: 7 | B42: NORM Slice True Up Lagging out of this year | C42: =C13 ->  | D42: =D13 ->  | E42: =E13 -> 
A44: 8 | B44: NORM Slice True Up Lagging in from previous year | C44: =C14 -> 0 | D44: =D14 ->  | E44: =E14 -> 
A46: 9 | B46: Net Revenue to Cash Adjustment | C46: =C16 ->  | D46: =D16 ->  | E46: =E16 -> 

Sheet CGS Refueling
L2: Color Key:
B3: FY19 | C3: FY20 | D3: FY21 | L3: SME Input
A4: Slice Percent | B4: =Slice0 -> 0.266187 | C4: =Slice1 -> 0.265953 | D4: =Slice2 -> 0.265953 | E4: not trued up | G4: Output for Charts | L4: Worksheet Formula
A5: CGS Revenue Delta | B5: =_xll.RiskOutput("CGS Outage Revenue Impact / FY13")+OFFSET(B8,_xll.RiskCurrentIter(),0)*(1-B4) ->  | C5: =_xll.RiskOutput("CGS Outage Revenue Impact / FY14")+OFFSET(C8,_xll.RiskCurrentIter(),0)*(1-C4) ->  | D5: =_xll.RiskOutput("CGS Outage Revenue Impact / FY15")+OFFSET(D8,_xll.RiskCurrentIter(),0)*(1-D4) ->  | E5: ($000) | G5: =_xll.RiskOutput("CGS Outage Revenue Impact / FY14 and FY15")+(C5+D5) ->  | L5: @Risk Output
L6: Linked to Summary
B7: =B3 -> FY19 | C7: =C3 -> FY20 | D7: =D3 -> FY21 | L7: @Risk Formula
A8: MEAN | B8: =AVERAGE(B9:B3208) -> -1155.856187 | C8: =AVERAGE(C9:C3208) -> 0 | D8: =AVERAGE(D9:D3208) -> -2180.626333
A9: 1 | B9: -308.0064397 | C9: 0 | D9: -1942.849603
A10: 2 | B10: 40.54277577 | C10: 0 | D10: -91.15747386
A11: 3 | B11: 577.7855235 | C11: 0 | D11: 987.8258363
A12: 4 | B12: 143.4016809 | C12: 0 | D12: -299.4993527
A13: 5 | B13: -459.8133834 | C13: 0 | D13: -1402.783587
A14: 6 | B14: -424.6397864 | C14: 0 | D14: -909.0628857
A15: 7 | B15: 190.0807955 | C15: 0 | D15: -5592.410403
A16: 8 | B16: 1186.09368 | C16: 0 | D16: -2062.428263
A17: 9 | B17: -419.418253 | C17: 0 | D17: -1157.111829
A18: 10 | B18: 639.3503807 | C18: 0 | D18: 134.6768191
A19: 11 | B19: -2613.19625 | C19: 0 | D19: -10749.5581
A20: 12 | B20: -19.14175805 | C20: 0 | D20: -1259.093307
A21: 13 | B21: -835.147154 | C21: 0 | D21: -5339.033461
A22: 14 | B22: 701.281975 | C22: 0 | D22: 927.1852527
A23: 15 | B23: 275.8606103 | C23: 0 | D23: -4847.585827
A24: 16 | B24: 978.587588 | C24: 0 | D24: -9.265425704
A25: 17 | B25: -7175.462687 | C25: 0 | D25: -1101.098526
A26: 18 | B26: -1036.93809 | C26: 0 | D26: -66.92219561
A27: 19 | B27: -1755.058611 | C27: 0 | D27: -3537.571334
A28: 20 | B28: 120.0904674 | C28: 0 | D28: -1390.152722
A29: 21 | B29: -838.9109743 | C29: 0 | D29: -1548.804654
A30: 22 | B30: 0.1839057357 | C30: 0 | D30: -3662.521472
A31: 23 | B31: 664.2065773 | C31: 0 | D31: -648.4198761
A32: 24 | B32: -2904.842128 | C32: 0 | D32: -38.42082262
A33: 25 | B33: -3.48577614 | C33: 0 | D33: 780.6241646
A34: 26 | B34: 1109.169898 | C34: 0 | D34: -1928.914584
A35: 27 | B35: 125.2729251 | C35: 0 | D35: 51.07614119
A36: 28 | B36: -1290.897135 | C36: 0 | D36: 1670.512219
A37: 29 | B37: -1119.360095 | C37: 0 | D37: 381.1535808
A38: 30 | B38: -1595.615475 | C38: 0 | D38: -1965.259252
A39: 31 | B39: 397.9106443 | C39: 0 | D39: -308.873848
A40: 32 | B40: -1689.861112 | C40: 0 | D40: -241.6032996
A41: 33 | B41: 1092.412948 | C41: 0 | D41: -1250.988895
A42: 34 | B42: -1466.447839 | C42: 0 | D42: -1083.42319
A43: 35 | B43: -4314.480979 | C43: 0 | D43: -1277.800068
A44: 36 | B44: -1987.009533 | C44: 0 | D44: 566.3794911
A45: 37 | B45: 569.6462647 | C45: 0 | D45: -6322.295801
A46: 38 | B46: -345.4157065 | C46: 0 | D46: 127.2212712
A47: 39 | B47: -3142.707686 | C47: 0 | D47: -149.3742172
A48: 40 | B48: -694.5522076 | C48: 0 | D48: -3038.3864
A49: 41 | B49: -3285.498264 | C49: 0 | D49: -1150.107965
A50: 42 | B50: -1891.650552 | C50: 0 | D50: -323.2044506
A51: 43 | B51: 34.55898794 | C51: 0 | D51: -4110.697501
A52: 44 | B52: -142.7520576 | C52: 0 | D52: -7419.004206
A53: 45 | B53: -1060.369849 | C53: 0 | D53: -1319.758292
A54: 46 | B54: 291.8606515 | C54: 0 | D54: -5300.958836
A55: 47 | B55: -601.0625653 | C55: 0 | D55: -281.8875133
A56: 48 | B56: -276.6763247 | C56: 0 | D56: 242.1028138
A57: 49 | B57: -3271.519259 | C57: 0 | D57: -1125.381135
A58: 50 | B58: 1398.610497 | C58: 0 | D58: -1383.987375
A59: 51 | B59: -51.54002392 | C59: 0 | D59: -647.9101754
A60: 52 | B60: -3209.485012 | C60: 0 | D60: -136.5306081
A61: 53 | B61: -6591.873755 | C61: 0 | D61: -2739.01291
A62: 54 | B62: 1765.417172 | C62: 0 | D62: -8432.344558
A63: 55 | B63: -1191.708325 | C63: 0 | D63: -14141.38642
A64: 56 | B64: 373.4337185 | C64: 0 | D64: 343.1416733
A65: 57 | B65: -6176.667479 | C65: 0 | D65: -2345.075753
A66: 58 | B66: 1051.487257 | C66: 0 | D66: -3191.201249
A67: 59 | B67: -2153.464609 | C67: 0 | D67: -8053.46522
A68: 60 | B68: -1986.938295 | C68: 0 | D68: 715.391464
A69: 61 | B69: 1042.71638 | C69: 0 | D69: 1699.829941
A70: 62 | B70: 1623.274501 | C70: 0 | D70: 131.7104292
A71: 63 | B71: -3374.736263 | C71: 0 | D71: -1607.415286
A72: 64 | B72: -1282.964671 | C72: 0 | D72: -6730.820546
A73: 65 | B73: 235.6195025 | C73: 0 | D73: 13.89279038
A74: 66 | B74: -656.9185025 | C74: 0 | D74: -5135.684941
A75: 67 | B75: -634.9031465 | C75: 0 | D75: 1204.177474
A76: 68 | B76: -6552.36538 | C76: 0 | D76: 253.1139902
A77: 69 | B77: -2978.615097 | C77: 0 | D77: -483.5119876
A78: 70 | B78: -3119.339339 | C78: 0 | D78: -3288.699918
A79: 71 | B79: -266.7280703 | C79: 0 | D79: 554.6606521
A80: 72 | B80: 292.2542942 | C80: 0 | D80: 726.4753216
A81: 73 | B81: 1060.540576 | C81: 0 | D81: 853.8759231
A82: 74 | B82: 133.0975905 | C82: 0 | D82: -2272.561949
A83: 75 | B83: -1091.780347 | C83: 0 | D83: 1489.503888
A84: 76 | B84: 1118.510238 | C84: 0 | D84: -10159.59255
A85: 77 | B85: -297.1748271 | C85: 0 | D85: 287.6854722
A86: 78 | B86: 66.14027923 | C86: 0 | D86: -3619.244837
A87: 79 | B87: 15.15859873 | C87: 0 | D87: -2086.642767
A88: 80 | B88: -5669.012623 | C88: 0 | D88: -4901.177752
A89: 81 | B89: 222.4185881 | C89: 0 | D89: -1287.935916
A90: 82 | B90: -1347.489378 | C90: 0 | D90: -4903.187416
A91: 83 | B91: 409.1154219 | C91: 0 | D91: 609.8635873
A92: 84 | B92: 868.7703483 | C92: 0 | D92: -1023.257892
A93: 85 | B93: -962.5650764 | C93: 0 | D93: -1542.395951
A94: 86 | B94: -150.1308221 | C94: 0 | D94: -7507.872915
A95: 87 | B95: 422.0151434 | C95: 0 | D95: -342.1663034
A96: 88 | B96: -1074.317447 | C96: 0 | D96: -2181.796068
A97: 89 | B97: -2885.942234 | C97: 0 | D97: 82.74080633
A98: 90 | B98: 610.3854107 | C98: 0 | D98: -292.5112341
A99: 91 | B99: -644.940367 | C99: 0 | D99: 307.2656396
A100: 92 | B100: -2238.364958 | C100: 0 | D100: 1335.090543
A101: 93 | B101: 32.66483233 | C101: 0 | D101: -5094.144509
A102: 94 | B102: 138.7431663 | C102: 0 | D102: -2076.701008
A103: 95 | B103: -1301.964597 | C103: 0 | D103: -11176.61009
A104: 96 | B104: 98.5036103 | C104: 0 | D104: 1154.471318
A105: 97 | B105: -2606.152411 | C105: 0 | D105: -2330.176812
A106: 98 | B106: -2231.605997 | C106: 0 | D106: -8034.508902
A107: 99 | B107: 1432.524581 | C107: 0 | D107: 241.6276067
A108: 100 | B108: -1112.461957 | C108: 0 | D108: -8862.953963
A109: 101 | B109: -4883.186413 | C109: 0 | D109: -1275.154513
A110: 102 | B110: -5790.142148 | C110: 0 | D110: -1248.769854
A111: 103 | B111: -162.7108749 | C111: 0 | D111: -1277.072125
A112: 104 | B112: -1039.063142 | C112: 0 | D112: -1249.606657
A113: 105 | B113: -2164.547628 | C113: 0 | D113: -7517.929644
A114: 106 | B114: -391.2135839 | C114: 0 | D114: -8908.04381
A115: 107 | B115: 438.9019068 | C115: 0 | D115: 807.7203647
A116: 108 | B116: 318.4494987 | C116: 0 | D116: -493.4215993
A117: 109 | B117: 480.2025194 | C117: 0 | D117: -4098.607635
A118: 110 | B118: -1929.553558 | C118: 0 | D118: 1155.500485
A119: 111 | B119: 378.8312865 | C119: 0 | D119: -214.6670301
A120: 112 | B120: 917.641082 | C120: 0 | D120: -5108.486702
A121: 113 | B121: -147.3111817 | C121: 0 | D121: -8837.339746
A122: 114 | B122: -114.2211347 | C122: 0 | D122: -5785.57667
A123: 115 | B123: -3136.836224 | C123: 0 | D123: -4377.845102
A124: 116 | B124: -641.8854351 | C124: 0 | D124: -1181.252471
A125: 117 | B125: -2239.652791 | C125: 0 | D125: -2.627314157
A126: 118 | B126: -686.1243491 | C126: 0 | D126: -1241.222277
A127: 119 | B127: 483.9897752 | C127: 0 | D127: -1252.948632
A128: 120 | B128: -193.3642478 | C128: 0 | D128: -4640.291219
A129: 121 | B129: 9.44810227 | C129: 0 | D129: -5660.050988
A130: 122 | B130: -799.2538496 | C130: 0 | D130: 249.3608768
A131: 123 | B131: -1720.09207 | C131: 0 | D131: -1925.426916
A132: 124 | B132: 1133.731357 | C132: 0 | D132: -329.8851622
A133: 125 | B133: -1945.672174 | C133: 0 | D133: -8691.637633
A134: 126 | B134: 676.189177 | C134: 0 | D134: -8180.810415
A135: 127 | B135: -286.0815511 | C135: 0 | D135: -8272.492033
A136: 128 | B136: -1056.888961 | C136: 0 | D136: -2627.059711
A137: 129 | B137: -1509.868708 | C137: 0 | D137: -2254.312748
A138: 130 | B138: -0.9983844221 | C138: 0 | D138: -997.0812526
A139: 131 | B139: -2992.962709 | C139: 0 | D139: -3378.012986
A140: 132 | B140: -2810.918286 | C140: 0 | D140: -2083.315293
A141: 133 | B141: -2997.89407 | C141: 0 | D141: -99.00988501
A142: 134 | B142: -2252.599471 | C142: 0 | D142: -893.8847311
A143: 135 | B143: -144.2067484 | C143: 0 | D143: -641.4286067
A144: 136 | B144: -599.7148375 | C144: 0 | D144: -82.64916149
A145: 137 | B145: -99.95969597 | C145: 0 | D145: -637.9231977
A146: 138 | B146: -3831.210798 | C146: 0 | D146: -1221.115731
A147: 139 | B147: 157.559806 | C147: 0 | D147: -640.0612839
A148: 140 | B148: -280.9905801 | C148: 0 | D148: -4347.336052
A149: 141 | B149: -5749.161609 | C149: 0 | D149: -5897.107449
A150: 142 | B150: -2440.855643 | C150: 0 | D150: 25.44275016
A151: 143 | B151: 21.91147549 | C151: 0 | D151: -5373.736185
A152: 144 | B152: -970.0266673 | C152: 0 | D152: -3557.03007
A153: 145 | B153: -707.0032524 | C153: 0 | D153: -3671.737068
A154: 146 | B154: -504.9045872 | C154: 0 | D154: -2537.368713
A155: 147 | B155: -318.2370171 | C155: 0 | D155: -925.5435707
A156: 148 | B156: -109.0802456 | C156: 0 | D156: 1025.778107
A157: 149 | B157: -115.334412 | C157: 0 | D157: 1153.253607
A158: 150 | B158: -8330.831923 | C158: 0 | D158: 322.1499255
A159: 151 | B159: -2153.988025 | C159: 0 | D159: -3688.438126
A160: 152 | B160: -2227.940881 | C160: 0 | D160: -1087.389388
A161: 153 | B161: 271.6085206 | C161: 0 | D161: -1403.234061
A162: 154 | B162: -67.65581598 | C162: 0 | D162: 88.42949006
A163: 155 | B163: -1495.831491 | C163: 0 | D163: -149.7668841
A164: 156 | B164: -601.1528443 | C164: 0 | D164: -6574.146439
A165: 157 | B165: 24.08490022 | C165: 0 | D165: 869.1736984
A166: 158 | B166: 282.6465897 | C166: 0 | D166: -844.3377311
A167: 159 | B167: -750.9127703 | C167: 0 | D167: 310.5845556
A168: 160 | B168: 41.11572255 | C168: 0 | D168: -5790.50581
A169: 161 | B169: -668.2214215 | C169: 0 | D169: -1481.0692
A170: 162 | B170: 130.0862201 | C170: 0 | D170: 2374.007993
A171: 163 | B171: -913.2264689 | C171: 0 | D171: -751.3780213
A172: 164 | B172: 52.41043556 | C172: 0 | D172: -900.8726915
A173: 165 | B173: -1072.713247 | C173: 0 | D173: -1327.160005
A174: 166 | B174: 542.9639004 | C174: 0 | D174: -1385.173428
A175: 167 | B175: 176.0908528 | C175: 0 | D175: -630.9035868
A176: 168 | B176: -1804.719775 | C176: 0 | D176: 1945.420756
A177: 169 | B177: -138.6865478 | C177: 0 | D177: -6833.542255
A178: 170 | B178: -4376.505991 | C178: 0 | D178: -668.3438836
A179: 171 | B179: -1241.075432 | C179: 0 | D179: -8804.068746
A180: 172 | B180: -5007.30784 | C180: 0 | D180: -6002.182321
A181: 173 | B181: 128.8269282 | C181: 0 | D181: -1670.595214
A182: 174 | B182: -2563.401732 | C182: 0 | D182: -588.5974004
A183: 175 | B183: -2284.32565 | C183: 0 | D183: 1542.721679
A184: 176 | B184: -643.5012862 | C184: 0 | D184: -2932.35881
A185: 177 | B185: 59.6153409 | C185: 0 | D185: 128.6530406
A186: 178 | B186: -1865.720476 | C186: 0 | D186: -191.202907
A187: 179 | B187: -2822.940745 | C187: 0 | D187: -748.5540047
A188: 180 | B188: -962.0800028 | C188: 0 | D188: -11569.40845
A189: 181 | B189: -90.85646435 | C189: 0 | D189: 416.6977766
A190: 182 | B190: -6015.416931 | C190: 0 | D190: -1659.115852
A191: 183 | B191: -4719.023546 | C191: 0 | D191: -747.2387397
A192: 184 | B192: -7755.547992 | C192: 0 | D192: 187.748271
A193: 185 | B193: -312.9171073 | C193: 0 | D193: 715.1019277
A194: 186 | B194: -304.1972679 | C194: 0 | D194: 1326.594577
A195: 187 | B195: 387.9780904 | C195: 0 | D195: -1516.486243
A196: 188 | B196: 1138.666223 | C196: 0 | D196: -212.8626961
A197: 189 | B197: -3394.404314 | C197: 0 | D197: -1282.379964
A198: 190 | B198: -1902.838149 | C198: 0 | D198: 491.2293828
A199: 191 | B199: -653.2098188 | C199: 0 | D199: -1375.720716
A200: 192 | B200: -5610.083537 | C200: 0 | D200: 409.7624622
A201: 193 | B201: 88.76909073 | C201: 0 | D201: 95.95997796
... 3007 more rows

Sheet RiskRGCGSR26C11 (hidden)
A33: Del X | B33: Del Y | E33: X1 | F33: Y1
A34: 291056.5338 | B34: 0.09 | E34: 288867.2056 | F34: 0.03
A35: 308900.8965 | B35: 0.09 | E35: 290113.3756 | F35: 0.03
A36: 288028.2669 | B36: 0.09 | E36: 291359.5457 | F36: 0.04
A37: 299978.7151 | B37: 0.09 | E37: 292605.7157 | F37: 0.07
A38: 311950.4482 | B38: 0.09 | E38: 293851.8857 | F38: 0.05
E39: 295098.0558 | F39: 0.08
E40: 296344.2258 | F40: 0.08
E41: 297590.3959 | F41: 0.08
E42: 298836.5659 | F42: 0.08
E43: 300082.7359 | F43: 0.07
E44: 301328.906 | F44: 0.08
E45: 302575.076 | F45: 0.07
E46: 303821.2461 | F46: 0.06
E47: 305067.4161 | F47: 0.04
E48: 306313.5861 | F48: 0.05
E49: 307559.7562 | F49: 0.03
E50: 308805.9262 | F50: 0.02
E51: 310052.0963 | F51: 0.02
E52: 311298.2663 | F52: 0.01
E53: 312544.4363 | F53: 0.01
E54: 313790.6064 | F54: 0
B2501: XFill1 | C2501: ="CGS Total O&M / FY14" -> CGS Total O&M / FY14 | D2501: XLine1 | E2501: ="CGS Total O&M / FY14" -> CGS Total O&M / FY14
B2502: 288867.2056 | C2502: =0 -> 0 | D2502: 288867.2056 | E2502: 0
B2503: 288867.2056 | C2503: =$F$34 -> 0.03 | D2503: 288867.2056 | E2503: 0
B2504: 288966.8992 | C2504: 0.03 | D2504: 288867.2056 | E2504: =$F$34 -> 0.03
B2505: 289066.5928 | C2505: 0.03 | D2505: 290113.3756 | E2505: =$F$34 -> 0.03
B2506: 289166.2864 | C2506: 0.03 | D2506: 290113.3756 | E2506: 0
B2507: 289265.98 | C2507: 0.03 | D2507: 290113.3756 | E2507: =$F$35 -> 0.03
B2508: 289365.6736 | C2508: 0.03 | D2508: 291359.5457 | E2508: =$F$35 -> 0.03
B2509: 289465.3672 | C2509: 0.03 | D2509: 291359.5457 | E2509: 0
B2510: 289565.0608 | C2510: 0.03 | D2510: 291359.5457 | E2510: =$F$36 -> 0.04
B2511: 289664.7544 | C2511: 0.03 | D2511: 292605.7157 | E2511: =$F$36 -> 0.04
B2512: 289764.448 | C2512: 0.03 | D2512: 292605.7157 | E2512: 0
B2513: 289864.1416 | C2513: 0.03 | D2513: 292605.7157 | E2513: =$F$37 -> 0.07
B2514: 289963.8352 | C2514: 0.03 | D2514: 293851.8857 | E2514: =$F$37 -> 0.07
B2515: 290063.5288 | C2515: 0.03 | D2515: 293851.8857 | E2515: 0
B2516: 290113.3756 | C2516: 0.03 | D2516: 293851.8857 | E2516: =$F$38 -> 0.05
B2517: 290113.3756 | C2517: 0 | D2517: 295098.0558 | E2517: =$F$38 -> 0.05
B2518: 290113.3756 | C2518: =0 -> 0 | D2518: 295098.0558 | E2518: 0
B2519: 290113.3756 | C2519: =$F$35 -> 0.03 | D2519: 295098.0558 | E2519: =$F$39 -> 0.08
B2520: 290213.0692 | C2520: 0.03 | D2520: 296344.2258 | E2520: =$F$39 -> 0.08
B2521: 290312.7628 | C2521: 0.03 | D2521: 296344.2258 | E2521: 0
B2522: 290412.4564 | C2522: 0.03 | D2522: 296344.2258 | E2522: =$F$40 -> 0.08
B2523: 290512.15 | C2523: 0.03 | D2523: 297590.3959 | E2523: =$F$40 -> 0.08
B2524: 290611.8436 | C2524: 0.03 | D2524: 297590.3959 | E2524: 0
B2525: 290711.5372 | C2525: 0.03 | D2525: 297590.3959 | E2525: =$F$41 -> 0.08
B2526: 290811.2308 | C2526: 0.03 | D2526: 298836.5659 | E2526: =$F$41 -> 0.08
B2527: 290910.9244 | C2527: 0.03 | D2527: 298836.5659 | E2527: 0
B2528: 291010.618 | C2528: 0.03 | D2528: 298836.5659 | E2528: =$F$42 -> 0.08
B2529: 291110.3117 | C2529: 0.03 | D2529: 300082.7359 | E2529: =$F$42 -> 0.08
B2530: 291210.0053 | C2530: 0.03 | D2530: 300082.7359 | E2530: 0
B2531: 291309.6989 | C2531: 0.03 | D2531: 300082.7359 | E2531: =$F$43 -> 0.07
B2532: 291359.5457 | C2532: 0.03 | D2532: 301328.906 | E2532: =$F$43 -> 0.07
B2533: 291359.5457 | C2533: 0 | D2533: 301328.906 | E2533: 0
B2534: 291359.5457 | C2534: =0 -> 0 | D2534: 301328.906 | E2534: =$F$44 -> 0.08
B2535: 291359.5457 | C2535: =$F$36 -> 0.04 | D2535: 302575.076 | E2535: =$F$44 -> 0.08
B2536: 291459.2393 | C2536: 0.04 | D2536: 302575.076 | E2536: 0
B2537: 291558.9329 | C2537: 0.04 | D2537: 302575.076 | E2537: =$F$45 -> 0.07
B2538: 291658.6265 | C2538: 0.04 | D2538: 303821.2461 | E2538: =$F$45 -> 0.07
B2539: 291758.3201 | C2539: 0.04 | D2539: 303821.2461 | E2539: 0
B2540: 291858.0137 | C2540: 0.04 | D2540: 303821.2461 | E2540: =$F$46 -> 0.06
B2541: 291957.7073 | C2541: 0.04 | D2541: 305067.4161 | E2541: =$F$46 -> 0.06
B2542: 292057.4009 | C2542: 0.04 | D2542: 305067.4161 | E2542: 0
B2543: 292157.0945 | C2543: 0.04 | D2543: 305067.4161 | E2543: =$F$47 -> 0.04
B2544: 292256.7881 | C2544: 0.04 | D2544: 306313.5861 | E2544: =$F$47 -> 0.04
B2545: 292356.4817 | C2545: 0.04 | D2545: 306313.5861 | E2545: 0
B2546: 292456.1753 | C2546: 0.04 | D2546: 306313.5861 | E2546: =$F$48 -> 0.05
B2547: 292555.8689 | C2547: 0.04 | D2547: 307559.7562 | E2547: =$F$48 -> 0.05
B2548: 292605.7157 | C2548: 0.04 | D2548: 307559.7562 | E2548: 0
B2549: 292605.7157 | C2549: 0 | D2549: 307559.7562 | E2549: =$F$49 -> 0.03
B2550: 292605.7157 | C2550: =0 -> 0 | D2550: 308805.9262 | E2550: =$F$49 -> 0.03
B2551: 292605.7157 | C2551: =$F$37 -> 0.07 | D2551: 308805.9262 | E2551: 0
B2552: 292705.4093 | C2552: 0.07 | D2552: 308805.9262 | E2552: =$F$50 -> 0.02
B2553: 292805.1029 | C2553: 0.07 | D2553: 310052.0963 | E2553: =$F$50 -> 0.02
B2554: 292904.7965 | C2554: 0.07 | D2554: 310052.0963 | E2554: 0
B2555: 293004.4901 | C2555: 0.07 | D2555: 310052.0963 | E2555: =$F$51 -> 0.02
B2556: 293104.1837 | C2556: 0.07 | D2556: 311298.2663 | E2556: =$F$51 -> 0.02
B2557: 293203.8773 | C2557: 0.07 | D2557: 311298.2663 | E2557: 0
B2558: 293303.5709 | C2558: 0.07 | D2558: 311298.2663 | E2558: =$F$52 -> 0.01
B2559: 293403.2645 | C2559: 0.07 | D2559: 312544.4363 | E2559: =$F$52 -> 0.01
B2560: 293502.9581 | C2560: 0.07 | D2560: 312544.4363 | E2560: 0
B2561: 293602.6517 | C2561: 0.07 | D2561: 312544.4363 | E2561: =$F$53 -> 0.01
B2562: 293702.3453 | C2562: 0.07 | D2562: 313790.6064 | E2562: =$F$53 -> 0.01
B2563: 293802.0389 | C2563: 0.07 | D2563: 313790.6064 | E2563: 0
B2564: 293851.8857 | C2564: 0.07 | D2564: 313790.6064 | E2564: =$F$54 -> 0
B2565: 293851.8857 | C2565: 0 | E2565: =$F$54 -> 0
B2566: 293851.8857 | C2566: =0 -> 0 | E2566: 0
B2567: 293851.8857 | C2567: =$F$38 -> 0.05
B2568: 293951.5793 | C2568: 0.05
B2569: 294051.2729 | C2569: 0.05
B2570: 294150.9665 | C2570: 0.05
B2571: 294250.6602 | C2571: 0.05
B2572: 294350.3538 | C2572: 0.05
B2573: 294450.0474 | C2573: 0.05
B2574: 294549.741 | C2574: 0.05
B2575: 294649.4346 | C2575: 0.05
B2576: 294749.1282 | C2576: 0.05
B2577: 294848.8218 | C2577: 0.05
B2578: 294948.5154 | C2578: 0.05
B2579: 295048.209 | C2579: 0.05
B2580: 295098.0558 | C2580: 0.05
B2581: 295098.0558 | C2581: 0
B2582: 295098.0558 | C2582: =0 -> 0
B2583: 295098.0558 | C2583: =$F$39 -> 0.08
B2584: 295197.7494 | C2584: 0.08
B2585: 295297.443 | C2585: 0.08
B2586: 295397.1366 | C2586: 0.08
B2587: 295496.8302 | C2587: 0.08
B2588: 295596.5238 | C2588: 0.08
B2589: 295696.2174 | C2589: 0.08
B2590: 295795.911 | C2590: 0.08
B2591: 295895.6046 | C2591: 0.08
B2592: 295995.2982 | C2592: 0.08
B2593: 296094.9918 | C2593: 0.08
B2594: 296194.6854 | C2594: 0.08
B2595: 296294.379 | C2595: 0.08
B2596: 296344.2258 | C2596: 0.08
B2597: 296344.2258 | C2597: 0
B2598: 296344.2258 | C2598: =0 -> 0
B2599: 296344.2258 | C2599: =$F$40 -> 0.08
B2600: 296443.9194 | C2600: 0.08
B2601: 296543.613 | C2601: 0.08
B2602: 296643.3066 | C2602: 0.08
B2603: 296743.0002 | C2603: 0.08
B2604: 296842.6938 | C2604: 0.08
B2605: 296942.3874 | C2605: 0.08
B2606: 297042.081 | C2606: 0.08
B2607: 297141.7746 | C2607: 0.08
B2608: 297241.4682 | C2608: 0.08
B2609: 297341.1619 | C2609: 0.08
B2610: 297440.8555 | C2610: 0.08
B2611: 297540.5491 | C2611: 0.08
B2612: 297590.3959 | C2612: 0.08
B2613: 297590.3959 | C2613: 0
B2614: 297590.3959 | C2614: =0 -> 0
B2615: 297590.3959 | C2615: =$F$41 -> 0.08
B2616: 297690.0895 | C2616: 0.08
B2617: 297789.7831 | C2617: 0.08
B2618: 297889.4767 | C2618: 0.08
B2619: 297989.1703 | C2619: 0.08
B2620: 298088.8639 | C2620: 0.08
B2621: 298188.5575 | C2621: 0.08
B2622: 298288.2511 | C2622: 0.08
B2623: 298387.9447 | C2623: 0.08
B2624: 298487.6383 | C2624: 0.08
B2625: 298587.3319 | C2625: 0.08
B2626: 298687.0255 | C2626: 0.08
B2627: 298786.7191 | C2627: 0.08
B2628: 298836.5659 | C2628: 0.08
B2629: 298836.5659 | C2629: 0
B2630: 298836.5659 | C2630: =0 -> 0
B2631: 298836.5659 | C2631: =$F$42 -> 0.08
B2632: 298936.2595 | C2632: 0.08
B2633: 299035.9531 | C2633: 0.08
B2634: 299135.6467 | C2634: 0.08
B2635: 299235.3403 | C2635: 0.08
B2636: 299335.0339 | C2636: 0.08
B2637: 299434.7275 | C2637: 0.08
B2638: 299534.4211 | C2638: 0.08
B2639: 299634.1147 | C2639: 0.08
B2640: 299733.8083 | C2640: 0.08
B2641: 299833.5019 | C2641: 0.08
B2642: 299933.1955 | C2642: 0.08
B2643: 300032.8891 | C2643: 0.08
B2644: 300082.7359 | C2644: 0.08
B2645: 300082.7359 | C2645: 0
B2646: 300082.7359 | C2646: =0 -> 0
B2647: 300082.7359 | C2647: =$F$43 -> 0.07
B2648: 300182.4295 | C2648: 0.07
B2649: 300282.1231 | C2649: 0.07
B2650: 300381.8167 | C2650: 0.07
B2651: 300481.5104 | C2651: 0.07
B2652: 300581.204 | C2652: 0.07
B2653: 300680.8976 | C2653: 0.07
B2654: 300780.5912 | C2654: 0.07
B2655: 300880.2848 | C2655: 0.07
B2656: 300979.9784 | C2656: 0.07
B2657: 301079.672 | C2657: 0.07
B2658: 301179.3656 | C2658: 0.07
B2659: 301279.0592 | C2659: 0.07
B2660: 301328.906 | C2660: 0.07
B2661: 301328.906 | C2661: 0
B2662: 301328.906 | C2662: =0 -> 0
B2663: 301328.906 | C2663: =$F$44 -> 0.08
B2664: 301428.5996 | C2664: 0.08
B2665: 301528.2932 | C2665: 0.08
B2666: 301627.9868 | C2666: 0.08
B2667: 301727.6804 | C2667: 0.08
B2668: 301827.374 | C2668: 0.08
B2669: 301927.0676 | C2669: 0.08
B2670: 302026.7612 | C2670: 0.08
B2671: 302126.4548 | C2671: 0.08
B2672: 302226.1484 | C2672: 0.08
B2673: 302325.842 | C2673: 0.08
B2674: 302425.5356 | C2674: 0.08
B2675: 302525.2292 | C2675: 0.08
B2676: 302575.076 | C2676: 0.08
B2677: 302575.076 | C2677: 0
B2678: 302575.076 | C2678: =0 -> 0
... 143 more rows

Sheet CGS
B2: ($000) | D2: Rates Values | J2: @Risk | O2: Color Key:
D3: FY19 | E3: FY20 | F3: FY21 | J3: FY19 | K3: FY20 | L3: FY21 | M3: =K3&" and "&L3 -> FY20 and FY21 | O3: SME Input
A4: CGS | B4: Total O&M | D4: ='Risk Summary'!C8 -> 325250.7582 | E4: ='Risk Summary'!E8 -> 262470.836 | F4: ='Risk Summary'!G8 -> 319461.597 | I4: CGS Total O&M | J4: =J5+J14 ->  | K4: =_xll.RiskOutput("CGS Total O&M / FY14")+(K5+K14) ->  | L4: =_xll.RiskOutput("CGS Total O&M / FY15")+(L5+L14) ->  | M4: =_xll.RiskOutput("CGS Total O&M / FY14 and FY 15")+(K4+L4) ->  | O4: Worksheet Formula
H5: Pert | I5: CGS Base O&M | J5: =_xll.RiskPert(J7,J9,J11) ->  | K5: =_xll.RiskPert(K7,K9,K11) ->  | L5: =_xll.RiskPert(L7,L9,L11) ->  | O5: @Risk Output
I6: Min percent of forecast | J6: =100% -> 1 | K6: 0.96 | L6: 0.96 | O6: Linked to Summary
I7: Min | J7: =(D$4-D$15)*(J6) -> 322567.7582 | K7: =(E$4-E$15)*(K6) -> 249907.0426 | L7: =(F$4-F$15)*(L6) -> 304525.0531 | O7: @Risk Formula
I8: Expected percent of forecast | J8: 1 | K8: 1 | L8: 1
I9: Expected | J9: =(D$4-D$15)*(J8) -> 322567.7582 | K9: =(E$4-E$15)*(K8) -> 260319.836 | L9: =(F$4-F$15)*(L8) -> 317213.597
I10: Max Percent of forecast | J10: =100% -> 1 | K10: 1.06 | L10: 1.06
I11: Max | J11: =(D$4-D$15)*(J10) -> 322567.7582 | K11: =(E$4-E$15)*(K10) -> 275939.0262 | L11: =(F$4-F$15)*(L10) -> 336246.4128
D14: NEIL Premium | E14: NEIL Premium | F14: NEIL Premium | I14: NEIL Premium | J14: =_xll.RiskPert(J15,J16,J17) ->  | K14: =_xll.RiskPert(K15,K16,K17) ->  | L14: =_xll.RiskPert(L15,L16,L17) -> 
D15: 2683 | E15: 2151 | F15: 2248 | H15: Pert | I15: Low | J15: =J16*0.975+D19*0.5 -> 1378.425 | K15: =K16*0.95+E19 -> 68.45 | L15: =L16*0.95+F19 -> 160.6
D16: EV Credit | E16: EV Credit | F16: EV Credit | I16: Base | J16: =D15+D17 -> 2183 | K16: =E15+E17 -> 1651 | L16: =F15+F17 -> 1748
D17: -500 | E17: -500 | F17: -500 | I17: High | J17: =J16*1.025 -> 2237.575 | K17: =K16*1.05 -> 1733.55 | L17: =L16*1.05 -> 1835.4
D18: Good case Credit | E18: Good case Credit | F18: Good case Credit
D19: -1500 | E19: -1500 | F19: -1500

Sheet Corps & Bureau O&M
C2: FY19 | D2: FY19 | E2: FY20 | F2: FY20 | G2: FY21 | H2: FY21
C3: Input | D3: @risk | E3: Input | F3: @risk | G3: Input | H3: @risk
F4: CORPOM-1 | H4: CORPOM-2 | L4: =D2 -> FY19 | M4: =F2 -> FY20 | N4: =H2 -> FY21
A5: CORPS O&M | C5: 256057 | D5: =D39+(D42+D47)+D53+D58+D64 ->  | E5: 252557 | F5: =F39+(F42+F47)+F53+F58+F64 ->  | G5: 252557 | H5: =H39+(H42+H47)+H53+H58+H64 ->  | J5: COE and Reclamination O&M | L5: =_xll.RiskOutput("COE and Reclamation O&M / "&L4)+(D5+D22) ->  | M5: =_xll.RiskOutput("COE and Reclamation O&M / "&M4)+(F5+F22) ->  | N5: =_xll.RiskOutput("COE and Reclamation O&M / "&N4)+(H5+H22) ->  | O5: =_xll.RiskOutput("COE and Reclamation / FY14 and FY15")+(M5+N5) -> 
A6: Fish Passage | L6: =_xll.RiskMean(L5) -> 
A7: = Base O&M | B7: Deterministic | D7: =D39 -> 256057 | F7: =F39 -> 252557 | H7: =H39 -> 252557
A9: + Added Security costs if event occurs | B9: RiskDiscrete | D9: =D42 ->  | F9: =F42 ->  | H9: =H42 ->  | J9: Color Key:
J10: SME Input
A11: + Added Fish Environmental Compliance costs if event occurs | B11: RiskDiscrete | D11: =D47 ->  | F11: =F47 ->  | H11: =H47 ->  | J11: Worksheet Formula
J12: @Risk Output
A13: - Non-Routine Extraordinary Maintenance Costs Reduction | B13: RiskDiscrete | D13: =D53 ->  | F13: =F53 ->  | H13: =H53 ->  | J13: Linked to Summary
A15: + Catastrophic Event Cost | B15: RiskDiscrete | D15: =D58 ->  | F15: =F58 ->  | H15: =H58 -> 
A17: + Additional System Needs Costs | B17: RiskDiscrete | D17: =D64 ->  | F17: =F64 ->  | H17: =H64 -> 
B19: QC Check of totals | D19: =SUM(D7:D17) ->  | F19: =SUM(F7:F17) ->  | H19: =SUM(H7:H17) -> 
D21: BUROM-1 | F21: BUROM-1 | H21: BUROM-2
A22: BUREAU O&M | C22: 162623 | D22: =D69+(D72+D75)+D81+D92 ->  | E22: 153609 | F22: =F69+(F72+F75)+F81+F92 ->  | G22: 151623 | H22: =H69+(H72+H75)+H81+H92 -> 
A24: = Base O&M | B24: RiskPert | D24: =D69 -> 162623 | F24: =F69 -> 153609 | H24: =H69 -> 151623
A26: + Added Security costs if event occurs | B26: RiskDiscrete | D26: =D72 ->  | F26: =F72 ->  | H26: =H72 -> 
A28: + Added Fish Environmental Compliance costs if event occurs | B28: RiskDiscrete | D28: =D75 ->  | F28: =F75 ->  | H28: =H75 -> 
A30: - Non-Routine Extraordinary Maintenance Costs Reduction | B30: RiskDiscrete | D30: =D81 ->  | F30: =F81 ->  | H30: =H81 -> 
A32: + Catastrophic Event Cost | B32: RiskDiscrete | D32: =D86 ->  | F32: =F86 ->  | H32: =H86 -> 
A34: + Additional System Needs Costs | B34: RiskDiscrete | D34: =D92 ->  | F34: =F92 ->  | H34: =H92 -> 
B36: QC Check of totals | D36: =SUM(D24:D34) ->  | F36: =SUM(F24:F34) ->  | H36: =SUM(H24:H34) -> 
A38: Corps of Engineers
A39: Base O&M | B39: Deterministic | D39: =C5 -> 256057 | F39: =E5 -> 252557 | H39: =G5 -> 252557
A41: Security | D41: CORPO&MSEC-1 | F41: CORPO&MSEC-1 | H41: CORPO&MSEC-2
D42: =_xll.RiskDiscrete(D43:E43,D44:E44) ->  | F42: =_xll.RiskDiscrete(F43:G43,F44:G44) ->  | H42: =_xll.RiskDiscrete(H43:I43,H44:I44) -> 
B43: Cost of an Event | D43: 3000 | E43: 0 | F43: 3000 | G43: 0 | H43: 3000 | I43: 0
B44: Probability of an event | D44: =2%/2 -> 0.01 | E44: =1-D44 -> 0.99 | F44: 0.02 | G44: =1-F44 -> 0.98 | H44: 0.02 | I44: =1-H44 -> 0.98
A46: Fish - Environmental Compliance | D46: CORPO&Mecomp-1 | F46: CORPO&Mecomp-1 | H46: CORPO&Mecomp-2
D47: =_xll.RiskDiscrete(D48:E48,D49:E49) ->  | F47: =_xll.RiskDiscrete(F48:G48,F49:G49) ->  | H47: =_xll.RiskDiscrete(H48:I48,H49:I49) -> 
B48: Cost of an Event | D48: 2000 | E48: 0 | F48: 2000 | G48: 0 | H48: 2000 | I48: 0
B49: Probability of an event | D49: =2%/2 -> 0.01 | E49: =1-D49 -> 0.99 | F49: 0.02 | G49: =1-F49 -> 0.98 | H49: 0.02 | I49: =1-H49 -> 0.98
A51: Non-Routine Extraordinary Maintenance
D52: CORPO&MNREMsav-1 | F52: CORPO&MNREMsav-1 | H52: CORPO&MNREMsav-2
B53: EV Additional Annual Cost | D53: =_xll.RiskDiscrete(D54:E54,D55:E55) ->  | F53: =_xll.RiskDiscrete(F54:G54,F55:G55) ->  | H53: =_xll.RiskDiscrete(H54:I54,H55:I55) -> 
B54: Annual Cost (Additional) | D54: 5000 | E54: 0 | F54: 5000 | G54: 0 | H54: 5000 | I54: 0
B55: Probability that Additional Costs will be provided | D55: =2.5%/2 -> 0.0125 | E55: =1-D55 -> 0.9875 | F55: 0.025 | G55: =1-F55 -> 0.975 | H55: 0.025 | I55: =1-H55 -> 0.975
A57: Catastrophic Event | D57: CORPO&MNREM-1 | F57: CORPO&MNREM-1 | H57: CORPO&MNREM-2
B58: EV Event Cost | D58: =_xll.RiskDiscrete(D59:E59,D60:E60) ->  | F58: =_xll.RiskDiscrete(F59:G59,F60:G60) ->  | H58: =_xll.RiskDiscrete(H59:I59,H60:I60) -> 
B59: Event Cost | D59: 30000 | E59: 0 | F59: 30000 | G59: 0 | H59: 30000 | I59: 0
B60: Event Probability | D60: =1%/2 -> 0.005 | E60: =1-D60 -> 0.995 | F60: 0.01 | G60: =1-F60 -> 0.99 | H60: 0.01 | I60: =1-H60 -> 0.99
A62: New System Requirements/Needs (e.g. for compliance/regulations, etc.)
D63: CORPO&MNREM-1 | F63: CORPO&MNREM-1 | H63: CORPO&MNREM-1
B64: EV Additional Annual Cost | D64: =_xll.RiskDiscrete(D65:E65,D66:E66) ->  | F64: =_xll.RiskDiscrete(F65:G65,F66:G66) ->  | H64: =_xll.RiskDiscrete(H65:I65,H66:I66) -> 
B65: Annual Cost (Additional) | D65: 5000 | E65: 0 | F65: 5000 | G65: 0 | H65: 5000 | I65: 0
B66: Probability of Additional Costs | D66: =10%/2 -> 0.05 | E66: =1-D66 -> 0.95 | F66: 0.1 | G66: =1-F66 -> 0.9 | H66: 0.1 | I66: =1-H66 -> 0.9
A68: Bureau
A69: Base O&M | B69: RiskPert | D69: =C22 -> 162623 | F69: =E22 -> 153609 | H69: =G22 -> 151623
A71: Security | D71: BURO&MSEC-1 | F71: BURO&MSEC-1 | H71: BURO&MSEC-2
D72: =D42 ->  | F72: =F42 ->  | H72: =H42 -> 
A74: Fish - Environmental Compliance | D74: BURO&Mecomp-1 | F74: BURO&Mecomp-1 | H74: BURO&Mecomp-2
D75: =_xll.RiskDiscrete(D76:E76,D77:E77) ->  | F75: =_xll.RiskDiscrete(F76:G76,F77:G77) ->  | H75: =_xll.RiskDiscrete(H76:I76,H77:I77) -> 
B76: Cost of an Event | D76: 2000 | E76: 0 | F76: 2000 | G76: 0 | H76: 2000 | I76: 0
B77: Probability of an event | D77: 0.01 | E77: =1-D77 -> 0.99 | F77: 0.02 | G77: =1-F77 -> 0.98 | H77: 0.02 | I77: =1-H77 -> 0.98
A79: Non-Routine Extraordinary Maintenance
D80: BURO&MNREMsav-1 | F80: BURO&MNREMsav-1 | H80: BURO&MNREMsav-2
B81: EV Additional Annual Cost | D81: =_xll.RiskDiscrete(D82:E82,D83:E83) ->  | F81: =_xll.RiskDiscrete(F82:G82,F83:G83) ->  | H81: =_xll.RiskDiscrete(H82:I82,H83:I83) -> 
B82: Annual Cost (Additional) | D82: 5000 | E82: 0 | F82: 5000 | G82: 0 | H82: 5000 | I82: 0
B83: Probability that Additional Costs will be provided | D83: =2.5%/2 -> 0.0125 | E83: =1-D83 -> 0.9875 | F83: 0.025 | G83: =1-F83 -> 0.975 | H83: 0.025 | I83: =1-H83 -> 0.975
A85: Catastrophic Event | D85: BURO&MNREM-1 | F85: BURO&MNREM-1 | H85: BURO&MNREM-2
B86: EV Event Cost | D86: =_xll.RiskDiscrete(D87:E87,D88:E88) ->  | F86: =_xll.RiskDiscrete(F87:G87,F88:G88) ->  | H86: =_xll.RiskDiscrete(H87:I87,H88:I88) -> 
B87: Event Cost | D87: 30000 | E87: 0 | F87: 30000 | G87: 0 | H87: 30000 | I87: 0
B88: Event Probability | D88: =1%/2 -> 0.005 | E88: =1-D88 -> 0.995 | F88: 0.01 | G88: =1-F88 -> 0.99 | H88: 0.01 | I88: =1-H88 -> 0.99
A90: New System Requirements/Needs (e.g. for compliance/regulations, etc.)
D91: BURO&Mnsneedinc-1 | F91: BURO&Mnsneedinc-1 | H91: BURO&Mnsneedinc-2
B92: EV Additional Annual Cost | D92: =_xll.RiskDiscrete(D93:E93,D94:E94) ->  | F92: =_xll.RiskDiscrete(F93:G93,F94:G94) ->  | H92: =_xll.RiskDiscrete(H93:I93,H94:I94) -> 
B93: Annual Cost (Additional) | D93: 5000 | E93: 0 | F93: 5000 | G93: 0 | H93: 5000 | I93: 0
B94: Probability of Additional Costs | D94: =10%/2 -> 0.05 | E94: =1-D94 -> 0.95 | F94: 0.1 | G94: =1-F94 -> 0.9 | H94: 0.1 | I94: =1-H94 -> 0.9

Sheet Colville&Spokane
A2: Colville & Spokane Settlements | K2: Color Key:
B3: Rates Values (Colville Settlement Assumed) | F3: @Risk | K3: SME Input
B4: FY19 | C4: FY20 | D4: FY21 | F4: =B4 -> FY19 | G4: =C4 -> FY20 | H4: =D4 -> FY21 | K4: Worksheet Formula
B5: ='Risk Summary'!C11 -> 19642.91996 | C5: ='Risk Summary'!E11 -> 22997 | D5: ='Risk Summary'!G11 -> 22997 | F5: =B5+F15*F16*F17 ->  | G5: =_xll.RiskOutput("Spokane Settlement / FY14")+C5+G15*G16*G17 ->  | H5: =_xll.RiskOutput("Spokane Settlement / FY15")+D5+H15*H16*H17 ->  | I5: =_xll.RiskOutput("Spokane Settlement / FY14 and FY15")+H5+G5 ->  | K5: @Risk Output
K6: Linked to Summary
D7: Probability of Occurance | E7: discrete | F7: =_xll.RiskDiscrete(F8:G8,F9:G9) ->  | K7: @Risk Formula
D8: During Rate Period | E8: multiplier | F8: 1 | G8: 0
E9: probability | F9: 0.2 | G9: =1-F9 -> 0.8
D11: Year of Occurance (if occurs) | E11: discrete | F11: =_xll.RiskDiscrete(F12:H12,F13:H13) -> 
E12: Year | F12: 1 | G12: 2 | H12: 3
E13: Probability | F13: 0 | G13: 0.5 | H13: 0.5
E15: Forecast Colville Payment | F15: =B5 -> 19642.91996 | G15: =C5 -> 22997 | H15: =D5 -> 22997
E16: Spokane Multiplier | F16: 0.25 | G16: =F16 -> 0.25 | H16: =F16 -> 0.25
E17: Occurs this year? | F17: =AND($F$11<=F12,$F$7) ->  | G17: =AND($F$11<=G12,$F$7) ->  | H17: =AND($F$11<=H12,$F$7) -> 
A20: Colville Settlement Calculation
A21: Colville Settlement Uncertainty has been removed from NORM for the initial proposal. In evaluating and updating the model, we found that the model produced results that were, overall, counter-intuititve.
A22: The settlement payment is calculated based on several uncertaintites including Power Sales Revenue and Power Sales MWh, and Grand Coolie Generation MWh. The correlations between these items
A23: is not readily assessable in NORM, nor is the correlation between the level of the Colville Settlement Payment and Power Services Net Revenue. When modeling the risk without correlations, Colville
A24: Settlement risk will increase BPA's net revenue risk, as measured by the standard deviation of net revenue. We believe that, if correlations were taken into account, The
A25: Colville Settlement risk is likely to decrease or have minimal effect on overall Net Revenue uncertainty. Riskmod contains models of some of the key uncertainties in the colville payment,
A26: along with implied correlation between those uncertainties. Because of this, we plan to model the uncertainty in the Colville Settlement in Riskmod for the final proposal.

Sheet F&W Expense
N2: Color Key:
N3: SME Input
F4: 2019 | G4: @risk | H4: =F4+1 -> 2020 | I4: @risk | J4: =+H4+1 -> 2021 | K4: @risk | N4: Worksheet Formula
G5: FY19 | I5: FY20 | K5: FY21 | L5: FY18 and FY19 | N5: @Risk Output
E6: F&W Roll Up (excludes Lower Snake Hatch) | G6: =G9+G14+G18 ->  | I6: =I9+I14+I18 ->  | K6: =K9+K14+K18 ->  | L6: =SUM(G6:K6) ->  | N6: Linked to Summary
N7: @Risk Formula
A9: RiskPert | E9: F&W Direct Program Cost | F9: ='Risk Summary'!C22 -> 242999.9999 | G9: =_xll.RiskPert(F10,F11,F12) ->  | H9: 249000 | I9: =_xll.RiskPert(H10,H11,H12) ->  | J9: 249000 | K9: =_xll.RiskPert(J10,J11,J12) ->  | L9: =_xll.RiskOutput("F&W Direct Program Cost / FY14 and FY15")+(I9+K9) -> 
E10: Min | F10: =F9*0.975 -> 236924.9999 | H10: =H9*0.95 -> 236550 | J10: =J9*0.95 -> 236550
E11: Most Likely | F11: =F9*0.987 -> 239840.9999 | H11: =H9*0.975 -> 242775 | J11: =J9*0.975 -> 242775
E12: Max | F12: =F9 -> 242999.9999 | H12: =H9 -> 249000 | J12: =J9 -> 249000
A14: RiskDiscrete | E14: Reclamation - Leavenworth Complex O&M | F14: 0 | G14: =_xll.RiskDiscrete(F16:G16,F15:G15) ->  | H14: 0 | I14: =_xll.RiskDiscrete(H16:I16,H15:I15) ->  | J14: 0 | K14: =_xll.RiskDiscrete(J16:K16,J15:K15) ->  | L14: =_xll.RiskOutput("Leavenworth Complex O&M Impact on Net Revenue / FY14 and FY15")+(I14+K14) -> 
E15: P | F15: =1%/2 -> 0.005 | G15: =1-F15 -> 0.995 | H15: 0.01 | I15: =1-H15 -> 0.99 | J15: 0.01 | K15: =1-J15 -> 0.99
E16: Value | F16: 1000 | G16: 0 | H16: 1000 | I16: 0 | J16: 1000 | K16: 0
A18: RiskDiscrete | E18: COE - Fish Passage Facilities | F18: 0 | G18: =_xll.RiskDiscrete(F20:G20,F19:G19) ->  | H18: 0 | I18: =_xll.RiskDiscrete(H20:I20,H19:I19) ->  | J18: 0 | K18: =_xll.RiskDiscrete(J20:K20,J19:K19) ->  | L18: =_xll.RiskOutput("COE - Fish Passage Facilities Impact on Net Revenue / FY14 and FY15")+(I18+K18) -> 
E19: P | F19: =1%/2 -> 0.005 | G19: =1-F19 -> 0.995 | H19: 0.01 | I19: =1-H19 -> 0.99 | J19: 0.01 | K19: =1-J19 -> 0.99
E20: Value | F20: 1000 | G20: 0 | H20: 1000 | I20: 0 | J20: 1000 | K20: 0
G23: FY 15 | I23: FY 16 | K23: FY 17 | L23: FY16 and FY17
A24: RiskPert | E24: USF&W Lower Snake Hatcheries | F24: ='Risk Summary'!C23 -> 30482.99999 | G24: =_xll.RiskPert(F25,F26,F27) ->  | H24: ='Risk Summary'!E23 -> 30483.249 | I24: =_xll.RiskPert(H25,H26,H27) ->  | J24: ='Risk Summary'!G23 -> 30483.249 | K24: =_xll.RiskPert(J25,J26,J27) ->  | L24: =_xll.RiskOutput("USF&W Lower Snake Hatcheries / FY14 and FY15")+(I24+K24) -> 
E25: Min | F25: =F27*0.95 -> 28958.84999 | H25: =H27*0.9 -> 27434.9241 | J25: =J27*0.9 -> 27434.9241
E26: Most Likely | F26: =F27*0.975 -> 29720.92499 | H26: =H27*0.95 -> 28959.08655 | J26: =J27*0.95 -> 28959.08655
E27: Max | F27: =F24 -> 30482.99999 | H27: =H24 -> 30483.249 | J27: =J24 -> 30483.249

Sheet Interest Rates
AP1: Parameters for each year colum choice
AP2: Low | AQ2: Medium | AR2: High
AN3: P | AP3: 0.25 | AQ3: 0.5 | AR3: 0.25
AN4: Offset | AP4: -1 | AQ4: 0 | AR4: 1
D6: Input | P6: Retabulated | AB6: % of Medium | AP6: Risk Model IR % of forecast
D7: High | H7: Medium | L7: Low | P7: 2019 | T7: 2020 | X7: 2021 | AB7: 2019 | AF7: 2020 | AJ7: 2021 | AN7: @risk | AP7: =_xll.RiskDiscrete($AP$4:$AR$4,$AP$3:$AR$3) ->  | AQ7: =_xll.RiskDiscrete($AP$4:$AR$4,$AP$3:$AR$3) ->  | AR7: =_xll.RiskDiscrete($AP$4:$AR$4,$AP$3:$AR$3) -> 
B8: Tenor | D8: 2019 | E8: 2020 | F8: 2021 | H8: 2019 | I8: 2020 | J8: 2021 | L8: 2019 | M8: 2020 | N8: 2021 | P8: Low | Q8: Medium | R8: High | T8: Low | U8: Medium | V8: High | X8: Low | Y8: Medium | Z8: High | AB8: Low | AC8: Medium | AD8: High | AF8: Low | AG8: Medium | AH8: High | AJ8: Low | AK8: Medium | AL8: High | AN8: Tenor | AO8: Other yrs | AP8: 2019 | AQ8: 2020 | AR8: 2021
B10: 1 | D10: 2.92844475 | E10: 3.22910325 | F10: 3.289161 | H10: 2.90604875 | I10: 3.2080545 | J10: 3.208053 | L10: 2.8693005 | M10: 3.17455275 | N10: 3.169174 | P10: =L10 -> 2.8693005 | Q10: =H10 -> 2.90604875 | R10: =D10 -> 2.92844475 | T10: =M10 -> 3.17455275 | U10: =I10 -> 3.2080545 | V10: =E10 -> 3.22910325 | X10: =N10 -> 3.169174 | Y10: =J10 -> 3.208053 | Z10: =F10 -> 3.289161 | AB10: =P10/$Q10 -> 0.9873545652 | AC10: =Q10/$Q10 -> 1 | AD10: =R10/$Q10 -> 1.007706684 | AF10: =T10/$U10 -> 0.9895569885 | AG10: =U10/$U10 -> 1 | AH10: =V10/$U10 -> 1.00656122 | AJ10: =X10/$Y10 -> 0.9878808112 | AK10: =Y10/$Y10 -> 1 | AL10: =Z10/$Y10 -> 1.025282625 | AN10: 1 | AO10: 1 | AP10: =OFFSET(AC10,0,AP$7) ->  | AQ10: =OFFSET(AG10,0,AQ$7) ->  | AR10: =OFFSET(AK10,0,AR$7) -> 
B11: 2 | D11: 3.3390885 | E11: 3.69253275 | F11: 3.76994025 | H11: 2.99477275 | I11: 3.23182075 | J11: 3.2318185 | L11: 2.94129875 | M11: 3.19311325 | N11: 3.193277 | P11: 2.94129875 | Q11: 2.99477275 | R11: 3.3390885 | T11: 3.19311325 | U11: 3.23182075 | V11: 3.69253275 | X11: 3.193277 | Y11: 3.2318185 | Z11: 3.76994025 | AB11: 0.9821442211 | AC11: 1 | AD11: 1.114972246 | AF11: 0.9880230053 | AG11: 1 | AH11: 1.142554936 | AJ11: 0.9880743612 | AK11: 1 | AL11: 1.166507417 | AN11: 2 | AO11: 1
B12: 3 | D12: 3.707274583 | E12: 4.102778833 | F12: 4.194373583 | H12: 3.088685917 | I12: 3.341254 | J12: 3.341251917 | L12: 3.01520575 | M12: 3.29977125 | N12: 3.30325 | P12: 3.01520575 | Q12: 3.088685917 | R12: 3.707274583 | T12: 3.29977125 | U12: 3.341254 | V12: 4.102778833 | X12: 3.30325 | Y12: 3.341251917 | Z12: 4.194373583 | AB12: 0.9762098936 | AC12: 1 | AD12: 1.200275678 | AF12: 0.9875846763 | AG12: 1 | AH12: 1.227915876 | AJ12: 0.9886264437 | AK12: 1 | AL12: 1.255329945 | AN12: 3 | AO12: 1
B13: 4 | D13: 4.075460667 | E13: 4.513024917 | F13: 4.618806917 | H13: 3.182599083 | I13: 3.45068725 | J13: 3.450685333 | L13: 3.08911275 | M13: 3.40642925 | N13: 3.413223 | P13: 3.08911275 | Q13: 3.182599083 | R13: 4.075460667 | T13: 3.40642925 | U13: 3.45068725 | V13: 4.513024917 | X13: 3.413223 | Y13: 3.450685333 | Z13: 4.618806917 | AB13: 0.9706257902 | AC13: 1 | AD13: 1.280544787 | AF13: 0.9871741491 | AG13: 1 | AH13: 1.307862634 | AJ13: 0.9891435093 | AK13: 1 | AL13: 1.33851872 | AN13: 4 | AO13: 1
B14: 5 | D14: 4.44364675 | E14: 4.923271 | F14: 5.04324025 | H14: 3.27651225 | I14: 3.5601205 | J14: 3.56011875 | L14: 3.16301975 | M14: 3.51308725 | N14: 3.523196 | P14: 3.16301975 | Q14: 3.27651225 | R14: 4.44364675 | T14: 3.51308725 | U14: 3.5601205 | V14: 4.923271 | X14: 3.523196 | Y14: 3.56011875 | Z14: 5.04324025 | AB14: 0.9653617959 | AC14: 1 | AD14: 1.356212463 | AF14: 0.9867888601 | AG14: 1 | AH14: 1.382894483 | AJ14: 0.989628787 | AK14: 1 | AL14: 1.416593267 | AN14: 5 | AO14: 1
B15: 6 | D15: 4.64428345 | E15: 5.12124895 | F15: 5.2457485 | H15: 3.3883862 | I15: 3.6608654 | J15: 3.66086355 | L15: 3.2671792 | M15: 3.6117241 | N15: 3.62306565 | P15: 3.2671792 | Q15: 3.3883862 | R15: 4.64428345 | T15: 3.6117241 | U15: 3.6608654 | V15: 5.12124895 | X15: 3.62306565 | Y15: 3.66086355 | Z15: 5.2457485 | AB15: 0.9642286939 | AC15: 1 | AD15: 1.370647611 | AF15: 0.9865765892 | AG15: 1 | AH15: 1.398917576 | AJ15: 0.989675141 | AK15: 1 | AL15: 1.432926529 | AN15: 6 | AO15: 1
B16: 7 | D16: 4.84492015 | E16: 5.3192269 | F16: 5.44825675 | H16: 3.50026015 | I16: 3.7616103 | J16: 3.76160835 | L16: 3.37133865 | M16: 3.71036095 | N16: 3.7229353 | P16: 3.37133865 | Q16: 3.50026015 | R16: 4.84492015 | T16: 3.71036095 | U16: 3.7616103 | V16: 5.3192269 | X16: 3.7229353 | Y16: 3.76160835 | Z16: 5.44825675 | AB16: 0.9631680234 | AC16: 1 | AD16: 1.384160017 | AF16: 0.9863756886 | AG16: 1 | AH16: 1.414082394 | AJ16: 0.9897190121 | AK16: 1 | AL16: 1.448384904 | AN16: 7 | AO16: 1
B17: 8 | D17: 5.04555685 | E17: 5.51720485 | F17: 5.650765 | H17: 3.6121341 | I17: 3.8623552 | J17: 3.86235315 | L17: 3.4754981 | M17: 3.8089978 | N17: 3.82280495 | P17: 3.4754981 | Q17: 3.6121341 | R17: 5.04555685 | T17: 3.8089978 | U17: 3.8623552 | V17: 5.51720485 | X17: 3.82280495 | Y17: 3.86235315 | Z17: 5.650765 | AB17: 0.9621730544 | AC17: 1 | AD17: 1.396835419 | AF17: 0.9861852685 | AG17: 1 | AH17: 1.428456101 | AJ17: 0.9897605945 | AK17: 1 | AL17: 1.463036854 | AN17: 8 | AO17: 1
B18: 9 | D18: 5.24619355 | E18: 5.7151828 | F18: 5.85327325 | H18: 3.72400805 | I18: 3.9631001 | J18: 3.96309795 | L18: 3.57965755 | M18: 3.90763465 | N18: 3.9226746 | P18: 3.57965755 | Q18: 3.72400805 | R18: 5.24619355 | T18: 3.90763465 | U18: 3.9631001 | V18: 5.7151828 | X18: 3.9226746 | Y18: 3.96309795 | Z18: 5.85327325 | AB18: 0.9612378657 | AC18: 1 | AD18: 1.408749251 | AF18: 0.9860045296 | AG18: 1 | AH18: 1.442099027 | AJ18: 0.9898000629 | AK18: 1 | AL18: 1.476943877 | AN18: 9 | AO18: 1
B19: 10 | D19: 5.44683025 | E19: 5.91316075 | F19: 6.0557815 | H19: 3.835882 | I19: 4.063845 | J19: 4.06384275 | L19: 3.683817 | M19: 4.0062715 | N19: 4.02254425 | P19: 3.683817 | Q19: 3.835882 | R19: 5.44683025 | T19: 4.0062715 | U19: 4.063845 | V19: 5.91316075 | X19: 4.02254425 | Y19: 4.06384275 | Z19: 6.0557815 | AB19: 0.9603572268 | AC19: 1 | AD19: 1.419968146 | AF19: 0.985832752 | AG19: 1 | AH19: 1.455065523 | AJ19: 0.9898375743 | AK19: 1 | AL19: 1.490161375 | AN19: 10 | AO19: 1
B20: 11 | D20: 5.459632036 | E20: 5.923811845 | F20: 6.065215631 | H20: 3.860783274 | I20: 4.087756262 | J20: 4.087754036 | L20: 3.7089475 | M20: 4.028930524 | N20: 4.044152548 | P20: 3.7089475 | Q20: 3.860783274 | R20: 5.459632036 | T20: 4.028930524 | U20: 4.087756262 | V20: 5.923811845 | X20: 4.044152548 | Y20: 4.087754036 | Z20: 6.065215631 | AB20: 0.9606722877 | AC20: 1 | AD20: 1.414125489 | AF20: 0.9856092843 | AG20: 1 | AH20: 1.449159751 | AJ20: 0.9893336322 | AK20: 1 | AL20: 1.483752588 | AN20: 11 | AO20: 1
B21: 12 | D21: 5.472433821 | E21: 5.93446294 | F21: 6.074649762 | H21: 3.885684548 | I21: 4.111667524 | J21: 4.111665321 | L21: 3.734078 | M21: 4.051589548 | N21: 4.065760845 | P21: 3.734078 | Q21: 3.885684548 | R21: 5.472433821 | T21: 4.051589548 | U21: 4.111667524 | V21: 5.93446294 | X21: 4.065760845 | Y21: 4.111665321 | Z21: 6.074649762 | AB21: 0.9609833105 | AC21: 1 | AD21: 1.408357718 | AF21: 0.9853884158 | AG21: 1 | AH21: 1.443322668 | AJ21: 0.9888355514 | AK21: 1 | AL21: 1.477418342 | AN21: 12 | AO21: 1
B22: 13 | D22: 5.485235607 | E22: 5.945114036 | F22: 6.084083893 | H22: 3.910585821 | I22: 4.135578786 | J22: 4.135576607 | L22: 3.7592085 | M22: 4.074248571 | N22: 4.087369143 | P22: 3.7592085 | Q22: 3.910585821 | R22: 5.485235607 | T22: 4.074248571 | U22: 4.135578786 | V22: 5.945114036 | X22: 4.087369143 | Y22: 4.135576607 | Z22: 6.084083893 | AB22: 0.9612903723 | AC22: 1 | AD22: 1.402663401 | AF22: 0.9851701013 | AG22: 1 | AH22: 1.437553084 | AJ22: 0.9883432303 | AK22: 1 | AL22: 1.471157343 | AN22: 13 | AO22: 1
B23: 14 | D23: 5.498037393 | E23: 5.955765131 | F23: 6.093518024 | H23: 3.935487095 | I23: 4.159490048 | J23: 4.159487893 | L23: 3.784339 | M23: 4.096907595 | N23: 4.10897744 | P23: 3.784339 | Q23: 3.935487095 | R23: 5.498037393 | T23: 4.096907595 | U23: 4.159490048 | V23: 5.955765131 | X23: 4.10897744 | Y23: 4.159487893 | Z23: 6.093518024 | AB23: 0.9615935482 | AC23: 1 | AD23: 1.397041144 | AF23: 0.9849542969 | AG23: 1 | AH23: 1.431849833 | AJ23: 0.9878565694 | AK23: 1 | AL23: 1.464968328 | AN23: 14 | AO23: 1
B24: 15 | D24: 5.510839179 | E24: 5.966416226 | F24: 6.102952155 | H24: 3.960388369 | I24: 4.18340131 | J24: 4.183399179 | L24: 3.8094695 | M24: 4.119566619 | N24: 4.130585738 | P24: 3.8094695 | Q24: 3.960388369 | R24: 5.510839179 | T24: 4.119566619 | U24: 4.18340131 | V24: 5.966416226 | X24: 4.130585738 | Y24: 4.183399179 | Z24: 6.102952155 | AB24: 0.9618929118 | AC24: 1 | AD24: 1.391489588 | AF24: 0.9847409594 | AG24: 1 | AH24: 1.42621178 | AJ24: 0.9873754719 | AK24: 1 | AL24: 1.458850063 | AN24: 15 | AO24: 1
B25: 16 | D25: 5.523640964 | E25: 5.977067321 | F25: 6.112386286 | H25: 3.985289643 | I25: 4.207312571 | J25: 4.207310464 | L25: 3.8346 | M25: 4.142225643 | N25: 4.152194036 | P25: 3.8346 | Q25: 3.985289643 | R25: 5.523640964 | T25: 4.142225643 | U25: 4.207312571 | V25: 5.977067321 | X25: 4.152194036 | Y25: 4.207310464 | Z25: 6.112386286 | AB25: 0.9621885342 | AC25: 1 | AD25: 1.386007407 | AF25: 0.9845300468 | AG25: 1 | AH25: 1.420637811 | AJ25: 0.9868998428 | AK25: 1 | AL25: 1.452801341 | AN25: 16 | AO25: 1
B26: 17 | D26: 5.53644275 | E26: 5.987718417 | F26: 6.121820417 | H26: 4.010190917 | I26: 4.231223833 | J26: 4.23122175 | L26: 3.8597305 | M26: 4.164884667 | N26: 4.173802333 | P26: 3.8597305 | Q26: 4.010190917 | R26: 5.53644275 | T26: 4.164884667 | U26: 4.231223833 | V26: 5.987718417 | X26: 4.173802333 | Y26: 4.23122175 | Z26: 6.121820417 | AB26: 0.9624804854 | AC26: 1 | AD26: 1.38059331 | AF26: 0.984321518 | AG26: 1 | AH26: 1.415126841 | AJ26: 0.9864295894 | AK26: 1 | AL26: 1.446820984 | AN26: 17 | AO26: 1
B27: 18 | D27: 5.549244536 | E27: 5.998369512 | F27: 6.131254548 | H27: 4.03509219 | I27: 4.255135095 | J27: 4.255133036 | L27: 3.884861 | M27: 4.18754369 | N27: 4.195410631 | P27: 3.884861 | Q27: 4.03509219 | R27: 5.549244536 | T27: 4.18754369 | U27: 4.255135095 | V27: 5.998369512 | X27: 4.195410631 | Y27: 4.255133036 | Z27: 6.131254548 | AB27: 0.9627688332 | AC27: 1 | AD27: 1.375246035 | AF27: 0.9841153328 | AG27: 1 | AH27: 1.409677808 | AJ27: 0.985964621 | AK27: 1 | AL27: 1.440907839 | AN27: 18 | AO27: 1
B28: 19 | D28: 5.562046321 | E28: 6.009020607 | F28: 6.140688679 | H28: 4.059993464 | I28: 4.279046357 | J28: 4.279044321 | L28: 3.9099915 | M28: 4.210202714 | N28: 4.217018929 | P28: 3.9099915 | Q28: 4.059993464 | R28: 5.562046321 | T28: 4.210202714 | U28: 4.279046357 | V28: 6.009020607 | X28: 4.217018929 | Y28: 4.279044321 | Z28: 6.140688679 | AB28: 0.9630536439 | AC28: 1 | AD28: 1.369964353 | AF28: 0.983911452 | AG28: 1 | AH28: 1.404289672 | AJ28: 0.9855048492 | AK28: 1 | AL28: 1.435060779 | AN28: 19 | AO28: 1
B29: 20 | D29: 5.574848107 | E29: 6.019671702 | F29: 6.15012281 | H29: 4.084894738 | I29: 4.302957619 | J29: 4.302955607 | L29: 3.935122 | M29: 4.232861738 | N29: 4.238627226 | P29: 3.935122 | Q29: 4.084894738 | R29: 5.574848107 | T29: 4.232861738 | U29: 4.302957619 | V29: 6.019671702 | X29: 4.238627226 | Y29: 4.302955607 | Z29: 6.15012281 | AB29: 0.9633349822 | AC29: 1 | AD29: 1.364747066 | AF29: 0.983709837 | AG29: 1 | AH29: 1.39896142 | AJ29: 0.9850501872 | AK29: 1 | AL29: 1.429278703 | AN29: 20 | AO29: 1
B30: 21 | D30: 5.587649893 | E30: 6.030322798 | F30: 6.15955694 | H30: 4.109796012 | I30: 4.326868881 | J30: 4.326866893 | L30: 3.9602525 | M30: 4.255520762 | N30: 4.260235524 | P30: 3.9602525 | Q30: 4.109796012 | R30: 5.587649893 | T30: 4.255520762 | U30: 4.326868881 | V30: 6.030322798 | X30: 4.260235524 | Y30: 4.326866893 | Z30: 6.15955694 | AB30: 0.9636129113 | AC30: 1 | AD30: 1.359593001 | AF30: 0.9835104504 | AG30: 1 | AH30: 1.393692059 | AJ30: 0.9846005503 | AK30: 1 | AL30: 1.423560533 | AN30: 21 | AO30: 1
B31: 22 | D31: 5.600451679 | E31: 6.040973893 | F31: 6.168991071 | H31: 4.134697286 | I31: 4.350780143 | J31: 4.350778179 | L31: 3.985383 | M31: 4.278179786 | N31: 4.281843821 | P31: 3.985383 | Q31: 4.134697286 | R31: 5.600451679 | T31: 4.278179786 | U31: 4.350780143 | V31: 6.040973893 | X31: 4.281843821 | Y31: 4.350778179 | Z31: 6.168991071 | AB31: 0.9638874927 | AC31: 1 | AD31: 1.354501017 | AF31: 0.9833132554 | AG31: 1 | AH31: 1.388480616 | AJ31: 0.9841558557 | AK31: 1 | AL31: 1.417905216 | AN31: 22 | AO31: 1
B32: 23 | D32: 5.613253464 | E32: 6.051624988 | F32: 6.178425202 | H32: 4.15959856 | I32: 4.374691405 | J32: 4.374689464 | L32: 4.0105135 | M32: 4.30083881 | N32: 4.303452119 | P32: 4.0105135 | Q32: 4.15959856 | R32: 5.613253464 | T32: 4.30083881 | U32: 4.374691405 | V32: 6.051624988 | X32: 4.303452119 | Y32: 4.374689464 | Z32: 6.178425202 | AB32: 0.9641587866 | AC32: 1 | AD32: 1.349469999 | AF32: 0.983118216 | AG32: 1 | AH32: 1.383326143 | AJ32: 0.9837160224 | AK32: 1 | AL32: 1.41231172 | AN32: 23 | AO32: 1
B33: 24 | D33: 5.62605525 | E33: 6.062276083 | F33: 6.187859333 | H33: 4.184499833 | I33: 4.398602667 | J33: 4.39860075 | L33: 4.035644 | M33: 4.323497833 | N33: 4.325060417 | P33: 4.035644 | Q33: 4.184499833 | R33: 5.62605525 | T33: 4.323497833 | U33: 4.398602667 | V33: 6.062276083 | X33: 4.325060417 | Y33: 4.39860075 | Z33: 6.187859333 | AB33: 0.9644268517 | AC33: 1 | AD33: 1.344498859 | AF33: 0.9829252972 | AG33: 1 | AH33: 1.378227711 | AJ33: 0.983280971 | AK33: 1 | AL33: 1.406779038 | AN33: 24 | AO33: 1
B34: 25 | D34: 5.638857036 | E34: 6.072927179 | F34: 6.197293464 | H34: 4.209401107 | I34: 4.422513929 | J34: 4.422512036 | L34: 4.0607745 | M34: 4.346156857 | N34: 4.346668714 | P34: 4.0607745 | Q34: 4.209401107 | R34: 5.638857036 | T34: 4.346156857 | U34: 4.422513929 | V34: 6.072927179 | X34: 4.346668714 | Y34: 4.422512036 | Z34: 6.197293464 | AB34: 0.9646917451 | AC34: 1 | AD34: 1.339586533 | AF34: 0.9827344645 | AG34: 1 | AH34: 1.37318441 | AJ34: 0.9828506241 | AK34: 1 | AL34: 1.401306184 | AN34: 25 | AO34: 1
B35: 26 | D35: 5.651658821 | E35: 6.083578274 | F35: 6.206727595 | H35: 4.234302381 | I35: 4.44642519 | J35: 4.446423321 | L35: 4.085905 | M35: 4.368815881 | N35: 4.368277012 | P35: 4.085905 | Q35: 4.234302381 | R35: 5.651658821 | T35: 4.368815881 | U35: 4.44642519 | V35: 6.083578274 | X35: 4.368277012 | Y35: 4.446423321 | Z35: 6.206727595 | AB35: 0.964953523 | AC35: 1 | AD35: 1.334731985 | AF35: 0.9825456842 | AG35: 1 | AH35: 1.368195351 | AJ35: 0.9824249056 | AK35: 1 | AL35: 1.395892192 | AN35: 26 | AO35: 1
B36: 27 | D36: 5.664460607 | E36: 6.094229369 | F36: 6.216161726 | H36: 4.259203655 | I36: 4.470336452 | J36: 4.470334607 | L36: 4.1110355 | M36: 4.391474905 | N36: 4.38988531 | P36: 4.1110355 | Q36: 4.259203655 | R36: 5.664460607 | T36: 4.391474905 | U36: 4.470336452 | V36: 6.094229369 | X36: 4.38988531 | Y36: 4.470334607 | Z36: 6.216161726 | AB36: 0.9652122399 | AC36: 1 | AD36: 1.3299342 | AF36: 0.9823589234 | AG36: 1 | AH36: 1.363259664 | AJ36: 0.9820037414 | AK36: 1 | AL36: 1.390536117 | AN36: 27 | AO36: 1
B37: 28 | D37: 5.677262393 | E37: 6.104880464 | F37: 6.225595857 | H37: 4.284104929 | I37: 4.494247714 | J37: 4.494245893 | L37: 4.136166 | M37: 4.414133929 | N37: 4.411493607 | P37: 4.136166 | Q37: 4.284104929 | R37: 5.677262393 | T37: 4.414133929 | U37: 4.494247714 | V37: 6.104880464 | X37: 4.411493607 | Y37: 4.494245893 | Z37: 6.225595857 | AB37: 0.9654679493 | AC37: 1 | AD37: 1.32519219 | AF37: 0.98217415 | AG37: 1 | AH37: 1.358376496 | AJ37: 0.9815870587 | AK37: 1 | AL37: 1.385237035 | AN37: 28 | AO37: 1
B38: 29 | D38: 5.690064179 | E38: 6.11553156 | F38: 6.235029988 | H38: 4.309006202 | I38: 4.518158976 | J38: 4.518157179 | L38: 4.1612965 | M38: 4.436792952 | N38: 4.433101905 | P38: 4.1612965 | Q38: 4.309006202 | R38: 5.690064179 | T38: 4.436792952 | U38: 4.518158976 | V38: 6.11553156 | X38: 4.433101905 | Y38: 4.518157179 | Z38: 6.235029988 | AB38: 0.9657207032 | AC38: 1 | AD38: 1.320504987 | AF38: 0.9819913323 | AG38: 1 | AH38: 1.353545015 | AJ38: 0.9811747864 | AK38: 1 | AL38: 1.379994042 | AN38: 29 | AO38: 1
B39: 30 | D39: 5.71566775 | E39: 6.13683375 | F39: 6.25389825 | H39: 4.35880875 | I39: 4.5659815 | J39: 4.56597975 | L39: 4.2115575 | M39: 4.482111 | N39: 4.4763185 | P39: 4.2115575 | Q39: 4.35880875 | R39: 5.71566775 | T39: 4.482111 | U39: 4.5659815 | V39: 6.13683375 | X39: 4.4763185 | Y39: 4.56597975 | Z39: 6.25389825 | AB39: 0.9662175474 | AC39: 1 | AD39: 1.311291244 | AF39: 0.9816314411 | AG39: 1 | AH39: 1.344033862 | AJ39: 0.9803631959 | AK39: 1 | AL39: 1.369672796 | AN39: 30 | AO39: 1

Sheet Interest Expense
I7: Input Base Interest Expense | P7: Risk Adjusted Expense | U7: Combined Results
I8: 1.38 | J8: 1.6 | K8: 1.64 | O8: Rate for VRD: | P8: =I8*HLOOKUP(P9,'Interest Rates'!$AP$8:$AR$10,3,FALSE) ->  | Q8: =J8*HLOOKUP(Q9,'Interest Rates'!$AP$8:$AR$10,3,FALSE) ->  | R8: =K8*HLOOKUP(R9,'Interest Rates'!$AP$8:$AR$10,3,FALSE) -> 
I9: FY2019 | J9: FY2020 | K9: FY2021 | P9: 2019 | Q9: 2020 | R9: 2021 | U9: 2019 | V9: 2020 | W9: 2021
A10: Source Data | B10: Project | C10: In Service Date | D10: Due Date | E10: Interest Rate | F10: Variable | G10: Current Principal | H10: Paid or Due Date if NA | I10: 2019-09-30 | J10: 2020-09-30 | K10: 2021-09-30 | M10: Tenor | N10: FY Issued | O10: Risk Adjusted IR | P10: 2019-09-30 | Q10: 2020-09-30 | R10: 2021-09-30
A11: Fed projected | B11: Bureau Direct | C11: 2018-08-31 | D11: 2048-08-31 | E11: 0.92 | F11: Yes | G11: 60000 | H11: 2048-08-31 | I11: 828 | J11: 960 | K11: 984 | M11: =MEDIAN(ROUND((H11-C11)/365,0),1,30) -> 30 | N11: =YEAR(C11)+IF(MONTH(C11)>=10,1,0) -> 2018 | O11: =VLOOKUP(M11,'Interest Rates'!$AN$10:$AR$39,IFERROR(MATCH(N11,'Interest Rates'!$AN$8:$AR$8,0),2),TRUE)*E11 -> 0.92 | P11: =(MAX(0,MIN(P$10,$H11)-MAX($C11,P$10-365))/365)*$G11*IF($F11="Yes",P$8,$O11)/100 ->  | T11: Interest Expense Delta | U11: =(SUM(P11:P249)-SUM(I11:I249))/2 ->  | V11: =SUM(Q11:Q249)-SUM(J11:J249) ->  | W11: =SUM(R11:R249)-SUM(K11:K249) -> 
A12: Fed projected | B12: Bureau Direct | C12: 2018-09-30 | D12: 2048-09-30 | E12: 0.92 | F12: Yes | G12: 27000 | H12: 2048-09-30 | I12: 372.6 | J12: 432 | K12: 442.8 | M12: 30 | N12: 2018 | O12: =VLOOKUP(M12,'Interest Rates'!$AN$10:$AR$39,IFERROR(MATCH(N12,'Interest Rates'!$AN$8:$AR$8,0),2),TRUE)*E12 -> 0.92
A13: Fed projected | B13: Bureau Direct | C13: 2019-07-31 | D13: 2035-07-31 | E13: 1.38 | F13: Yes | G13: 12000 | H13: 2035-07-31 | I13: 27.67561644 | J13: 192 | K13: 196.8 | M13: 16 | N13: 2019 | O13: =VLOOKUP(M13,'Interest Rates'!$AN$10:$AR$39,IFERROR(MATCH(N13,'Interest Rates'!$AN$8:$AR$8,0),2),TRUE)*E13 ->  | T13: Input Expense | U13: ='Risk Summary'!C25 -> 70583.32498 | V13: ='Risk Summary'!E25 -> 60889.87656 | W13: ='Risk Summary'!G25 -> 67687.7088
A14: Fed projected | B14: Bureau Direct | C14: 2019-08-31 | D14: 2036-08-31 | E14: 1.38 | F14: Yes | G14: 11000 | H14: 2036-08-31 | I14: 12.47671233 | J14: 176 | K14: 180.4 | M14: 17 | N14: 2019 | O14: =VLOOKUP(M14,'Interest Rates'!$AN$10:$AR$39,IFERROR(MATCH(N14,'Interest Rates'!$AN$8:$AR$8,0),2),TRUE)*E14 ->  | T14: @Risk | U14: =_xll.RiskOutput(,"=Interest Expense",1)+U13+U11 ->  | V14: =_xll.RiskOutput(,"=Interest Expense",2)+V13+V11 ->  | W14: =_xll.RiskOutput(,"=Interest Expense",3)+W13+W11 -> 
A15: Fed projected | B15: Bureau Direct | C15: 2019-09-30 | D15: 2037-09-30 | E15: 1.38 | F15: Yes | G15: 11000 | H15: 2037-09-30 | I15: 0 | J15: 176 | K15: 180.4 | M15: 18 | N15: 2019 | O15: =VLOOKUP(M15,'Interest Rates'!$AN$10:$AR$39,IFERROR(MATCH(N15,'Interest Rates'!$AN$8:$AR$8,0),2),TRUE)*E15 -> 
A16: Fed projected | B16: Bureau Direct | C16: 2020-07-31 | D16: 2038-07-31 | E16: 1.6 | F16: Yes | G16: 40000 | H16: 2038-07-31 | I16: 0 | J16: 106.9589041 | K16: 656 | M16: 18 | N16: 2020 | O16: =VLOOKUP(M16,'Interest Rates'!$AN$10:$AR$39,IFERROR(MATCH(N16,'Interest Rates'!$AN$8:$AR$8,0),2),TRUE)*E16 -> 
A17: Fed projected | B17: Bureau Direct | C17: 2020-08-31 | D17: 2039-08-31 | E17: 1.6 | F17: Yes | G17: 16000 | H17: 2039-08-31 | I17: 0 | J17: 21.04109589 | K17: 262.4 | M17: 19 | N17: 2020 | O17: =VLOOKUP(M17,'Interest Rates'!$AN$10:$AR$39,IFERROR(MATCH(N17,'Interest Rates'!$AN$8:$AR$8,0),2),TRUE)*E17 -> 
A18: Fed projected | B18: Bureau Direct | C18: 2020-08-31 | D18: 2039-08-31 | E18: 4.61 | F18: No | G18: 24000 | H18: 2039-08-31 | I18: 0 | J18: 90.9369863 | K18: 1106.4 | M18: 19 | N18: 2020 | O18: =VLOOKUP(M18,'Interest Rates'!$AN$10:$AR$39,IFERROR(MATCH(N18,'Interest Rates'!$AN$8:$AR$8,0),2),TRUE)*E18 -> 
A19: Fed projected | B19: Bureau Direct | C19: 2020-09-30 | D19: 2040-09-30 | E19: 4.65 | F19: No | G19: 41000 | H19: 2040-09-30 | I19: 0 | J19: 0 | K19: 1906.5 | M19: 20 | N19: 2020 | O19: =VLOOKUP(M19,'Interest Rates'!$AN$10:$AR$39,IFERROR(MATCH(N19,'Interest Rates'!$AN$8:$AR$8,0),2),TRUE)*E19 -> 
A20: Fed projected | B20: Bureau Direct | C20: 2021-07-31 | D20: 2041-07-31 | E20: 4.71 | F20: No | G20: 37000 | H20: 2041-07-31 | I20: 0 | J20: 0 | K20: 291.2457534 | M20: 20 | N20: 2021 | O20: =VLOOKUP(M20,'Interest Rates'!$AN$10:$AR$39,IFERROR(MATCH(N20,'Interest Rates'!$AN$8:$AR$8,0),2),TRUE)*E20 -> 
A21: Fed projected | B21: Bureau Direct | C21: 2021-08-31 | D21: 2042-08-31 | E21: 4.75 | F21: No | G21: 37000 | H21: 2042-08-31 | I21: 0 | J21: 0 | K21: 144.4520548 | M21: 21 | N21: 2021 | O21: =VLOOKUP(M21,'Interest Rates'!$AN$10:$AR$39,IFERROR(MATCH(N21,'Interest Rates'!$AN$8:$AR$8,0),2),TRUE)*E21 -> 
A22: Fed projected | B22: Bureau Direct | C22: 2021-09-30 | D22: 2043-09-30 | E22: 4.79 | F22: No | G22: 75000 | H22: 2043-09-30 | I22: 0 | J22: 0 | K22: 0 | M22: 22 | N22: 2021 | O22: =VLOOKUP(M22,'Interest Rates'!$AN$10:$AR$39,IFERROR(MATCH(N22,'Interest Rates'!$AN$8:$AR$8,0),2),TRUE)*E22 -> 
A23: Fed projected | B23: Columbia River Fish Mitigation | C23: 2018-09-30 | D23: 2068-09-30 | E23: 2.75 | F23: No | G23: 63551 | H23: 2068-09-30 | I23: 1747.6525 | J23: 1747.6525 | K23: 1747.6525 | M23: 30 | N23: 2018 | O23: =VLOOKUP(M23,'Interest Rates'!$AN$10:$AR$39,IFERROR(MATCH(N23,'Interest Rates'!$AN$8:$AR$8,0),2),TRUE)*E23 -> 2.75 | P23: 1747.6525 | Q23: 1747.6525 | R23: 1747.6525
A24: Fed projected | B24: Columbia River Fish Mitigation | C24: 2019-09-30 | D24: 2069-09-30 | E24: 3.89 | F24: No | G24: 89061 | H24: 2069-09-30 | I24: 0 | J24: 3464.4729 | K24: 3464.4729 | M24: 30 | N24: 2019 | O24: =VLOOKUP(M24,'Interest Rates'!$AN$10:$AR$39,IFERROR(MATCH(N24,'Interest Rates'!$AN$8:$AR$8,0),2),TRUE)*E24 -> 
A25: Fed projected | B25: Columbia River Fish Mitigation | C25: 2020-09-30 | D25: 2070-09-30 | E25: 4.4 | F25: No | G25: 58193 | H25: 2070-09-30 | I25: 0 | J25: 0 | K25: 2560.492 | M25: 30 | N25: 2020 | O25: =VLOOKUP(M25,'Interest Rates'!$AN$10:$AR$39,IFERROR(MATCH(N25,'Interest Rates'!$AN$8:$AR$8,0),2),TRUE)*E25 -> 
A26: Fed projected | B26: Columbia River Fish Mitigation | C26: 2021-09-30 | D26: 2071-09-30 | E26: 4.66 | F26: No | G26: 14801 | H26: 2071-09-30 | I26: 0 | J26: 0 | K26: 0 | M26: 30 | N26: 2021 | O26: =VLOOKUP(M26,'Interest Rates'!$AN$10:$AR$39,IFERROR(MATCH(N26,'Interest Rates'!$AN$8:$AR$8,0),2),TRUE)*E26 -> 
A27: Fed projected | B27: Construction (AS) | C27: 2018-09-30 | D27: 2022-09-30 | E27: 2.29 | F27: No | G27: 4200 | H27: 2022-09-30 | I27: 96.18 | J27: 96.18 | K27: 96.18 | M27: 4 | N27: 2018 | O27: =VLOOKUP(M27,'Interest Rates'!$AN$10:$AR$39,IFERROR(MATCH(N27,'Interest Rates'!$AN$8:$AR$8,0),2),TRUE)*E27 -> 2.29 | P27: 96.18 | Q27: 96.18 | R27: 96.18
A28: Fed projected | B28: Construction (AS) | C28: 2019-09-30 | D28: 2025-09-30 | E28: 3.34 | F28: No | G28: 6650 | H28: 2025-09-30 | I28: 0 | J28: 222.11 | K28: 222.11 | M28: 6 | N28: 2019 | O28: =VLOOKUP(M28,'Interest Rates'!$AN$10:$AR$39,IFERROR(MATCH(N28,'Interest Rates'!$AN$8:$AR$8,0),2),TRUE)*E28 -> 
A29: Fed projected | B29: Construction (AS) | C29: 2020-09-30 | D29: 2022-09-30 | E29: 3.26 | F29: No | G29: 6300 | H29: 2022-09-30 | I29: 0 | J29: 0 | K29: 205.38 | M29: 2 | N29: 2020 | O29: =VLOOKUP(M29,'Interest Rates'!$AN$10:$AR$39,IFERROR(MATCH(N29,'Interest Rates'!$AN$8:$AR$8,0),2),TRUE)*E29 -> 
A30: Fed projected | B30: Construction (AS) | C30: 2021-09-30 | D30: 2027-09-30 | E30: 3.84 | F30: No | G30: 11200 | H30: 2027-09-30 | I30: 0 | J30: 0 | K30: 0 | M30: 6 | N30: 2021 | O30: =VLOOKUP(M30,'Interest Rates'!$AN$10:$AR$39,IFERROR(MATCH(N30,'Interest Rates'!$AN$8:$AR$8,0),2),TRUE)*E30 -> 
A31: Fed projected | B31: Corps | C31: 2018-08-31 | D31: 2040-08-31 | E31: 0.92 | F31: Yes | G31: 160000 | H31: 2040-08-31 | I31: 2208 | J31: 2560 | K31: 2624 | M31: 22 | N31: 2018 | O31: =VLOOKUP(M31,'Interest Rates'!$AN$10:$AR$39,IFERROR(MATCH(N31,'Interest Rates'!$AN$8:$AR$8,0),2),TRUE)*E31 -> 0.92 | P31: =(MAX(0,MIN(P$10,$H31)-MAX($C31,P$10-365))/365)*$G31*IF($F31="Yes",P$8,$O31)/100 -> 
A32: Fed projected | B32: Corps | C32: 2018-09-30 | D32: 2048-09-30 | E32: 0.92 | F32: Yes | G32: 64000 | H32: 2048-09-30 | I32: 883.2 | J32: 1024 | K32: 1049.6 | M32: 30 | N32: 2018 | O32: =VLOOKUP(M32,'Interest Rates'!$AN$10:$AR$39,IFERROR(MATCH(N32,'Interest Rates'!$AN$8:$AR$8,0),2),TRUE)*E32 -> 0.92
A33: Fed projected | B33: Corps | C33: 2019-07-31 | D33: 2049-07-31 | E33: 1.38 | F33: Yes | G33: 39000 | H33: 2049-07-31 | I33: 89.94575342 | J33: 624 | K33: 639.6 | M33: 30 | N33: 2019 | O33: =VLOOKUP(M33,'Interest Rates'!$AN$10:$AR$39,IFERROR(MATCH(N33,'Interest Rates'!$AN$8:$AR$8,0),2),TRUE)*E33 -> 
A34: Fed projected | B34: Corps | C34: 2019-08-31 | D34: 2049-08-31 | E34: 1.38 | F34: Yes | G34: 39000 | H34: 2049-08-31 | I34: 44.23561644 | J34: 624 | K34: 639.6 | M34: 30 | N34: 2019 | O34: =VLOOKUP(M34,'Interest Rates'!$AN$10:$AR$39,IFERROR(MATCH(N34,'Interest Rates'!$AN$8:$AR$8,0),2),TRUE)*E34 -> 
A35: Fed projected | B35: Corps | C35: 2019-09-30 | D35: 2049-09-30 | E35: 1.38 | F35: Yes | G35: 38000 | H35: 2049-09-30 | I35: 0 | J35: 608 | K35: 623.2 | M35: 30 | N35: 2019 | O35: =VLOOKUP(M35,'Interest Rates'!$AN$10:$AR$39,IFERROR(MATCH(N35,'Interest Rates'!$AN$8:$AR$8,0),2),TRUE)*E35 -> 
A36: Fed projected | B36: Corps | C36: 2020-07-31 | D36: 2050-07-31 | E36: 1.6 | F36: Yes | G36: 43000 | H36: 2050-07-31 | I36: 0 | J36: 114.9808219 | K36: 705.2 | M36: 30 | N36: 2020 | O36: =VLOOKUP(M36,'Interest Rates'!$AN$10:$AR$39,IFERROR(MATCH(N36,'Interest Rates'!$AN$8:$AR$8,0),2),TRUE)*E36 -> 
A37: Fed projected | B37: Corps | C37: 2020-08-31 | D37: 2050-08-31 | E37: 5.004 | F37: No | G37: 43000 | H37: 2050-08-31 | I37: 0 | J37: 176.8536986 | K37: 2151.72 | M37: 30 | N37: 2020 | O37: =VLOOKUP(M37,'Interest Rates'!$AN$10:$AR$39,IFERROR(MATCH(N37,'Interest Rates'!$AN$8:$AR$8,0),2),TRUE)*E37 -> 
A38: Fed projected | B38: Corps | C38: 2020-09-30 | D38: 2050-09-30 | E38: 5.004 | F38: No | G38: 45000 | H38: 2050-09-30 | I38: 0 | J38: 0 | K38: 2251.8 | M38: 30 | N38: 2020 | O38: =VLOOKUP(M38,'Interest Rates'!$AN$10:$AR$39,IFERROR(MATCH(N38,'Interest Rates'!$AN$8:$AR$8,0),2),TRUE)*E38 -> 
A39: Fed projected | B39: Corps | C39: 2021-07-31 | D39: 2021-09-30 | E39: 1.64 | F39: No | G39: 20000 | H39: 2021-09-30 | I39: 0 | J39: 0 | K39: 54.81643836 | M39: 1 | N39: 2021 | O39: =VLOOKUP(M39,'Interest Rates'!$AN$10:$AR$39,IFERROR(MATCH(N39,'Interest Rates'!$AN$8:$AR$8,0),2),TRUE)*E39 -> 
A40: Fed projected | B40: Corps | C40: 2021-07-31 | D40: 2051-07-31 | E40: 5.074 | F40: No | G40: 51000 | H40: 2051-07-31 | I40: 0 | J40: 0 | K40: 432.4716164 | M40: 30 | N40: 2021 | O40: =VLOOKUP(M40,'Interest Rates'!$AN$10:$AR$39,IFERROR(MATCH(N40,'Interest Rates'!$AN$8:$AR$8,0),2),TRUE)*E40 -> 
A41: Fed projected | B41: Corps | C41: 2021-08-31 | D41: 2051-08-31 | E41: 5.074 | F41: No | G41: 71000 | H41: 2051-08-31 | I41: 0 | J41: 0 | K41: 296.0991781 | M41: 30 | N41: 2021 | O41: =VLOOKUP(M41,'Interest Rates'!$AN$10:$AR$39,IFERROR(MATCH(N41,'Interest Rates'!$AN$8:$AR$8,0),2),TRUE)*E41 -> 
A42: Fed projected | B42: Corps | C42: 2021-09-30 | D42: 2051-09-30 | E42: 5.074 | F42: No | G42: 143000 | H42: 2051-09-30 | I42: 0 | J42: 0 | K42: 0 | M42: 30 | N42: 2021 | O42: =VLOOKUP(M42,'Interest Rates'!$AN$10:$AR$39,IFERROR(MATCH(N42,'Interest Rates'!$AN$8:$AR$8,0),2),TRUE)*E42 -> 
A43: Fed projected | B43: Fish and Wildlife | C43: 2018-09-30 | D43: 2033-09-30 | E43: 0.92 | F43: Yes | G43: 51000 | H43: 2033-09-30 | I43: 703.8 | J43: 816 | K43: 836.4 | M43: 15 | N43: 2018 | O43: =VLOOKUP(M43,'Interest Rates'!$AN$10:$AR$39,IFERROR(MATCH(N43,'Interest Rates'!$AN$8:$AR$8,0),2),TRUE)*E43 -> 0.92
A44: Fed projected | B44: Fish and Wildlife | C44: 2019-09-30 | D44: 2034-09-30 | E44: 1.38 | F44: Yes | G44: 44000 | H44: 2034-09-30 | I44: 0 | J44: 704 | K44: 721.6 | M44: =MEDIAN(ROUND((D44-C44)/365,0),1,30) -> 15 | N44: 2019 | O44: =VLOOKUP(M44,'Interest Rates'!$AN$10:$AR$39,IFERROR(MATCH(N44,'Interest Rates'!$AN$8:$AR$8,0),2),TRUE)*E44 -> 
A45: Fed projected | B45: Fish and Wildlife | C45: 2020-09-30 | D45: 2035-09-30 | E45: 4.47 | F45: No | G45: 47000 | H45: 2035-09-30 | I45: 0 | J45: 0 | K45: 2100.9 | M45: 15 | N45: 2020 | O45: =VLOOKUP(M45,'Interest Rates'!$AN$10:$AR$39,IFERROR(MATCH(N45,'Interest Rates'!$AN$8:$AR$8,0),2),TRUE)*E45 -> 
A46: Fed projected | B46: Fish and Wildlife | C46: 2021-09-30 | D46: 2036-09-30 | E46: 4.535 | F46: No | G46: 51000 | H46: 2036-09-30 | I46: 0 | J46: 0 | K46: 0 | M46: 15 | N46: 2021 | O46: =VLOOKUP(M46,'Interest Rates'!$AN$10:$AR$39,IFERROR(MATCH(N46,'Interest Rates'!$AN$8:$AR$8,0),2),TRUE)*E46 -> 
A47: Fed projected | B47: Technology (G) | C47: 2018-09-30 | D47: 2023-09-30 | E47: 0.92 | F47: Yes | G47: 6000 | H47: 2023-09-30 | I47: 82.8 | J47: 96 | K47: 98.4 | M47: 5 | N47: 2018 | O47: =VLOOKUP(M47,'Interest Rates'!$AN$10:$AR$39,IFERROR(MATCH(N47,'Interest Rates'!$AN$8:$AR$8,0),2),TRUE)*E47 -> 0.92
A48: Fed projected | B48: Technology (G) | C48: 2019-09-30 | D48: 2022-09-30 | E48: 1.38 | F48: Yes | G48: 7000 | H48: 2022-09-30 | I48: 0 | J48: 112 | K48: 114.8 | M48: 3 | N48: 2019 | O48: =VLOOKUP(M48,'Interest Rates'!$AN$10:$AR$39,IFERROR(MATCH(N48,'Interest Rates'!$AN$8:$AR$8,0),2),TRUE)*E48 -> 
A49: Fed projected | B49: Technology (G) | C49: 2020-09-30 | D49: 2022-09-30 | E49: 3.26 | F49: No | G49: 4000 | H49: 2022-09-30 | I49: 0 | J49: 0 | K49: 130.4 | M49: 2 | N49: 2020 | O49: =VLOOKUP(M49,'Interest Rates'!$AN$10:$AR$39,IFERROR(MATCH(N49,'Interest Rates'!$AN$8:$AR$8,0),2),TRUE)*E49 -> 
A50: Fed projected | B50: Technology (G) | C50: 2021-09-30 | D50: 2026-09-30 | E50: 3.84 | F50: No | G50: 13000 | H50: 2026-09-30 | I50: 0 | J50: 0 | K50: 0 | M50: 5 | N50: 2021 | O50: =VLOOKUP(M50,'Interest Rates'!$AN$10:$AR$39,IFERROR(MATCH(N50,'Interest Rates'!$AN$8:$AR$8,0),2),TRUE)*E50 -> 
A51: NF projected | B51: Columbia Generating Station | C51: 2019-04-01 | D51: 2030-07-01 | E51: 3.6558 | G51: 13752.787 | H51: 2030-07-01 | I51: 250.6984615 | J51: 502.7743871 | K51: 502.7743871 | M51: 11 | N51: 2019 | O51: =VLOOKUP(M51,'Interest Rates'!$AN$10:$AR$39,IFERROR(MATCH(N51,'Interest Rates'!$AN$8:$AR$8,0),2),TRUE)*E51 ->  | P51: =(MAX(0,MIN(P$10,$H51)-MAX($C51,P$10-365))/365)*$G51*IF($F51="Yes",P$8,$O51)/100 -> 
A52: NF projected | B52: Columbia Generating Station | C52: 2019-04-01 | D52: 2030-07-01 | E52: 3.66 | G52: 3463.546 | H52: 2030-07-01 | I52: 63.20924004 | J52: 126.7657836 | K52: 126.7657836 | M52: 11 | N52: 2019 | O52: =VLOOKUP(M52,'Interest Rates'!$AN$10:$AR$39,IFERROR(MATCH(N52,'Interest Rates'!$AN$8:$AR$8,0),2),TRUE)*E52 -> 
A53: NF projected | B53: Columbia Generating Station | C53: 2019-04-01 | D53: 2031-07-01 | E53: 3.7074 | G53: 13752.787 | H53: 2031-07-01 | I53: 254.2369594 | J53: 509.8708252 | K53: 509.8708252 | M53: 12 | N53: 2019 | O53: =VLOOKUP(M53,'Interest Rates'!$AN$10:$AR$39,IFERROR(MATCH(N53,'Interest Rates'!$AN$8:$AR$8,0),2),TRUE)*E53 -> 
A54: NF projected | B54: Columbia Generating Station | C54: 2019-04-01 | D54: 2031-07-01 | E54: 3.71 | G54: 3590.311 | H54: 2031-07-01 | I54: 66.41780256 | J54: 133.2005381 | K54: 133.2005381 | M54: 12 | N54: 2019 | O54: =VLOOKUP(M54,'Interest Rates'!$AN$10:$AR$39,IFERROR(MATCH(N54,'Interest Rates'!$AN$8:$AR$8,0),2),TRUE)*E54 -> 
A55: NF projected | B55: Columbia Generating Station | C55: 2019-04-01 | D55: 2032-07-01 | E55: 3.7591 | G55: 13752.787 | H55: 2032-07-01 | I55: 257.7823149 | J55: 516.9810161 | K55: 516.9810161 | M55: 13 | N55: 2019 | O55: =VLOOKUP(M55,'Interest Rates'!$AN$10:$AR$39,IFERROR(MATCH(N55,'Interest Rates'!$AN$8:$AR$8,0),2),TRUE)*E55 -> 
A56: NF projected | B56: Columbia Generating Station | C56: 2019-04-01 | D56: 2032-07-01 | E56: 3.76 | G56: 3723.511 | H56: 2032-07-01 | I56: 69.81022048 | J56: 140.0040136 | K56: 140.0040136 | M56: 13 | N56: 2019 | O56: =VLOOKUP(M56,'Interest Rates'!$AN$10:$AR$39,IFERROR(MATCH(N56,'Interest Rates'!$AN$8:$AR$8,0),2),TRUE)*E56 -> 
A57: NF projected | B57: Columbia Generating Station | C57: 2019-04-01 | D57: 2033-07-01 | E57: 3.81 | G57: 3863.516 | H57: 2033-07-01 | I57: 73.39833602 | J57: 147.1999596 | K57: 147.1999596 | M57: 14 | N57: 2019 | O57: =VLOOKUP(M57,'Interest Rates'!$AN$10:$AR$39,IFERROR(MATCH(N57,'Interest Rates'!$AN$8:$AR$8,0),2),TRUE)*E57 -> 
A58: NF projected | B58: Columbia Generating Station | C58: 2019-04-01 | D58: 2033-07-01 | E58: 3.8107 | G58: 13752.787 | H58: 2033-07-01 | I58: 261.3208128 | J58: 524.0774542 | K58: 524.0774542 | M58: 14 | N58: 2019 | O58: =VLOOKUP(M58,'Interest Rates'!$AN$10:$AR$39,IFERROR(MATCH(N58,'Interest Rates'!$AN$8:$AR$8,0),2),TRUE)*E58 -> 
A59: NF projected | B59: Columbia Generating Station | C59: 2019-04-01 | D59: 2034-07-01 | E59: 3.86 | G59: 4010.716 | H59: 2034-07-01 | I59: 77.19474532 | J59: 154.8136376 | K59: 154.8136376 | M59: 15 | N59: 2019 | O59: =VLOOKUP(M59,'Interest Rates'!$AN$10:$AR$39,IFERROR(MATCH(N59,'Interest Rates'!$AN$8:$AR$8,0),2),TRUE)*E59 -> 
A60: NF projected | B60: Columbia Generating Station | C60: 2019-04-01 | D60: 2034-07-01 | E60: 3.8623 | G60: 13752.787 | H60: 2034-07-01 | I60: 264.8593107 | J60: 531.1738923 | K60: 531.1738923 | M60: 15 | N60: 2019 | O60: =VLOOKUP(M60,'Interest Rates'!$AN$10:$AR$39,IFERROR(MATCH(N60,'Interest Rates'!$AN$8:$AR$8,0),2),TRUE)*E60 -> 
A61: NF projected | B61: Columbia Generating Station | C61: 2019-04-01 | D61: 2035-07-01 | E61: 3.91 | G61: 4165.529 | H61: 2035-07-01 | I61: 81.21297937 | J61: 162.8721839 | K61: 162.8721839 | M61: 16 | N61: 2019 | O61: =VLOOKUP(M61,'Interest Rates'!$AN$10:$AR$39,IFERROR(MATCH(N61,'Interest Rates'!$AN$8:$AR$8,0),2),TRUE)*E61 -> 
A62: NF projected | B62: Columbia Generating Station | C62: 2019-04-01 | D62: 2035-07-01 | E62: 3.9139 | G62: 13752.787 | H62: 2035-07-01 | I62: 268.3978086 | J62: 538.2703304 | K62: 538.2703304 | M62: 16 | N62: 2019 | O62: =VLOOKUP(M62,'Interest Rates'!$AN$10:$AR$39,IFERROR(MATCH(N62,'Interest Rates'!$AN$8:$AR$8,0),2),TRUE)*E62 -> 
A63: NF projected | B63: Columbia Generating Station | C63: 2019-04-01 | D63: 2036-07-01 | E63: 3.9655 | G63: 13752.787 | H63: 2036-07-01 | I63: 271.9363065 | J63: 545.3667685 | K63: 545.3667685 | M63: 17 | N63: 2019 | O63: =VLOOKUP(M63,'Interest Rates'!$AN$10:$AR$39,IFERROR(MATCH(N63,'Interest Rates'!$AN$8:$AR$8,0),2),TRUE)*E63 -> 
A64: NF projected | B64: Columbia Generating Station | C64: 2019-04-01 | D64: 2036-07-01 | E64: 3.97 | G64: 4328.402 | H64: 2036-07-01 | I64: 85.68338578 | J64: 171.8375594 | K64: 171.8375594 | M64: 17 | N64: 2019 | O64: =VLOOKUP(M64,'Interest Rates'!$AN$10:$AR$39,IFERROR(MATCH(N64,'Interest Rates'!$AN$8:$AR$8,0),2),TRUE)*E64 -> 
A65: NF projected | B65: Columbia Generating Station | C65: 2019-04-01 | D65: 2037-07-01 | E65: 4.0171 | G65: 13752.787 | H65: 2037-07-01 | I65: 275.4748044 | J65: 552.4632066 | K65: 552.4632066 | M65: 18 | N65: 2019 | O65: =VLOOKUP(M65,'Interest Rates'!$AN$10:$AR$39,IFERROR(MATCH(N65,'Interest Rates'!$AN$8:$AR$8,0),2),TRUE)*E65 -> 
A66: NF projected | B66: Columbia Generating Station | C66: 2019-04-01 | D66: 2037-07-01 | E66: 4.02 | G66: 4500.239 | H66: 2037-07-01 | I66: 90.20698252 | J66: 180.9096078 | K66: 180.9096078 | M66: 18 | N66: 2019 | O66: =VLOOKUP(M66,'Interest Rates'!$AN$10:$AR$39,IFERROR(MATCH(N66,'Interest Rates'!$AN$8:$AR$8,0),2),TRUE)*E66 -> 
A67: NF projected | B67: Columbia Generating Station | C67: 2019-04-01 | D67: 2038-07-01 | E67: 4.0687 | G67: 13752.787 | H67: 2038-07-01 | I67: 279.0133023 | J67: 559.5596447 | K67: 559.5596447 | M67: 19 | N67: 2019 | O67: =VLOOKUP(M67,'Interest Rates'!$AN$10:$AR$39,IFERROR(MATCH(N67,'Interest Rates'!$AN$8:$AR$8,0),2),TRUE)*E67 -> 
A68: NF projected | B68: Columbia Generating Station | C68: 2019-04-01 | D68: 2038-07-01 | E68: 4.07 | G68: 4681.148 | H68: 2038-07-01 | I68: 95.00037177 | J68: 190.5227236 | K68: 190.5227236 | M68: 19 | N68: 2019 | O68: =VLOOKUP(M68,'Interest Rates'!$AN$10:$AR$39,IFERROR(MATCH(N68,'Interest Rates'!$AN$8:$AR$8,0),2),TRUE)*E68 -> 
A69: NF projected | B69: Columbia Generating Station | C69: 2019-04-01 | D69: 2039-07-01 | E69: 4.12 | G69: 4871.671 | H69: 2039-07-01 | I69: 100.0814735 | J69: 200.7128452 | K69: 200.7128452 | M69: 20 | N69: 2019 | O69: =VLOOKUP(M69,'Interest Rates'!$AN$10:$AR$39,IFERROR(MATCH(N69,'Interest Rates'!$AN$8:$AR$8,0),2),TRUE)*E69 -> 
A70: NF projected | B70: Columbia Generating Station | C70: 2019-04-01 | D70: 2039-07-01 | E70: 4.1203 | G70: 13752.787 | H70: 2039-07-01 | I70: 282.5518002 | J70: 566.6560828 | K70: 566.6560828 | M70: 20 | N70: 2019 | O70: =VLOOKUP(M70,'Interest Rates'!$AN$10:$AR$39,IFERROR(MATCH(N70,'Interest Rates'!$AN$8:$AR$8,0),2),TRUE)*E70 -> 
A71: NF projected | B71: Columbia Generating Station | C71: 2019-04-01 | D71: 2040-07-01 | E71: 4.17 | G71: 5072.384 | H71: 2040-07-01 | I71: 105.4694551 | J71: 211.5184128 | K71: 211.5184128 | M71: 21 | N71: 2019 | O71: =VLOOKUP(M71,'Interest Rates'!$AN$10:$AR$39,IFERROR(MATCH(N71,'Interest Rates'!$AN$8:$AR$8,0),2),TRUE)*E71 ->  | P71: =(MAX(0,MIN(P$10,$H71)-MAX($C71,P$10-365))/365)*$G71*IF($F71="Yes",P$8,$O71)/100 -> 
A72: NF projected | B72: Columbia Generating Station | C72: 2019-04-01 | D72: 2040-07-01 | E72: 4.1719 | G72: 13752.787 | H72: 2040-07-01 | I72: 286.0902981 | J72: 573.7525209 | K72: 573.7525209 | M72: 21 | N72: 2019 | O72: =VLOOKUP(M72,'Interest Rates'!$AN$10:$AR$39,IFERROR(MATCH(N72,'Interest Rates'!$AN$8:$AR$8,0),2),TRUE)*E72 -> 
A73: NF projected | B73: Columbia Generating Station | C73: 2019-04-01 | D73: 2041-07-01 | E73: 4.22 | G73: 5283.903 | H73: 2041-07-01 | I73: 111.1849003 | J73: 222.9807066 | K73: 222.9807066 | M73: 22 | N73: 2019 | O73: =VLOOKUP(M73,'Interest Rates'!$AN$10:$AR$39,IFERROR(MATCH(N73,'Interest Rates'!$AN$8:$AR$8,0),2),TRUE)*E73 -> 
A74: NF projected | B74: Columbia Generating Station | C74: 2019-04-01 | D74: 2041-07-01 | E74: 4.2235 | G74: 13752.787 | H74: 2041-07-01 | I74: 289.628796 | J74: 580.8489589 | K74: 580.8489589 | M74: 22 | N74: 2019 | O74: =VLOOKUP(M74,'Interest Rates'!$AN$10:$AR$39,IFERROR(MATCH(N74,'Interest Rates'!$AN$8:$AR$8,0),2),TRUE)*E74 -> 
A75: NF projected | B75: Columbia Generating Station | C75: 2019-04-01 | D75: 2042-07-01 | E75: 4.2751 | G75: 13752.787 | H75: 2042-07-01 | I75: 293.1672939 | J75: 587.945397 | K75: 587.945397 | M75: 23 | N75: =YEAR(C75)+IF(MONTH(C75)>=10,1,0) -> 2019 | O75: =VLOOKUP(M75,'Interest Rates'!$AN$10:$AR$39,IFERROR(MATCH(N75,'Interest Rates'!$AN$8:$AR$8,0),2),TRUE)*E75 -> 
A76: NF projected | B76: Columbia Generating Station | C76: 2019-04-01 | D76: 2042-07-01 | E76: 4.28 | G76: 5506.883 | H76: 2042-07-01 | I76: 117.5244269 | J76: 235.6945924 | K76: 235.6945924 | M76: 23 | N76: 2019 | O76: =VLOOKUP(M76,'Interest Rates'!$AN$10:$AR$39,IFERROR(MATCH(N76,'Interest Rates'!$AN$8:$AR$8,0),2),TRUE)*E76 -> 
A77: NF projected | B77: Columbia Generating Station | C77: 2019-04-01 | D77: 2043-07-01 | E77: 4.3268 | G77: 13752.787 | H77: 2043-07-01 | I77: 296.7126493 | J77: 595.0555879 | K77: 595.0555879 | M77: 24 | N77: 2019 | O77: =VLOOKUP(M77,'Interest Rates'!$AN$10:$AR$39,IFERROR(MATCH(N77,'Interest Rates'!$AN$8:$AR$8,0),2),TRUE)*E77 -> 
A78: NF projected | B78: Columbia Generating Station | C78: 2019-04-01 | D78: 2043-07-01 | E78: 4.33 | G78: 5742.578 | H78: 2043-07-01 | I78: 123.9861923 | J78: 248.6536274 | K78: 248.6536274 | M78: 24 | N78: 2019 | O78: =VLOOKUP(M78,'Interest Rates'!$AN$10:$AR$39,IFERROR(MATCH(N78,'Interest Rates'!$AN$8:$AR$8,0),2),TRUE)*E78 -> 
A79: NF projected | B79: Columbia Generating Station | C79: 2019-04-01 | D79: 2044-07-01 | E79: 4.3784 | G79: 13752.787 | H79: 2044-07-01 | I79: 300.2511472 | J79: 602.152026 | K79: 602.152026 | M79: 25 | N79: 2019 | O79: =VLOOKUP(M79,'Interest Rates'!$AN$10:$AR$39,IFERROR(MATCH(N79,'Interest Rates'!$AN$8:$AR$8,0),2),TRUE)*E79 -> 
A80: NF projected | B80: Columbia Generating Station | C80: 2019-04-01 | D80: 2044-07-01 | E80: 4.38 | G80: 5991.231 | H80: 2044-07-01 | I80: 130.848485 | J80: 262.4159178 | K80: 262.4159178 | M80: 25 | N80: 2019 | O80: =VLOOKUP(M80,'Interest Rates'!$AN$10:$AR$39,IFERROR(MATCH(N80,'Interest Rates'!$AN$8:$AR$8,0),2),TRUE)*E80 -> 
A81: NF projected | B81: Columbia Generating Station | C81: 2019-04-01 | D81: 2030-07-01 | E81: 4.6811 | G81: 1137.933 | H81: 2030-07-01 | I81: 26.56092127 | J81: 53.26778166 | K81: 53.26778166 | M81: 11 | N81: 2019 | O81: =VLOOKUP(M81,'Interest Rates'!$AN$10:$AR$39,IFERROR(MATCH(N81,'Interest Rates'!$AN$8:$AR$8,0),2),TRUE)*E81 -> 
A82: NF projected | B82: Columbia Generating Station | C82: 2019-04-01 | D82: 2030-07-01 | E82: 4.6811 | G82: 104.367 | H82: 2030-07-01 | I82: 2.43606932 | J82: 4.885523637 | K82: 4.885523637 | M82: 11 | N82: 2019 | O82: =VLOOKUP(M82,'Interest Rates'!$AN$10:$AR$39,IFERROR(MATCH(N82,'Interest Rates'!$AN$8:$AR$8,0),2),TRUE)*E82 -> 
A83: NF projected | B83: Columbia Generating Station | C83: 2019-04-01 | D83: 2031-07-01 | E83: 4.7331 | G83: 1137.933 | H83: 2031-07-01 | I83: 26.85597327 | J83: 53.85950682 | K83: 53.85950682 | M83: 12 | N83: 2019 | O83: =VLOOKUP(M83,'Interest Rates'!$AN$10:$AR$39,IFERROR(MATCH(N83,'Interest Rates'!$AN$8:$AR$8,0),2),TRUE)*E83 -> 
A84: NF projected | B84: Columbia Generating Station | C84: 2019-04-01 | D84: 2031-07-01 | E84: 4.7331 | G84: 104.367 | H84: 2031-07-01 | I84: 2.463130397 | J84: 4.939794477 | K84: 4.939794477 | M84: 12 | N84: 2019 | O84: =VLOOKUP(M84,'Interest Rates'!$AN$10:$AR$39,IFERROR(MATCH(N84,'Interest Rates'!$AN$8:$AR$8,0),2),TRUE)*E84 -> 
A85: NF projected | B85: Columbia Generating Station | C85: 2019-04-01 | D85: 2032-07-01 | E85: 4.7851 | G85: 1137.933 | H85: 2032-07-01 | I85: 27.15102526 | J85: 54.45123198 | K85: 54.45123198 | M85: 13 | N85: 2019 | O85: =VLOOKUP(M85,'Interest Rates'!$AN$10:$AR$39,IFERROR(MATCH(N85,'Interest Rates'!$AN$8:$AR$8,0),2),TRUE)*E85 -> 
A86: NF projected | B86: Columbia Generating Station | C86: 2019-04-01 | D86: 2032-07-01 | E86: 4.7851 | G86: 104.367 | H86: 2032-07-01 | I86: 2.490191473 | J86: 4.994065317 | K86: 4.994065317 | M86: 13 | N86: 2019 | O86: =VLOOKUP(M86,'Interest Rates'!$AN$10:$AR$39,IFERROR(MATCH(N86,'Interest Rates'!$AN$8:$AR$8,0),2),TRUE)*E86 -> 
A87: NF projected | B87: Columbia Generating Station | C87: 2019-04-01 | D87: 2033-07-01 | E87: 4.8371 | G87: 1137.933 | H87: 2033-07-01 | I87: 27.44607726 | J87: 55.04295714 | K87: 55.04295714 | M87: 14 | N87: 2019 | O87: =VLOOKUP(M87,'Interest Rates'!$AN$10:$AR$39,IFERROR(MATCH(N87,'Interest Rates'!$AN$8:$AR$8,0),2),TRUE)*E87 -> 
A88: NF projected | B88: Columbia Generating Station | C88: 2019-04-01 | D88: 2033-07-01 | E88: 4.8371 | G88: 104.367 | H88: 2033-07-01 | I88: 2.51725255 | J88: 5.048336157 | K88: 5.048336157 | M88: 14 | N88: 2019 | O88: =VLOOKUP(M88,'Interest Rates'!$AN$10:$AR$39,IFERROR(MATCH(N88,'Interest Rates'!$AN$8:$AR$8,0),2),TRUE)*E88 -> 
A89: NF projected | B89: Columbia Generating Station | C89: 2019-04-01 | D89: 2034-07-01 | E89: 4.8891 | G89: 1137.933 | H89: 2034-07-01 | I89: 27.74112926 | J89: 55.6346823 | K89: 55.6346823 | M89: 15 | N89: 2019 | O89: =VLOOKUP(M89,'Interest Rates'!$AN$10:$AR$39,IFERROR(MATCH(N89,'Interest Rates'!$AN$8:$AR$8,0),2),TRUE)*E89 -> 
A90: NF projected | B90: Columbia Generating Station | C90: 2019-04-01 | D90: 2034-07-01 | E90: 4.8891 | G90: 104.367 | H90: 2034-07-01 | I90: 2.544313626 | J90: 5.102606997 | K90: 5.102606997 | M90: 15 | N90: 2019 | O90: =VLOOKUP(M90,'Interest Rates'!$AN$10:$AR$39,IFERROR(MATCH(N90,'Interest Rates'!$AN$8:$AR$8,0),2),TRUE)*E90 -> 
A91: NF projected | B91: Columbia Generating Station | C91: 2019-04-01 | D91: 2035-07-01 | E91: 4.941 | G91: 1137.933 | H91: 2035-07-01 | I91: 28.03561385 | J91: 56.22526953 | K91: 56.22526953 | M91: 16 | N91: 2019 | O91: =VLOOKUP(M91,'Interest Rates'!$AN$10:$AR$39,IFERROR(MATCH(N91,'Interest Rates'!$AN$8:$AR$8,0),2),TRUE)*E91 ->  | P91: =(MAX(0,MIN(P$10,$H91)-MAX($C91,P$10-365))/365)*$G91*IF($F91="Yes",P$8,$O91)/100 -> 
A92: NF projected | B92: Columbia Generating Station | C92: 2019-04-01 | D92: 2035-07-01 | E92: 4.941 | G92: 104.367 | H92: 2035-07-01 | I92: 2.571322662 | J92: 5.15677347 | K92: 5.15677347 | M92: 16 | N92: 2019 | O92: =VLOOKUP(M92,'Interest Rates'!$AN$10:$AR$39,IFERROR(MATCH(N92,'Interest Rates'!$AN$8:$AR$8,0),2),TRUE)*E92 -> 
A93: NF projected | B93: Columbia Generating Station | C93: 2019-04-01 | D93: 2036-07-01 | E93: 4.993 | G93: 1137.933 | H93: 2036-07-01 | I93: 28.33066585 | J93: 56.81699469 | K93: 56.81699469 | M93: 17 | N93: 2019 | O93: =VLOOKUP(M93,'Interest Rates'!$AN$10:$AR$39,IFERROR(MATCH(N93,'Interest Rates'!$AN$8:$AR$8,0),2),TRUE)*E93 -> 
A94: NF projected | B94: Columbia Generating Station | C94: 2019-04-01 | D94: 2036-07-01 | E94: 4.993 | G94: 104.367 | H94: 2036-07-01 | I94: 2.598383738 | J94: 5.21104431 | K94: 5.21104431 | M94: 17 | N94: 2019 | O94: =VLOOKUP(M94,'Interest Rates'!$AN$10:$AR$39,IFERROR(MATCH(N94,'Interest Rates'!$AN$8:$AR$8,0),2),TRUE)*E94 -> 
A95: NF projected | B95: Columbia Generating Station | C95: 2019-04-01 | D95: 2037-07-01 | E95: 5.045 | G95: 1137.933 | H95: 2037-07-01 | I95: 28.62571784 | J95: 57.40871985 | K95: 57.40871985 | M95: 18 | N95: 2019 | O95: =VLOOKUP(M95,'Interest Rates'!$AN$10:$AR$39,IFERROR(MATCH(N95,'Interest Rates'!$AN$8:$AR$8,0),2),TRUE)*E95 -> 
A96: NF projected | B96: Columbia Generating Station | C96: 2019-04-01 | D96: 2037-07-01 | E96: 5.045 | G96: 104.367 | H96: 2037-07-01 | I96: 2.625444815 | J96: 5.26531515 | K96: 5.26531515 | M96: 18 | N96: 2019 | O96: =VLOOKUP(M96,'Interest Rates'!$AN$10:$AR$39,IFERROR(MATCH(N96,'Interest Rates'!$AN$8:$AR$8,0),2),TRUE)*E96 -> 
A97: NF projected | B97: Columbia Generating Station | C97: 2019-04-01 | D97: 2038-07-01 | E97: 5.097 | G97: 1137.933 | H97: 2038-07-01 | I97: 28.92076984 | J97: 58.00044501 | K97: 58.00044501 | M97: 19 | N97: 2019 | O97: =VLOOKUP(M97,'Interest Rates'!$AN$10:$AR$39,IFERROR(MATCH(N97,'Interest Rates'!$AN$8:$AR$8,0),2),TRUE)*E97 -> 
A98: NF projected | B98: Columbia Generating Station | C98: 2019-04-01 | D98: 2038-07-01 | E98: 5.097 | G98: 104.367 | H98: 2038-07-01 | I98: 2.652505891 | J98: 5.31958599 | K98: 5.31958599 | M98: 19 | N98: 2019 | O98: =VLOOKUP(M98,'Interest Rates'!$AN$10:$AR$39,IFERROR(MATCH(N98,'Interest Rates'!$AN$8:$AR$8,0),2),TRUE)*E98 -> 
A99: NF projected | B99: Columbia Generating Station | C99: 2019-04-01 | D99: 2039-07-01 | E99: 5.149 | G99: 1137.933 | H99: 2039-07-01 | I99: 29.21582184 | J99: 58.59217017 | K99: 58.59217017 | M99: 20 | N99: 2019 | O99: =VLOOKUP(M99,'Interest Rates'!$AN$10:$AR$39,IFERROR(MATCH(N99,'Interest Rates'!$AN$8:$AR$8,0),2),TRUE)*E99 -> 
A100: NF projected | B100: Columbia Generating Station | C100: 2019-04-01 | D100: 2039-07-01 | E100: 5.149 | G100: 104.367 | H100: 2039-07-01 | I100: 2.679566967 | J100: 5.37385683 | K100: 5.37385683 | M100: 20 | N100: 2019 | O100: =VLOOKUP(M100,'Interest Rates'!$AN$10:$AR$39,IFERROR(MATCH(N100,'Interest Rates'!$AN$8:$AR$8,0),2),TRUE)*E100 -> 
A101: NF projected | B101: Columbia Generating Station | C101: 2019-04-01 | D101: 2040-07-01 | E101: 5.2009 | G101: 1137.933 | H101: 2040-07-01 | I101: 29.51030643 | J101: 59.1827574 | K101: 59.1827574 | M101: 21 | N101: 2019 | O101: =VLOOKUP(M101,'Interest Rates'!$AN$10:$AR$39,IFERROR(MATCH(N101,'Interest Rates'!$AN$8:$AR$8,0),2),TRUE)*E101 -> 
A102: NF projected | B102: Columbia Generating Station | C102: 2019-04-01 | D102: 2040-07-01 | E102: 5.2009 | G102: 104.367 | H102: 2040-07-01 | I102: 2.706576003 | J102: 5.428023303 | K102: 5.428023303 | M102: 21 | N102: 2019 | O102: =VLOOKUP(M102,'Interest Rates'!$AN$10:$AR$39,IFERROR(MATCH(N102,'Interest Rates'!$AN$8:$AR$8,0),2),TRUE)*E102 -> 
A103: NF projected | B103: Columbia Generating Station | C103: 2019-04-01 | D103: 2041-07-01 | E103: 5.2529 | G103: 1137.933 | H103: 2041-07-01 | I103: 29.80535843 | J103: 59.77448256 | K103: 59.77448256 | M103: 22 | N103: 2019 | O103: =VLOOKUP(M103,'Interest Rates'!$AN$10:$AR$39,IFERROR(MATCH(N103,'Interest Rates'!$AN$8:$AR$8,0),2),TRUE)*E103 -> 
A104: NF projected | B104: Columbia Generating Station | C104: 2019-04-01 | D104: 2041-07-01 | E104: 5.2529 | G104: 104.367 | H104: 2041-07-01 | I104: 2.73363708 | J104: 5.482294143 | K104: 5.482294143 | M104: 22 | N104: 2019 | O104: =VLOOKUP(M104,'Interest Rates'!$AN$10:$AR$39,IFERROR(MATCH(N104,'Interest Rates'!$AN$8:$AR$8,0),2),TRUE)*E104 -> 
A105: NF projected | B105: Columbia Generating Station | C105: 2019-04-01 | D105: 2042-07-01 | E105: 5.3049 | G105: 1137.933 | H105: 2042-07-01 | I105: 30.10041042 | J105: 60.36620772 | K105: 60.36620772 | M105: 23 | N105: 2019 | O105: =VLOOKUP(M105,'Interest Rates'!$AN$10:$AR$39,IFERROR(MATCH(N105,'Interest Rates'!$AN$8:$AR$8,0),2),TRUE)*E105 -> 
A106: NF projected | B106: Columbia Generating Station | C106: 2019-04-01 | D106: 2042-07-01 | E106: 5.3049 | G106: 104.367 | H106: 2042-07-01 | I106: 2.760698156 | J106: 5.536564983 | K106: 5.536564983 | M106: 23 | N106: 2019 | O106: =VLOOKUP(M106,'Interest Rates'!$AN$10:$AR$39,IFERROR(MATCH(N106,'Interest Rates'!$AN$8:$AR$8,0),2),TRUE)*E106 -> 
A107: NF projected | B107: Columbia Generating Station | C107: 2019-04-01 | D107: 2043-07-01 | E107: 5.3569 | G107: 1137.933 | H107: 2043-07-01 | I107: 30.39546242 | J107: 60.95793288 | K107: 60.95793288 | M107: 24 | N107: 2019 | O107: =VLOOKUP(M107,'Interest Rates'!$AN$10:$AR$39,IFERROR(MATCH(N107,'Interest Rates'!$AN$8:$AR$8,0),2),TRUE)*E107 -> 
A108: NF projected | B108: Columbia Generating Station | C108: 2019-04-01 | D108: 2043-07-01 | E108: 5.3569 | G108: 104.367 | H108: 2043-07-01 | I108: 2.787759232 | J108: 5.590835823 | K108: 5.590835823 | M108: =MEDIAN(ROUND((D108-C108)/365,0),1,30) -> 24 | N108: 2019 | O108: =VLOOKUP(M108,'Interest Rates'!$AN$10:$AR$39,IFERROR(MATCH(N108,'Interest Rates'!$AN$8:$AR$8,0),2),TRUE)*E108 -> 
A109: NF projected | B109: Columbia Generating Station | C109: 2019-04-01 | D109: 2044-07-01 | E109: 5.4089 | G109: 1137.933 | H109: 2044-07-01 | I109: 30.69051442 | J109: 61.54965804 | K109: 61.54965804 | M109: 25 | N109: 2019 | O109: =VLOOKUP(M109,'Interest Rates'!$AN$10:$AR$39,IFERROR(MATCH(N109,'Interest Rates'!$AN$8:$AR$8,0),2),TRUE)*E109 -> 
A110: NF projected | B110: Columbia Generating Station | C110: 2019-04-01 | D110: 2044-07-01 | E110: 5.4089 | G110: 104.367 | H110: 2044-07-01 | I110: 2.814820309 | J110: 5.645106663 | K110: 5.645106663 | M110: 25 | N110: 2019 | O110: =VLOOKUP(M110,'Interest Rates'!$AN$10:$AR$39,IFERROR(MATCH(N110,'Interest Rates'!$AN$8:$AR$8,0),2),TRUE)*E110 -> 
A111: NF projected | B111: Columbia Generating Station | C111: 2020-04-01 | D111: 2030-07-01 | E111: 3.96 | G111: 4928.903 | H111: 2030-07-01 | I111: 0 | J111: 97.32490329 | K111: 195.1845588 | M111: 10 | N111: 2020 | O111: =VLOOKUP(M111,'Interest Rates'!$AN$10:$AR$39,IFERROR(MATCH(N111,'Interest Rates'!$AN$8:$AR$8,0),2),TRUE)*E111 ->  | P111: =(MAX(0,MIN(P$10,$H111)-MAX($C111,P$10-365))/365)*$G111*IF($F111="Yes",P$8,$O111)/100 -> 
A112: NF projected | B112: Columbia Generating Station | C112: 2020-04-01 | D112: 2030-07-01 | E112: 3.9649 | G112: 12856.195 | H112: 2030-07-01 | I112: 0 | J112: 254.1693703 | K112: 509.7352756 | M112: 10 | N112: 2020 | O112: =VLOOKUP(M112,'Interest Rates'!$AN$10:$AR$39,IFERROR(MATCH(N112,'Interest Rates'!$AN$8:$AR$8,0),2),TRUE)*E112 -> 
A113: NF projected | B113: Columbia Generating Station | C113: 2020-04-01 | D113: 2030-07-01 | E113: 3.9649 | G113: 221.527 | H113: 2030-07-01 | I113: 0 | J113: 4.379630061 | K113: 8.783324023 | M113: 10 | N113: 2020 | O113: =VLOOKUP(M113,'Interest Rates'!$AN$10:$AR$39,IFERROR(MATCH(N113,'Interest Rates'!$AN$8:$AR$8,0),2),TRUE)*E113 -> 
A114: NF projected | B114: Columbia Generating Station | C114: 2020-04-01 | D114: 2031-07-01 | E114: 4.01 | G114: 5124.089 | H114: 2031-07-01 | I114: 0 | J114: 102.4565105 | K114: 205.4759689 | M114: 11 | N114: 2020 | O114: =VLOOKUP(M114,'Interest Rates'!$AN$10:$AR$39,IFERROR(MATCH(N114,'Interest Rates'!$AN$8:$AR$8,0),2),TRUE)*E114 -> 
A115: NF projected | B115: Columbia Generating Station | C115: 2020-04-01 | D115: 2031-07-01 | E115: 4.0132 | G115: 12856.195 | H115: 2031-07-01 | I115: 0 | J115: 257.2656351 | K115: 515.9448177 | M115: 11 | N115: 2020 | O115: =VLOOKUP(M115,'Interest Rates'!$AN$10:$AR$39,IFERROR(MATCH(N115,'Interest Rates'!$AN$8:$AR$8,0),2),TRUE)*E115 -> 
A116: NF projected | B116: Columbia Generating Station | C116: 2020-04-01 | D116: 2031-07-01 | E116: 4.0132 | G116: 221.527 | H116: 2031-07-01 | I116: 0 | J116: 4.432982259 | K116: 8.890321564 | M116: 11 | N116: 2020 | O116: =VLOOKUP(M116,'Interest Rates'!$AN$10:$AR$39,IFERROR(MATCH(N116,'Interest Rates'!$AN$8:$AR$8,0),2),TRUE)*E116 -> 
A117: NF projected | B117: Columbia Generating Station | C117: 2020-04-01 | D117: 2032-07-01 | E117: 4.06 | G117: 5329.564 | H117: 2032-07-01 | I117: 0 | J117: 107.8937378 | K117: 216.3802984 | M117: 12 | N117: 2020 | O117: =VLOOKUP(M117,'Interest Rates'!$AN$10:$AR$39,IFERROR(MATCH(N117,'Interest Rates'!$AN$8:$AR$8,0),2),TRUE)*E117 -> 
A118: NF projected | B118: Columbia Generating Station | C118: 2020-04-01 | D118: 2032-07-01 | E118: 4.0616 | G118: 12856.195 | H118: 2032-07-01 | I118: 0 | J118: 260.3683105 | K118: 522.1672161 | M118: 12 | N118: 2020 | O118: =VLOOKUP(M118,'Interest Rates'!$AN$10:$AR$39,IFERROR(MATCH(N118,'Interest Rates'!$AN$8:$AR$8,0),2),TRUE)*E118 -> 
A119: NF projected | B119: Columbia Generating Station | C119: 2020-04-01 | D119: 2032-07-01 | E119: 4.0616 | G119: 221.527 | H119: 2032-07-01 | I119: 0 | J119: 4.486444918 | K119: 8.997540632 | M119: 12 | N119: 2020 | O119: =VLOOKUP(M119,'Interest Rates'!$AN$10:$AR$39,IFERROR(MATCH(N119,'Interest Rates'!$AN$8:$AR$8,0),2),TRUE)*E119 -> 
A120: NF projected | B120: Columbia Generating Station | C120: 2020-04-01 | D120: 2033-07-01 | E120: 4.11 | G120: 12856.195 | H120: 2033-07-01 | I120: 0 | J120: 263.4709859 | K120: 528.3896145 | M120: 13 | N120: 2020 | O120: =VLOOKUP(M120,'Interest Rates'!$AN$10:$AR$39,IFERROR(MATCH(N120,'Interest Rates'!$AN$8:$AR$8,0),2),TRUE)*E120 -> 
A121: NF projected | B121: Columbia Generating Station | C121: 2020-04-01 | D121: 2033-07-01 | E121: 4.11 | G121: 221.527 | H121: 2033-07-01 | I121: 0 | J121: 4.539907576 | K121: 9.1047597 | M121: 13 | N121: 2020 | O121: =VLOOKUP(M121,'Interest Rates'!$AN$10:$AR$39,IFERROR(MATCH(N121,'Interest Rates'!$AN$8:$AR$8,0),2),TRUE)*E121 -> 
A122: NF projected | B122: Columbia Generating Station | C122: 2020-04-01 | D122: 2033-07-01 | E122: 4.11 | G122: 5545.944 | H122: 2033-07-01 | I122: 0 | J122: 113.656905 | K122: 227.9382984 | M122: 13 | N122: 2020 | O122: =VLOOKUP(M122,'Interest Rates'!$AN$10:$AR$39,IFERROR(MATCH(N122,'Interest Rates'!$AN$8:$AR$8,0),2),TRUE)*E122 -> 
A123: NF projected | B123: Columbia Generating Station | C123: 2020-04-01 | D123: 2034-07-01 | E123: 4.1583 | G123: 12856.195 | H123: 2034-07-01 | I123: 0 | J123: 266.5672507 | K123: 534.5991567 | M123: 14 | N123: 2020 | O123: =VLOOKUP(M123,'Interest Rates'!$AN$10:$AR$39,IFERROR(MATCH(N123,'Interest Rates'!$AN$8:$AR$8,0),2),TRUE)*E123 -> 
A124: NF projected | B124: Columbia Generating Station | C124: 2020-04-01 | D124: 2034-07-01 | E124: 4.1583 | G124: 221.527 | H124: 2034-07-01 | I124: 0 | J124: 4.593259775 | K124: 9.211757241 | M124: 14 | N124: 2020 | O124: =VLOOKUP(M124,'Interest Rates'!$AN$10:$AR$39,IFERROR(MATCH(N124,'Interest Rates'!$AN$8:$AR$8,0),2),TRUE)*E124 -> 
A125: NF projected | B125: Columbia Generating Station | C125: 2020-04-01 | D125: 2034-07-01 | E125: 4.16 | G125: 5773.882 | H125: 2034-07-01 | I125: 0 | J125: 119.7677134 | K125: 240.1934912 | M125: 14 | N125: 2020 | O125: =VLOOKUP(M125,'Interest Rates'!$AN$10:$AR$39,IFERROR(MATCH(N125,'Interest Rates'!$AN$8:$AR$8,0),2),TRUE)*E125 -> 
A126: NF projected | B126: Columbia Generating Station | C126: 2020-04-01 | D126: 2035-07-01 | E126: 4.2067 | G126: 12856.195 | H126: 2035-07-01 | I126: 0 | J126: 269.6699261 | K126: 540.8215551 | M126: 15 | N126: 2020 | O126: =VLOOKUP(M126,'Interest Rates'!$AN$10:$AR$39,IFERROR(MATCH(N126,'Interest Rates'!$AN$8:$AR$8,0),2),TRUE)*E126 -> 
A127: NF projected | B127: Columbia Generating Station | C127: 2020-04-01 | D127: 2035-07-01 | E127: 4.2067 | G127: 221.527 | H127: 2035-07-01 | I127: 0 | J127: 4.646722434 | K127: 9.318976309 | M127: 15 | N127: 2020 | O127: =VLOOKUP(M127,'Interest Rates'!$AN$10:$AR$39,IFERROR(MATCH(N127,'Interest Rates'!$AN$8:$AR$8,0),2),TRUE)*E127 -> 
A128: NF projected | B128: Columbia Generating Station | C128: 2020-04-01 | D128: 2035-07-01 | E128: 4.21 | G128: 6014.077 | H128: 2035-07-01 | I128: 0 | J128: 126.2494816 | K128: 253.1926417 | M128: 15 | N128: 2020 | O128: =VLOOKUP(M128,'Interest Rates'!$AN$10:$AR$39,IFERROR(MATCH(N128,'Interest Rates'!$AN$8:$AR$8,0),2),TRUE)*E128 -> 
A129: NF projected | B129: Columbia Generating Station | C129: 2020-04-01 | D129: 2036-07-01 | E129: 4.2551 | G129: 12856.195 | H129: 2036-07-01 | I129: 0 | J129: 272.7726014 | K129: 547.0439534 | M129: 16 | N129: 2020 | O129: =VLOOKUP(M129,'Interest Rates'!$AN$10:$AR$39,IFERROR(MATCH(N129,'Interest Rates'!$AN$8:$AR$8,0),2),TRUE)*E129 -> 
A130: NF projected | B130: Columbia Generating Station | C130: 2020-04-01 | D130: 2036-07-01 | E130: 4.2551 | G130: 221.527 | H130: 2036-07-01 | I130: 0 | J130: 4.700185092 | K130: 9.426195377 | M130: 16 | N130: 2020 | O130: =VLOOKUP(M130,'Interest Rates'!$AN$10:$AR$39,IFERROR(MATCH(N130,'Interest Rates'!$AN$8:$AR$8,0),2),TRUE)*E130 -> 
A131: NF projected | B131: Columbia Generating Station | C131: 2020-04-01 | D131: 2036-07-01 | E131: 4.26 | G131: 6267.269 | H131: 2036-07-01 | I131: 0 | J131: 133.1270959 | K131: 266.9856594 | M131: 16 | N131: 2020 | O131: =VLOOKUP(M131,'Interest Rates'!$AN$10:$AR$39,IFERROR(MATCH(N131,'Interest Rates'!$AN$8:$AR$8,0),2),TRUE)*E131 ->  | P131: =(MAX(0,MIN(P$10,$H131)-MAX($C131,P$10-365))/365)*$G131*IF($F131="Yes",P$8,$O131)/100 -> 
A132: NF projected | B132: Columbia Generating Station | C132: 2020-04-01 | D132: 2037-07-01 | E132: 4.3 | G132: 6534.254 | H132: 2037-07-01 | I132: 0 | J132: 140.1015666 | K132: 280.972922 | M132: 17 | N132: 2020 | O132: =VLOOKUP(M132,'Interest Rates'!$AN$10:$AR$39,IFERROR(MATCH(N132,'Interest Rates'!$AN$8:$AR$8,0),2),TRUE)*E132 -> 
A133: NF projected | B133: Columbia Generating Station | C133: 2020-04-01 | D133: 2037-07-01 | E133: 4.3034 | G133: 12856.195 | H133: 2037-07-01 | I133: 0 | J133: 275.8688663 | K133: 553.2534956 | M133: 17 | N133: 2020 | O133: =VLOOKUP(M133,'Interest Rates'!$AN$10:$AR$39,IFERROR(MATCH(N133,'Interest Rates'!$AN$8:$AR$8,0),2),TRUE)*E133 -> 
A134: NF projected | B134: Columbia Generating Station | C134: 2020-04-01 | D134: 2037-07-01 | E134: 4.3034 | G134: 221.527 | H134: 2037-07-01 | I134: 0 | J134: 4.753537291 | K134: 9.533192918 | M134: 17 | N134: 2020 | O134: =VLOOKUP(M134,'Interest Rates'!$AN$10:$AR$39,IFERROR(MATCH(N134,'Interest Rates'!$AN$8:$AR$8,0),2),TRUE)*E134 -> 
A135: NF projected | B135: Columbia Generating Station | C135: 2020-04-01 | D135: 2038-07-01 | E135: 4.35 | G135: 6815.228 | H135: 2038-07-01 | I135: 0 | J135: 147.8250961 | K135: 296.462418 | M135: 18 | N135: 2020 | O135: =VLOOKUP(M135,'Interest Rates'!$AN$10:$AR$39,IFERROR(MATCH(N135,'Interest Rates'!$AN$8:$AR$8,0),2),TRUE)*E135 -> 
A136: NF projected | B136: Columbia Generating Station | C136: 2020-04-01 | D136: 2038-07-01 | E136: 4.3518 | G136: 12856.195 | H136: 2038-07-01 | I136: 0 | J136: 278.9715417 | K136: 559.475894 | M136: 18 | N136: 2020 | O136: =VLOOKUP(M136,'Interest Rates'!$AN$10:$AR$39,IFERROR(MATCH(N136,'Interest Rates'!$AN$8:$AR$8,0),2),TRUE)*E136 -> 
A137: NF projected | B137: Columbia Generating Station | C137: 2020-04-01 | D137: 2038-07-01 | E137: 4.3518 | G137: 221.527 | H137: 2038-07-01 | I137: 0 | J137: 4.806999949 | K137: 9.640411986 | M137: 18 | N137: 2020 | O137: =VLOOKUP(M137,'Interest Rates'!$AN$10:$AR$39,IFERROR(MATCH(N137,'Interest Rates'!$AN$8:$AR$8,0),2),TRUE)*E137 -> 
A138: NF projected | B138: Columbia Generating Station | C138: 2020-04-01 | D138: 2039-07-01 | E138: 4.4 | G138: 7111.69 | H138: 2039-07-01 | I138: 0 | J138: 156.0285302 | K138: 312.91436 | M138: 19 | N138: 2020 | O138: =VLOOKUP(M138,'Interest Rates'!$AN$10:$AR$39,IFERROR(MATCH(N138,'Interest Rates'!$AN$8:$AR$8,0),2),TRUE)*E138 -> 
A139: NF projected | B139: Columbia Generating Station | C139: 2020-04-01 | D139: 2039-07-01 | E139: 4.4001 | G139: 12856.195 | H139: 2039-07-01 | I139: 0 | J139: 282.0678065 | K139: 565.6854362 | M139: 19 | N139: =YEAR(C139)+IF(MONTH(C139)>=10,1,0) -> 2020 | O139: =VLOOKUP(M139,'Interest Rates'!$AN$10:$AR$39,IFERROR(MATCH(N139,'Interest Rates'!$AN$8:$AR$8,0),2),TRUE)*E139 -> 
A140: NF projected | B140: Columbia Generating Station | C140: 2020-04-01 | D140: 2039-07-01 | E140: 4.4001 | G140: 221.527 | H140: 2039-07-01 | I140: 0 | J140: 4.860352148 | K140: 9.747409527 | M140: 19 | N140: 2020 | O140: =VLOOKUP(M140,'Interest Rates'!$AN$10:$AR$39,IFERROR(MATCH(N140,'Interest Rates'!$AN$8:$AR$8,0),2),TRUE)*E140 -> 
A141: NF projected | B141: Columbia Generating Station | C141: 2020-04-01 | D141: 2040-07-01 | E141: 4.4485 | G141: 12856.195 | H141: 2040-07-01 | I141: 0 | J141: 285.1704819 | K141: 571.9078346 | M141: 20 | N141: 2020 | O141: =VLOOKUP(M141,'Interest Rates'!$AN$10:$AR$39,IFERROR(MATCH(N141,'Interest Rates'!$AN$8:$AR$8,0),2),TRUE)*E141 -> 
A142: NF projected | B142: Columbia Generating Station | C142: 2020-04-01 | D142: 2040-07-01 | E142: 4.4485 | G142: 221.527 | H142: 2040-07-01 | I142: 0 | J142: 4.913814806 | K142: 9.854628595 | M142: 20 | N142: 2020 | O142: =VLOOKUP(M142,'Interest Rates'!$AN$10:$AR$39,IFERROR(MATCH(N142,'Interest Rates'!$AN$8:$AR$8,0),2),TRUE)*E142 -> 
A143: NF projected | B143: Columbia Generating Station | C143: 2020-04-01 | D143: 2040-07-01 | E143: 4.45 | G143: 7424.604 | H143: 2040-07-01 | I143: 0 | J143: 164.7448433 | K143: 330.394878 | M143: 20 | N143: 2020 | O143: =VLOOKUP(M143,'Interest Rates'!$AN$10:$AR$39,IFERROR(MATCH(N143,'Interest Rates'!$AN$8:$AR$8,0),2),TRUE)*E143 -> 
A144: NF projected | B144: Columbia Generating Station | C144: 2020-04-01 | D144: 2041-07-01 | E144: 4.4969 | G144: 12856.195 | H144: 2041-07-01 | I144: 0 | J144: 288.2731573 | K144: 578.130233 | M144: 21 | N144: 2020 | O144: =VLOOKUP(M144,'Interest Rates'!$AN$10:$AR$39,IFERROR(MATCH(N144,'Interest Rates'!$AN$8:$AR$8,0),2),TRUE)*E144 -> 
A145: NF projected | B145: Columbia Generating Station | C145: 2020-04-01 | D145: 2041-07-01 | E145: 4.4969 | G145: 221.527 | H145: 2041-07-01 | I145: 0 | J145: 4.967277465 | K145: 9.961847663 | M145: 21 | N145: 2020 | O145: =VLOOKUP(M145,'Interest Rates'!$AN$10:$AR$39,IFERROR(MATCH(N145,'Interest Rates'!$AN$8:$AR$8,0),2),TRUE)*E145 -> 
A146: NF projected | B146: Columbia Generating Station | C146: 2020-04-01 | D146: 2041-07-01 | E146: 4.5 | G146: 7754.999 | H146: 2041-07-01 | I146: 0 | J146: 174.0094296 | K146: 348.974955 | M146: 21 | N146: 2020 | O146: =VLOOKUP(M146,'Interest Rates'!$AN$10:$AR$39,IFERROR(MATCH(N146,'Interest Rates'!$AN$8:$AR$8,0),2),TRUE)*E146 -> 
A147: NF projected | B147: Columbia Generating Station | C147: 2020-04-01 | D147: 2042-07-01 | E147: 4.5452 | G147: 12856.195 | H147: 2042-07-01 | I147: 0 | J147: 291.3694221 | K147: 584.3397751 | M147: 22 | N147: 2020 | O147: =VLOOKUP(M147,'Interest Rates'!$AN$10:$AR$39,IFERROR(MATCH(N147,'Interest Rates'!$AN$8:$AR$8,0),2),TRUE)*E147 -> 
A148: NF projected | B148: Columbia Generating Station | C148: 2020-04-01 | D148: 2042-07-01 | E148: 4.5452 | G148: 221.527 | H148: 2042-07-01 | I148: 0 | J148: 5.020629663 | K148: 10.0688452 | M148: 22 | N148: 2020 | O148: =VLOOKUP(M148,'Interest Rates'!$AN$10:$AR$39,IFERROR(MATCH(N148,'Interest Rates'!$AN$8:$AR$8,0),2),TRUE)*E148 -> 
A149: NF projected | B149: Columbia Generating Station | C149: 2020-04-01 | D149: 2042-07-01 | E149: 4.55 | G149: 8103.974 | H149: 2042-07-01 | I149: 0 | J149: 183.8602978 | K149: 368.730817 | M149: 22 | N149: 2020 | O149: =VLOOKUP(M149,'Interest Rates'!$AN$10:$AR$39,IFERROR(MATCH(N149,'Interest Rates'!$AN$8:$AR$8,0),2),TRUE)*E149 -> 
A150: NF projected | B150: Columbia Generating Station | C150: 2020-04-01 | D150: 2043-07-01 | E150: 4.59 | G150: 8472.705 | H150: 2043-07-01 | I150: 0 | J150: 193.9158439 | K150: 388.8971595 | M150: 23 | N150: 2020 | O150: =VLOOKUP(M150,'Interest Rates'!$AN$10:$AR$39,IFERROR(MATCH(N150,'Interest Rates'!$AN$8:$AR$8,0),2),TRUE)*E150 -> 
A151: NF projected | B151: Columbia Generating Station | C151: 2020-04-01 | D151: 2043-07-01 | E151: 4.5936 | G151: 12856.195 | H151: 2043-07-01 | I151: 0 | J151: 294.4720975 | K151: 590.5621735 | M151: 23 | N151: 2020 | O151: =VLOOKUP(M151,'Interest Rates'!$AN$10:$AR$39,IFERROR(MATCH(N151,'Interest Rates'!$AN$8:$AR$8,0),2),TRUE)*E151 ->  | P151: =(MAX(0,MIN(P$10,$H151)-MAX($C151,P$10-365))/365)*$G151*IF($F151="Yes",P$8,$O151)/100 -> 
A152: NF projected | B152: Columbia Generating Station | C152: 2020-04-01 | D152: 2043-07-01 | E152: 4.5936 | G152: 221.527 | H152: 2043-07-01 | I152: 0 | J152: 5.074092322 | K152: 10.17606427 | M152: 23 | N152: 2020 | O152: =VLOOKUP(M152,'Interest Rates'!$AN$10:$AR$39,IFERROR(MATCH(N152,'Interest Rates'!$AN$8:$AR$8,0),2),TRUE)*E152 -> 
A153: NF projected | B153: Columbia Generating Station | C153: 2020-04-01 | D153: 2044-07-01 | E153: 4.64 | G153: 8861.602 | H153: 2044-07-01 | I153: 0 | J153: 205.0259084 | K153: 411.1783328 | M153: 24 | N153: 2020 | O153: =VLOOKUP(M153,'Interest Rates'!$AN$10:$AR$39,IFERROR(MATCH(N153,'Interest Rates'!$AN$8:$AR$8,0),2),TRUE)*E153 -> 
A154: NF projected | B154: Columbia Generating Station | C154: 2020-04-01 | D154: 2044-07-01 | E154: 4.642 | G154: 12856.195 | H154: 2044-07-01 | I154: 0 | J154: 297.5747728 | K154: 596.7845719 | M154: 24 | N154: 2020 | O154: =VLOOKUP(M154,'Interest Rates'!$AN$10:$AR$39,IFERROR(MATCH(N154,'Interest Rates'!$AN$8:$AR$8,0),2),TRUE)*E154 -> 
A155: NF projected | B155: Columbia Generating Station | C155: 2020-04-01 | D155: 2044-07-01 | E155: 4.642 | G155: 221.527 | H155: 2044-07-01 | I155: 0 | J155: 5.12755498 | K155: 10.28328334 | M155: 24 | N155: 2020 | O155: =VLOOKUP(M155,'Interest Rates'!$AN$10:$AR$39,IFERROR(MATCH(N155,'Interest Rates'!$AN$8:$AR$8,0),2),TRUE)*E155 -> 
A156: NF projected | B156: Columbia Generating Station | C156: 2020-04-01 | D156: 2030-07-01 | E156: 4.967 | G156: 2871.43 | H156: 2030-07-01 | I156: 0 | J156: 71.11658881 | K156: 142.6239281 | M156: 10 | N156: 2020 | O156: =VLOOKUP(M156,'Interest Rates'!$AN$10:$AR$39,IFERROR(MATCH(N156,'Interest Rates'!$AN$8:$AR$8,0),2),TRUE)*E156 -> 
A157: NF projected | B157: Columbia Generating Station | C157: 2020-04-01 | D157: 2030-07-01 | E157: 4.967 | G157: 895.533 | H157: 2030-07-01 | I157: 0 | J157: 22.17962901 | K157: 44.48112411 | M157: 10 | N157: 2020 | O157: =VLOOKUP(M157,'Interest Rates'!$AN$10:$AR$39,IFERROR(MATCH(N157,'Interest Rates'!$AN$8:$AR$8,0),2),TRUE)*E157 -> 
A158: NF projected | B158: Columbia Generating Station | C158: 2020-04-01 | D158: 2031-07-01 | E158: 5.0169 | G158: 2871.43 | H158: 2031-07-01 | I158: 0 | J158: 71.83104779 | K158: 144.0567717 | M158: 11 | N158: 2020 | O158: =VLOOKUP(M158,'Interest Rates'!$AN$10:$AR$39,IFERROR(MATCH(N158,'Interest Rates'!$AN$8:$AR$8,0),2),TRUE)*E158 -> 
A159: NF projected | B159: Columbia Generating Station | C159: 2020-04-01 | D159: 2031-07-01 | E159: 5.0169 | G159: 895.533 | H159: 2031-07-01 | I159: 0 | J159: 22.40245234 | K159: 44.92799508 | M159: 11 | N159: 2020 | O159: =VLOOKUP(M159,'Interest Rates'!$AN$10:$AR$39,IFERROR(MATCH(N159,'Interest Rates'!$AN$8:$AR$8,0),2),TRUE)*E159 -> 
A160: NF projected | B160: Columbia Generating Station | C160: 2020-04-01 | D160: 2032-07-01 | E160: 5.0669 | G160: 2871.43 | H160: 2032-07-01 | I160: 0 | J160: 72.54693856 | K160: 145.4924867 | M160: 12 | N160: 2020 | O160: =VLOOKUP(M160,'Interest Rates'!$AN$10:$AR$39,IFERROR(MATCH(N160,'Interest Rates'!$AN$8:$AR$8,0),2),TRUE)*E160 -> 
A161: NF projected | B161: Columbia Generating Station | C161: 2020-04-01 | D161: 2032-07-01 | E161: 5.0669 | G161: 895.533 | H161: 2032-07-01 | I161: 0 | J161: 22.62572221 | K161: 45.37576158 | M161: 12 | N161: 2020 | O161: =VLOOKUP(M161,'Interest Rates'!$AN$10:$AR$39,IFERROR(MATCH(N161,'Interest Rates'!$AN$8:$AR$8,0),2),TRUE)*E161 -> 
A162: NF projected | B162: Columbia Generating Station | C162: 2020-04-01 | D162: 2033-07-01 | E162: 5.1169 | G162: 2871.43 | H162: 2033-07-01 | I162: 0 | J162: 73.26282933 | K162: 146.9282017 | M162: 13 | N162: 2020 | O162: =VLOOKUP(M162,'Interest Rates'!$AN$10:$AR$39,IFERROR(MATCH(N162,'Interest Rates'!$AN$8:$AR$8,0),2),TRUE)*E162 -> 
A163: NF projected | B163: Columbia Generating Station | C163: 2020-04-01 | D163: 2033-07-01 | E163: 5.1169 | G163: 895.533 | H163: 2033-07-01 | I163: 0 | J163: 22.84899208 | K163: 45.82352808 | M163: 13 | N163: 2020 | O163: =VLOOKUP(M163,'Interest Rates'!$AN$10:$AR$39,IFERROR(MATCH(N163,'Interest Rates'!$AN$8:$AR$8,0),2),TRUE)*E163 -> 
A164: NF projected | B164: Columbia Generating Station | C164: 2020-04-01 | D164: 2034-07-01 | E164: 5.1668 | G164: 2871.43 | H164: 2034-07-01 | I164: 0 | J164: 73.97728831 | K164: 148.3610452 | M164: 14 | N164: 2020 | O164: =VLOOKUP(M164,'Interest Rates'!$AN$10:$AR$39,IFERROR(MATCH(N164,'Interest Rates'!$AN$8:$AR$8,0),2),TRUE)*E164 -> 
A165: NF projected | B165: Columbia Generating Station | C165: 2020-04-01 | D165: 2034-07-01 | E165: 5.1668 | G165: 895.533 | H165: 2034-07-01 | I165: 0 | J165: 23.07181541 | K165: 46.27039904 | M165: 14 | N165: 2020 | O165: =VLOOKUP(M165,'Interest Rates'!$AN$10:$AR$39,IFERROR(MATCH(N165,'Interest Rates'!$AN$8:$AR$8,0),2),TRUE)*E165 -> 
A166: NF projected | B166: Columbia Generating Station | C166: 2020-04-01 | D166: 2035-07-01 | E166: 5.2168 | G166: 2871.43 | H166: 2035-07-01 | I166: 0 | J166: 74.69317908 | K166: 149.7967602 | M166: 15 | N166: 2020 | O166: =VLOOKUP(M166,'Interest Rates'!$AN$10:$AR$39,IFERROR(MATCH(N166,'Interest Rates'!$AN$8:$AR$8,0),2),TRUE)*E166 -> 
A167: NF projected | B167: Columbia Generating Station | C167: 2020-04-01 | D167: 2035-07-01 | E167: 5.2168 | G167: 895.533 | H167: 2035-07-01 | I167: 0 | J167: 23.29508528 | K167: 46.71816554 | M167: 15 | N167: 2020 | O167: =VLOOKUP(M167,'Interest Rates'!$AN$10:$AR$39,IFERROR(MATCH(N167,'Interest Rates'!$AN$8:$AR$8,0),2),TRUE)*E167 -> 
A168: NF projected | B168: Columbia Generating Station | C168: 2020-04-01 | D168: 2036-07-01 | E168: 5.2667 | G168: 2871.43 | H168: 2036-07-01 | I168: 0 | J168: 75.40763806 | K168: 151.2296038 | M168: 16 | N168: 2020 | O168: =VLOOKUP(M168,'Interest Rates'!$AN$10:$AR$39,IFERROR(MATCH(N168,'Interest Rates'!$AN$8:$AR$8,0),2),TRUE)*E168 -> 
A169: NF projected | B169: Columbia Generating Station | C169: 2020-04-01 | D169: 2036-07-01 | E169: 5.2667 | G169: 895.533 | H169: 2036-07-01 | I169: 0 | J169: 23.51790862 | K169: 47.16503651 | M169: 16 | N169: 2020 | O169: =VLOOKUP(M169,'Interest Rates'!$AN$10:$AR$39,IFERROR(MATCH(N169,'Interest Rates'!$AN$8:$AR$8,0),2),TRUE)*E169 -> 
A170: NF projected | B170: Columbia Generating Station | C170: 2020-04-01 | D170: 2037-07-01 | E170: 5.3167 | G170: 2871.43 | H170: 2037-07-01 | I170: 0 | J170: 76.12352883 | K170: 152.6653188 | M170: 17 | N170: 2020 | O170: =VLOOKUP(M170,'Interest Rates'!$AN$10:$AR$39,IFERROR(MATCH(N170,'Interest Rates'!$AN$8:$AR$8,0),2),TRUE)*E170 -> 
A171: NF projected | B171: Columbia Generating Station | C171: 2020-04-01 | D171: 2037-07-01 | E171: 5.3167 | G171: 895.533 | H171: 2037-07-01 | I171: 0 | J171: 23.74117849 | K171: 47.61280301 | M171: 17 | N171: 2020 | O171: =VLOOKUP(M171,'Interest Rates'!$AN$10:$AR$39,IFERROR(MATCH(N171,'Interest Rates'!$AN$8:$AR$8,0),2),TRUE)*E171 ->  | P171: =(MAX(0,MIN(P$10,$H171)-MAX($C171,P$10-365))/365)*$G171*IF($F171="Yes",P$8,$O171)/100 -> 
A172: NF projected | B172: Columbia Generating Station | C172: 2020-04-01 | D172: 2038-07-01 | E172: 5.3667 | G172: 2871.43 | H172: 2038-07-01 | I172: 0 | J172: 76.8394196 | K172: 154.1010338 | M172: =MEDIAN(ROUND((D172-C172)/365,0),1,30) -> 18 | N172: 2020 | O172: =VLOOKUP(M172,'Interest Rates'!$AN$10:$AR$39,IFERROR(MATCH(N172,'Interest Rates'!$AN$8:$AR$8,0),2),TRUE)*E172 -> 
A173: NF projected | B173: Columbia Generating Station | C173: 2020-04-01 | D173: 2038-07-01 | E173: 5.3667 | G173: 895.533 | H173: 2038-07-01 | I173: 0 | J173: 23.96444836 | K173: 48.06056951 | M173: 18 | N173: 2020 | O173: =VLOOKUP(M173,'Interest Rates'!$AN$10:$AR$39,IFERROR(MATCH(N173,'Interest Rates'!$AN$8:$AR$8,0),2),TRUE)*E173 -> 
A174: NF projected | B174: Columbia Generating Station | C174: 2020-04-01 | D174: 2039-07-01 | E174: 5.4166 | G174: 2871.43 | H174: 2039-07-01 | I174: 0 | J174: 77.55387858 | K174: 155.5338774 | M174: 19 | N174: 2020 | O174: =VLOOKUP(M174,'Interest Rates'!$AN$10:$AR$39,IFERROR(MATCH(N174,'Interest Rates'!$AN$8:$AR$8,0),2),TRUE)*E174 -> 
A175: NF projected | B175: Columbia Generating Station | C175: 2020-04-01 | D175: 2039-07-01 | E175: 5.4166 | G175: 895.533 | H175: 2039-07-01 | I175: 0 | J175: 24.18727169 | K175: 48.50744048 | M175: 19 | N175: 2020 | O175: =VLOOKUP(M175,'Interest Rates'!$AN$10:$AR$39,IFERROR(MATCH(N175,'Interest Rates'!$AN$8:$AR$8,0),2),TRUE)*E175 -> 
A176: NF projected | B176: Columbia Generating Station | C176: 2020-04-01 | D176: 2040-07-01 | E176: 5.4666 | G176: 2871.43 | H176: 2040-07-01 | I176: 0 | J176: 78.26976935 | K176: 156.9695924 | M176: 20 | N176: 2020 | O176: =VLOOKUP(M176,'Interest Rates'!$AN$10:$AR$39,IFERROR(MATCH(N176,'Interest Rates'!$AN$8:$AR$8,0),2),TRUE)*E176 -> 
A177: NF projected | B177: Columbia Generating Station | C177: 2020-04-01 | D177: 2040-07-01 | E177: 5.4666 | G177: 895.533 | H177: 2040-07-01 | I177: 0 | J177: 24.41054156 | K177: 48.95520698 | M177: 20 | N177: 2020 | O177: =VLOOKUP(M177,'Interest Rates'!$AN$10:$AR$39,IFERROR(MATCH(N177,'Interest Rates'!$AN$8:$AR$8,0),2),TRUE)*E177 -> 
A178: NF projected | B178: Columbia Generating Station | C178: 2020-04-01 | D178: 2041-07-01 | E178: 5.5166 | G178: 2871.43 | H178: 2041-07-01 | I178: 0 | J178: 78.98566012 | K178: 158.4053074 | M178: 21 | N178: 2020 | O178: =VLOOKUP(M178,'Interest Rates'!$AN$10:$AR$39,IFERROR(MATCH(N178,'Interest Rates'!$AN$8:$AR$8,0),2),TRUE)*E178 -> 
A179: NF projected | B179: Columbia Generating Station | C179: 2020-04-01 | D179: 2041-07-01 | E179: 5.5166 | G179: 895.533 | H179: 2041-07-01 | I179: 0 | J179: 24.63381143 | K179: 49.40297348 | M179: 21 | N179: 2020 | O179: =VLOOKUP(M179,'Interest Rates'!$AN$10:$AR$39,IFERROR(MATCH(N179,'Interest Rates'!$AN$8:$AR$8,0),2),TRUE)*E179 -> 
A180: NF projected | B180: Columbia Generating Station | C180: 2020-04-01 | D180: 2042-07-01 | E180: 5.5665 | G180: 2871.43 | H180: 2042-07-01 | I180: 0 | J180: 79.7001191 | K180: 159.8381509 | M180: 22 | N180: 2020 | O180: =VLOOKUP(M180,'Interest Rates'!$AN$10:$AR$39,IFERROR(MATCH(N180,'Interest Rates'!$AN$8:$AR$8,0),2),TRUE)*E180 -> 
A181: NF projected | B181: Columbia Generating Station | C181: 2020-04-01 | D181: 2042-07-01 | E181: 5.5665 | G181: 895.533 | H181: 2042-07-01 | I181: 0 | J181: 24.85663476 | K181: 49.84984445 | M181: 22 | N181: 2020 | O181: =VLOOKUP(M181,'Interest Rates'!$AN$10:$AR$39,IFERROR(MATCH(N181,'Interest Rates'!$AN$8:$AR$8,0),2),TRUE)*E181 -> 
A182: NF projected | B182: Columbia Generating Station | C182: 2020-04-01 | D182: 2043-07-01 | E182: 5.6165 | G182: 2871.43 | H182: 2043-07-01 | I182: 0 | J182: 80.41600987 | K182: 161.273866 | M182: 23 | N182: 2020 | O182: =VLOOKUP(M182,'Interest Rates'!$AN$10:$AR$39,IFERROR(MATCH(N182,'Interest Rates'!$AN$8:$AR$8,0),2),TRUE)*E182 -> 
A183: NF projected | B183: Columbia Generating Station | C183: 2020-04-01 | D183: 2043-07-01 | E183: 5.6165 | G183: 895.533 | H183: 2043-07-01 | I183: 0 | J183: 25.07990464 | K183: 50.29761095 | M183: 23 | N183: 2020 | O183: =VLOOKUP(M183,'Interest Rates'!$AN$10:$AR$39,IFERROR(MATCH(N183,'Interest Rates'!$AN$8:$AR$8,0),2),TRUE)*E183 -> 
A184: NF projected | B184: Columbia Generating Station | C184: 2020-04-01 | D184: 2044-07-01 | E184: 5.6664 | G184: 2871.43 | H184: 2044-07-01 | I184: 0 | J184: 81.13046886 | K184: 162.7067095 | M184: 24 | N184: 2020 | O184: =VLOOKUP(M184,'Interest Rates'!$AN$10:$AR$39,IFERROR(MATCH(N184,'Interest Rates'!$AN$8:$AR$8,0),2),TRUE)*E184 -> 
A185: NF projected | B185: Columbia Generating Station | C185: 2020-04-01 | D185: 2044-07-01 | E185: 5.6664 | G185: 895.533 | H185: 2044-07-01 | I185: 0 | J185: 25.30272797 | K185: 50.74448191 | M185: 24 | N185: 2020 | O185: =VLOOKUP(M185,'Interest Rates'!$AN$10:$AR$39,IFERROR(MATCH(N185,'Interest Rates'!$AN$8:$AR$8,0),2),TRUE)*E185 -> 
A186: NF projected | B186: Columbia Generating Station | C186: 2021-04-01 | D186: 2030-07-01 | E186: 3.88 | G186: 3768.731 | H186: 2030-07-01 | I186: 0 | J186: 0 | K186: 72.91307077 | M186: 9 | N186: 2021 | O186: =VLOOKUP(M186,'Interest Rates'!$AN$10:$AR$39,IFERROR(MATCH(N186,'Interest Rates'!$AN$8:$AR$8,0),2),TRUE)*E186 -> 
A187: NF projected | B187: Columbia Generating Station | C187: 2021-04-01 | D187: 2031-07-01 | E187: 4.03 | G187: 3914.957 | H187: 2031-07-01 | I187: 0 | J187: 0 | K187: 78.67025647 | M187: 10 | N187: 2021 | O187: =VLOOKUP(M187,'Interest Rates'!$AN$10:$AR$39,IFERROR(MATCH(N187,'Interest Rates'!$AN$8:$AR$8,0),2),TRUE)*E187 -> 
A188: NF projected | B188: Columbia Generating Station | C188: 2021-04-01 | D188: 2032-07-01 | E188: 4.08 | G188: 4072.731 | H188: 2032-07-01 | I188: 0 | J188: 0 | K188: 82.85608579 | M188: 11 | N188: 2021 | O188: =VLOOKUP(M188,'Interest Rates'!$AN$10:$AR$39,IFERROR(MATCH(N188,'Interest Rates'!$AN$8:$AR$8,0),2),TRUE)*E188 -> 
A189: NF projected | B189: Columbia Generating Station | C189: 2021-04-01 | D189: 2033-07-01 | E189: 4.13 | G189: 4238.898 | H189: 2033-07-01 | I189: 0 | J189: 0 | K189: 87.29342659 | M189: 12 | N189: 2021 | O189: =VLOOKUP(M189,'Interest Rates'!$AN$10:$AR$39,IFERROR(MATCH(N189,'Interest Rates'!$AN$8:$AR$8,0),2),TRUE)*E189 -> 
A190: NF projected | B190: Columbia Generating Station | C190: 2021-04-01 | D190: 2034-07-01 | E190: 4.17 | G190: 4413.965 | H190: 2034-07-01 | I190: 0 | J190: 0 | K190: 91.77903006 | M190: 13 | N190: 2021 | O190: =VLOOKUP(M190,'Interest Rates'!$AN$10:$AR$39,IFERROR(MATCH(N190,'Interest Rates'!$AN$8:$AR$8,0),2),TRUE)*E190 -> 
A191: NF projected | B191: Columbia Generating Station | C191: 2021-04-01 | D191: 2035-07-01 | E191: 4.22 | G191: 4598.026 | H191: 2035-07-01 | I191: 0 | J191: 0 | K191: 96.75254491 | M191: 14 | N191: 2021 | O191: =VLOOKUP(M191,'Interest Rates'!$AN$10:$AR$39,IFERROR(MATCH(N191,'Interest Rates'!$AN$8:$AR$8,0),2),TRUE)*E191 ->  | P191: =(MAX(0,MIN(P$10,$H191)-MAX($C191,P$10-365))/365)*$G191*IF($F191="Yes",P$8,$O191)/100 -> 
A192: NF projected | B192: Columbia Generating Station | C192: 2021-04-01 | D192: 2036-07-01 | E192: 4.27 | G192: 4792.063 | H192: 2036-07-01 | I192: 0 | J192: 0 | K192: 102.0302422 | M192: 15 | N192: 2021 | O192: =VLOOKUP(M192,'Interest Rates'!$AN$10:$AR$39,IFERROR(MATCH(N192,'Interest Rates'!$AN$8:$AR$8,0),2),TRUE)*E192 -> 
A193: NF projected | B193: Columbia Generating Station | C193: 2021-04-01 | D193: 2037-07-01 | E193: 4.31 | G193: 4996.685 | H193: 2037-07-01 | I193: 0 | J193: 0 | K193: 107.383552 | M193: 16 | N193: 2021 | O193: =VLOOKUP(M193,'Interest Rates'!$AN$10:$AR$39,IFERROR(MATCH(N193,'Interest Rates'!$AN$8:$AR$8,0),2),TRUE)*E193 -> 
A194: NF projected | B194: Columbia Generating Station | C194: 2021-04-01 | D194: 2038-07-01 | E194: 4.36 | G194: 5212.041 | H194: 2038-07-01 | I194: 0 | J194: 0 | K194: 113.3111993 | M194: 17 | N194: 2021 | O194: =VLOOKUP(M194,'Interest Rates'!$AN$10:$AR$39,IFERROR(MATCH(N194,'Interest Rates'!$AN$8:$AR$8,0),2),TRUE)*E194 -> 
A195: NF projected | B195: Columbia Generating Station | C195: 2021-04-01 | D195: 2039-07-01 | E195: 4.41 | G195: 5439.287 | H195: 2039-07-01 | I195: 0 | J195: 0 | K195: 119.6076858 | M195: 18 | N195: 2021 | O195: =VLOOKUP(M195,'Interest Rates'!$AN$10:$AR$39,IFERROR(MATCH(N195,'Interest Rates'!$AN$8:$AR$8,0),2),TRUE)*E195 -> 
A196: NF projected | B196: Columbia Generating Station | C196: 2021-04-01 | D196: 2040-07-01 | E196: 4.46 | G196: 5679.159 | H196: 2040-07-01 | I196: 0 | J196: 0 | K196: 126.2982724 | M196: 19 | N196: 2021 | O196: =VLOOKUP(M196,'Interest Rates'!$AN$10:$AR$39,IFERROR(MATCH(N196,'Interest Rates'!$AN$8:$AR$8,0),2),TRUE)*E196 -> 
A197: NF projected | B197: Columbia Generating Station | C197: 2021-04-01 | D197: 2041-07-01 | E197: 4.5 | G197: 5932.45 | H197: 2041-07-01 | I197: 0 | J197: 0 | K197: 133.114426 | M197: 20 | N197: 2021 | O197: =VLOOKUP(M197,'Interest Rates'!$AN$10:$AR$39,IFERROR(MATCH(N197,'Interest Rates'!$AN$8:$AR$8,0),2),TRUE)*E197 -> 
A198: NF projected | B198: Columbia Generating Station | C198: 2021-04-01 | D198: 2042-07-01 | E198: 4.55 | G198: 6199.41 | H198: 2042-07-01 | I198: 0 | J198: 0 | K198: 140.6501759 | M198: 21 | N198: 2021 | O198: =VLOOKUP(M198,'Interest Rates'!$AN$10:$AR$39,IFERROR(MATCH(N198,'Interest Rates'!$AN$8:$AR$8,0),2),TRUE)*E198 -> 
A199: NF projected | B199: Columbia Generating Station | C199: 2021-04-01 | D199: 2043-07-01 | E199: 4.6 | G199: 6481.483 | H199: 2043-07-01 | I199: 0 | J199: 0 | K199: 148.6656868 | M199: 22 | N199: 2021 | O199: =VLOOKUP(M199,'Interest Rates'!$AN$10:$AR$39,IFERROR(MATCH(N199,'Interest Rates'!$AN$8:$AR$8,0),2),TRUE)*E199 -> 
A200: NF projected | B200: Columbia Generating Station | C200: 2021-04-01 | D200: 2044-07-01 | E200: 4.64 | G200: 6779.631 | H200: 2044-07-01 | I200: 0 | J200: 0 | K200: 156.8565147 | M200: 23 | N200: 2021 | O200: =VLOOKUP(M200,'Interest Rates'!$AN$10:$AR$39,IFERROR(MATCH(N200,'Interest Rates'!$AN$8:$AR$8,0),2),TRUE)*E200 -> 
A201: NF projected | B201: Columbia Generating Station Line of Credit | C201: 2019-05-15 | D201: 2020-06-30 | E201: 2.5 | G201: 12284 | H201: 2020-06-30 | I201: 116.1090411 | J201: 229.6939726 | K201: 0 | M201: 1 | N201: 2019 | O201: =VLOOKUP(M201,'Interest Rates'!$AN$10:$AR$39,IFERROR(MATCH(N201,'Interest Rates'!$AN$8:$AR$8,0),2),TRUE)*E201 -> 
A202: NF projected | B202: Columbia Generating Station Line of Credit | C202: 2019-06-15 | D202: 2020-06-30 | E202: 2.5 | G202: 214716 | H202: 2020-06-30 | I202: 1573.603562 | J202: 4014.895068 | K202: 0 | M202: 1 | N202: 2019 | O202: =VLOOKUP(M202,'Interest Rates'!$AN$10:$AR$39,IFERROR(MATCH(N202,'Interest Rates'!$AN$8:$AR$8,0),2),TRUE)*E202 -> 
A203: Fed Historical | B203: Construction (AS) | C203: 2016-02-29 | D203: 2022-02-28 | E203: 1.877 | F203: Yes | G203: 3000 | H203: 2025-09-30 | I203: 41.4 | J203: 48 | K203: 49.2 | M203: 6 | N203: =YEAR(C203)+IF(MONTH(C203)>=10,1,0) -> 2016 | O203: =VLOOKUP(M203,'Interest Rates'!$AN$10:$AR$39,IFERROR(MATCH(N203,'Interest Rates'!$AN$8:$AR$8,0),2),TRUE)*E203 -> 1.877
A204: Fed Historical | B204: Corps | C204: 2016-02-29 | D204: 2045-02-28 | E204: 1.877 | F204: Yes | G204: 3000 | H204: 2025-09-30 | I204: 41.4 | J204: 48 | K204: 49.2 | M204: 29 | N204: 2016 | O204: =VLOOKUP(M204,'Interest Rates'!$AN$10:$AR$39,IFERROR(MATCH(N204,'Interest Rates'!$AN$8:$AR$8,0),2),TRUE)*E204 -> 1.877
A205: Fed Historical | B205: Fish and Wildlife | C205: 2015-10-31 | D205: 2031-02-28 | E205: 1.877 | F205: Yes | G205: 4000 | H205: 2025-09-30 | I205: 55.2 | J205: 64 | K205: 65.6 | M205: 15 | N205: 2016 | O205: =VLOOKUP(M205,'Interest Rates'!$AN$10:$AR$39,IFERROR(MATCH(N205,'Interest Rates'!$AN$8:$AR$8,0),2),TRUE)*E205 -> 1.877
A206: Fed Historical | B206: Fish and Wildlife | C206: 2016-02-29 | D206: 2031-02-28 | E206: 1.877 | F206: Yes | G206: 4000 | H206: 2025-09-30 | I206: 55.2 | J206: 64 | K206: 65.6 | M206: 15 | N206: 2016 | O206: =VLOOKUP(M206,'Interest Rates'!$AN$10:$AR$39,IFERROR(MATCH(N206,'Interest Rates'!$AN$8:$AR$8,0),2),TRUE)*E206 -> 1.877
... 43 more rows

Sheet Output
B6: Net Revenue ($M) | G6: ATC ($M)
A7: Game | B7: 2019 | C7: 2020 | D7: 2021 | G7: 2019 | H7: 2020 | I7: 2021
A8: 1 | B8: =_xll.RiskData('Risk Summary'!J$32,$A8)/1000 ->  | C8: =_xll.RiskData('Risk Summary'!K$32,$A8)/1000 ->  | D8: =_xll.RiskData('Risk Summary'!L$32,$A8)/1000 ->  | G8: =(_xll.RiskData(NR_to_Cash!C$16,$A8))/1000 ->  | H8: =(_xll.RiskData(NR_to_Cash!D$16,$A8))/1000 ->  | I8: =(_xll.RiskData(NR_to_Cash!E$16,$A8))/1000 -> 
A9: 2 | B9: =_xll.RiskData('Risk Summary'!J$32,$A9)/1000 ->  | C9: =_xll.RiskData('Risk Summary'!K$32,$A9)/1000 ->  | D9: =_xll.RiskData('Risk Summary'!L$32,$A9)/1000 ->  | G9: =(_xll.RiskData(NR_to_Cash!C$16,$A9))/1000 ->  | H9: =(_xll.RiskData(NR_to_Cash!D$16,$A9))/1000 ->  | I9: =(_xll.RiskData(NR_to_Cash!E$16,$A9))/1000 -> 
A10: 3 | B10: =_xll.RiskData('Risk Summary'!J$32,$A10)/1000 ->  | C10: =_xll.RiskData('Risk Summary'!K$32,$A10)/1000 ->  | D10: =_xll.RiskData('Risk Summary'!L$32,$A10)/1000 ->  | G10: =(_xll.RiskData(NR_to_Cash!C$16,$A10))/1000 ->  | H10: =(_xll.RiskData(NR_to_Cash!D$16,$A10))/1000 ->  | I10: =(_xll.RiskData(NR_to_Cash!E$16,$A10))/1000 -> 
A11: 4 | B11: =_xll.RiskData('Risk Summary'!J$32,$A11)/1000 ->  | C11: =_xll.RiskData('Risk Summary'!K$32,$A11)/1000 ->  | D11: =_xll.RiskData('Risk Summary'!L$32,$A11)/1000 ->  | G11: =(_xll.RiskData(NR_to_Cash!C$16,$A11))/1000 ->  | H11: =(_xll.RiskData(NR_to_Cash!D$16,$A11))/1000 ->  | I11: =(_xll.RiskData(NR_to_Cash!E$16,$A11))/1000 -> 
A12: 5 | B12: =_xll.RiskData('Risk Summary'!J$32,$A12)/1000 ->  | C12: =_xll.RiskData('Risk Summary'!K$32,$A12)/1000 ->  | D12: =_xll.RiskData('Risk Summary'!L$32,$A12)/1000 ->  | G12: =(_xll.RiskData(NR_to_Cash!C$16,$A12))/1000 ->  | H12: =(_xll.RiskData(NR_to_Cash!D$16,$A12))/1000 ->  | I12: =(_xll.RiskData(NR_to_Cash!E$16,$A12))/1000 -> 
A13: 6 | B13: =_xll.RiskData('Risk Summary'!J$32,$A13)/1000 ->  | C13: =_xll.RiskData('Risk Summary'!K$32,$A13)/1000 ->  | D13: =_xll.RiskData('Risk Summary'!L$32,$A13)/1000 ->  | G13: =(_xll.RiskData(NR_to_Cash!C$16,$A13))/1000 ->  | H13: =(_xll.RiskData(NR_to_Cash!D$16,$A13))/1000 ->  | I13: =(_xll.RiskData(NR_to_Cash!E$16,$A13))/1000 -> 
A14: 7 | B14: =_xll.RiskData('Risk Summary'!J$32,$A14)/1000 ->  | C14: =_xll.RiskData('Risk Summary'!K$32,$A14)/1000 ->  | D14: =_xll.RiskData('Risk Summary'!L$32,$A14)/1000 ->  | G14: =(_xll.RiskData(NR_to_Cash!C$16,$A14))/1000 ->  | H14: =(_xll.RiskData(NR_to_Cash!D$16,$A14))/1000 ->  | I14: =(_xll.RiskData(NR_to_Cash!E$16,$A14))/1000 -> 
A15: 8 | B15: =_xll.RiskData('Risk Summary'!J$32,$A15)/1000 ->  | C15: =_xll.RiskData('Risk Summary'!K$32,$A15)/1000 ->  | D15: =_xll.RiskData('Risk Summary'!L$32,$A15)/1000 ->  | G15: =(_xll.RiskData(NR_to_Cash!C$16,$A15))/1000 ->  | H15: =(_xll.RiskData(NR_to_Cash!D$16,$A15))/1000 ->  | I15: =(_xll.RiskData(NR_to_Cash!E$16,$A15))/1000 -> 
A16: 9 | B16: =_xll.RiskData('Risk Summary'!J$32,$A16)/1000 ->  | C16: =_xll.RiskData('Risk Summary'!K$32,$A16)/1000 ->  | D16: =_xll.RiskData('Risk Summary'!L$32,$A16)/1000 ->  | G16: =(_xll.RiskData(NR_to_Cash!C$16,$A16))/1000 ->  | H16: =(_xll.RiskData(NR_to_Cash!D$16,$A16))/1000 ->  | I16: =(_xll.RiskData(NR_to_Cash!E$16,$A16))/1000 -> 
A17: 10 | B17: =_xll.RiskData('Risk Summary'!J$32,$A17)/1000 ->  | C17: =_xll.RiskData('Risk Summary'!K$32,$A17)/1000 ->  | D17: =_xll.RiskData('Risk Summary'!L$32,$A17)/1000 ->  | G17: =(_xll.RiskData(NR_to_Cash!C$16,$A17))/1000 ->  | H17: =(_xll.RiskData(NR_to_Cash!D$16,$A17))/1000 ->  | I17: =(_xll.RiskData(NR_to_Cash!E$16,$A17))/1000 -> 
A18: 11 | B18: =_xll.RiskData('Risk Summary'!J$32,$A18)/1000 ->  | C18: =_xll.RiskData('Risk Summary'!K$32,$A18)/1000 ->  | D18: =_xll.RiskData('Risk Summary'!L$32,$A18)/1000 ->  | G18: =(_xll.RiskData(NR_to_Cash!C$16,$A18))/1000 ->  | H18: =(_xll.RiskData(NR_to_Cash!D$16,$A18))/1000 ->  | I18: =(_xll.RiskData(NR_to_Cash!E$16,$A18))/1000 -> 
A19: 12 | B19: =_xll.RiskData('Risk Summary'!J$32,$A19)/1000 ->  | C19: =_xll.RiskData('Risk Summary'!K$32,$A19)/1000 ->  | D19: =_xll.RiskData('Risk Summary'!L$32,$A19)/1000 ->  | G19: =(_xll.RiskData(NR_to_Cash!C$16,$A19))/1000 ->  | H19: =(_xll.RiskData(NR_to_Cash!D$16,$A19))/1000 ->  | I19: =(_xll.RiskData(NR_to_Cash!E$16,$A19))/1000 -> 
A20: 13 | B20: =_xll.RiskData('Risk Summary'!J$32,$A20)/1000 ->  | C20: =_xll.RiskData('Risk Summary'!K$32,$A20)/1000 ->  | D20: =_xll.RiskData('Risk Summary'!L$32,$A20)/1000 ->  | G20: =(_xll.RiskData(NR_to_Cash!C$16,$A20))/1000 ->  | H20: =(_xll.RiskData(NR_to_Cash!D$16,$A20))/1000 ->  | I20: =(_xll.RiskData(NR_to_Cash!E$16,$A20))/1000 -> 
A21: 14 | B21: =_xll.RiskData('Risk Summary'!J$32,$A21)/1000 ->  | C21: =_xll.RiskData('Risk Summary'!K$32,$A21)/1000 ->  | D21: =_xll.RiskData('Risk Summary'!L$32,$A21)/1000 ->  | G21: =(_xll.RiskData(NR_to_Cash!C$16,$A21))/1000 ->  | H21: =(_xll.RiskData(NR_to_Cash!D$16,$A21))/1000 ->  | I21: =(_xll.RiskData(NR_to_Cash!E$16,$A21))/1000 -> 
A22: 15 | B22: =_xll.RiskData('Risk Summary'!J$32,$A22)/1000 ->  | C22: =_xll.RiskData('Risk Summary'!K$32,$A22)/1000 ->  | D22: =_xll.RiskData('Risk Summary'!L$32,$A22)/1000 ->  | G22: =(_xll.RiskData(NR_to_Cash!C$16,$A22))/1000 ->  | H22: =(_xll.RiskData(NR_to_Cash!D$16,$A22))/1000 ->  | I22: =(_xll.RiskData(NR_to_Cash!E$16,$A22))/1000 -> 
A23: 16 | B23: =_xll.RiskData('Risk Summary'!J$32,$A23)/1000 ->  | C23: =_xll.RiskData('Risk Summary'!K$32,$A23)/1000 ->  | D23: =_xll.RiskData('Risk Summary'!L$32,$A23)/1000 ->  | G23: =(_xll.RiskData(NR_to_Cash!C$16,$A23))/1000 ->  | H23: =(_xll.RiskData(NR_to_Cash!D$16,$A23))/1000 ->  | I23: =(_xll.RiskData(NR_to_Cash!E$16,$A23))/1000 -> 
A24: 17 | B24: =_xll.RiskData('Risk Summary'!J$32,$A24)/1000 ->  | C24: =_xll.RiskData('Risk Summary'!K$32,$A24)/1000 ->  | D24: =_xll.RiskData('Risk Summary'!L$32,$A24)/1000 ->  | G24: =(_xll.RiskData(NR_to_Cash!C$16,$A24))/1000 ->  | H24: =(_xll.RiskData(NR_to_Cash!D$16,$A24))/1000 ->  | I24: =(_xll.RiskData(NR_to_Cash!E$16,$A24))/1000 -> 
A25: 18 | B25: =_xll.RiskData('Risk Summary'!J$32,$A25)/1000 ->  | C25: =_xll.RiskData('Risk Summary'!K$32,$A25)/1000 ->  | D25: =_xll.RiskData('Risk Summary'!L$32,$A25)/1000 ->  | G25: =(_xll.RiskData(NR_to_Cash!C$16,$A25))/1000 ->  | H25: =(_xll.RiskData(NR_to_Cash!D$16,$A25))/1000 ->  | I25: =(_xll.RiskData(NR_to_Cash!E$16,$A25))/1000 -> 
A26: 19 | B26: =_xll.RiskData('Risk Summary'!J$32,$A26)/1000 ->  | C26: =_xll.RiskData('Risk Summary'!K$32,$A26)/1000 ->  | D26: =_xll.RiskData('Risk Summary'!L$32,$A26)/1000 ->  | G26: =(_xll.RiskData(NR_to_Cash!C$16,$A26))/1000 ->  | H26: =(_xll.RiskData(NR_to_Cash!D$16,$A26))/1000 ->  | I26: =(_xll.RiskData(NR_to_Cash!E$16,$A26))/1000 -> 
A27: 20 | B27: =_xll.RiskData('Risk Summary'!J$32,$A27)/1000 ->  | C27: =_xll.RiskData('Risk Summary'!K$32,$A27)/1000 ->  | D27: =_xll.RiskData('Risk Summary'!L$32,$A27)/1000 ->  | G27: =(_xll.RiskData(NR_to_Cash!C$16,$A27))/1000 ->  | H27: =(_xll.RiskData(NR_to_Cash!D$16,$A27))/1000 ->  | I27: =(_xll.RiskData(NR_to_Cash!E$16,$A27))/1000 -> 
A28: 21 | B28: =_xll.RiskData('Risk Summary'!J$32,$A28)/1000 ->  | C28: =_xll.RiskData('Risk Summary'!K$32,$A28)/1000 ->  | D28: =_xll.RiskData('Risk Summary'!L$32,$A28)/1000 ->  | G28: =(_xll.RiskData(NR_to_Cash!C$16,$A28))/1000 ->  | H28: =(_xll.RiskData(NR_to_Cash!D$16,$A28))/1000 ->  | I28: =(_xll.RiskData(NR_to_Cash!E$16,$A28))/1000 -> 
A29: 22 | B29: =_xll.RiskData('Risk Summary'!J$32,$A29)/1000 ->  | C29: =_xll.RiskData('Risk Summary'!K$32,$A29)/1000 ->  | D29: =_xll.RiskData('Risk Summary'!L$32,$A29)/1000 ->  | G29: =(_xll.RiskData(NR_to_Cash!C$16,$A29))/1000 ->  | H29: =(_xll.RiskData(NR_to_Cash!D$16,$A29))/1000 ->  | I29: =(_xll.RiskData(NR_to_Cash!E$16,$A29))/1000 -> 
A30: 23 | B30: =_xll.RiskData('Risk Summary'!J$32,$A30)/1000 ->  | C30: =_xll.RiskData('Risk Summary'!K$32,$A30)/1000 ->  | D30: =_xll.RiskData('Risk Summary'!L$32,$A30)/1000 ->  | G30: =(_xll.RiskData(NR_to_Cash!C$16,$A30))/1000 ->  | H30: =(_xll.RiskData(NR_to_Cash!D$16,$A30))/1000 ->  | I30: =(_xll.RiskData(NR_to_Cash!E$16,$A30))/1000 -> 
A31: 24 | B31: =_xll.RiskData('Risk Summary'!J$32,$A31)/1000 ->  | C31: =_xll.RiskData('Risk Summary'!K$32,$A31)/1000 ->  | D31: =_xll.RiskData('Risk Summary'!L$32,$A31)/1000 ->  | G31: =(_xll.RiskData(NR_to_Cash!C$16,$A31))/1000 ->  | H31: =(_xll.RiskData(NR_to_Cash!D$16,$A31))/1000 ->  | I31: =(_xll.RiskData(NR_to_Cash!E$16,$A31))/1000 -> 
A32: 25 | B32: =_xll.RiskData('Risk Summary'!J$32,$A32)/1000 ->  | C32: =_xll.RiskData('Risk Summary'!K$32,$A32)/1000 ->  | D32: =_xll.RiskData('Risk Summary'!L$32,$A32)/1000 ->  | G32: =(_xll.RiskData(NR_to_Cash!C$16,$A32))/1000 ->  | H32: =(_xll.RiskData(NR_to_Cash!D$16,$A32))/1000 ->  | I32: =(_xll.RiskData(NR_to_Cash!E$16,$A32))/1000 -> 
A33: 26 | B33: =_xll.RiskData('Risk Summary'!J$32,$A33)/1000 ->  | C33: =_xll.RiskData('Risk Summary'!K$32,$A33)/1000 ->  | D33: =_xll.RiskData('Risk Summary'!L$32,$A33)/1000 ->  | G33: =(_xll.RiskData(NR_to_Cash!C$16,$A33))/1000 ->  | H33: =(_xll.RiskData(NR_to_Cash!D$16,$A33))/1000 ->  | I33: =(_xll.RiskData(NR_to_Cash!E$16,$A33))/1000 -> 
A34: 27 | B34: =_xll.RiskData('Risk Summary'!J$32,$A34)/1000 ->  | C34: =_xll.RiskData('Risk Summary'!K$32,$A34)/1000 ->  | D34: =_xll.RiskData('Risk Summary'!L$32,$A34)/1000 ->  | G34: =(_xll.RiskData(NR_to_Cash!C$16,$A34))/1000 ->  | H34: =(_xll.RiskData(NR_to_Cash!D$16,$A34))/1000 ->  | I34: =(_xll.RiskData(NR_to_Cash!E$16,$A34))/1000 -> 
A35: 28 | B35: =_xll.RiskData('Risk Summary'!J$32,$A35)/1000 ->  | C35: =_xll.RiskData('Risk Summary'!K$32,$A35)/1000 ->  | D35: =_xll.RiskData('Risk Summary'!L$32,$A35)/1000 ->  | G35: =(_xll.RiskData(NR_to_Cash!C$16,$A35))/1000 ->  | H35: =(_xll.RiskData(NR_to_Cash!D$16,$A35))/1000 ->  | I35: =(_xll.RiskData(NR_to_Cash!E$16,$A35))/1000 -> 
A36: 29 | B36: =_xll.RiskData('Risk Summary'!J$32,$A36)/1000 ->  | C36: =_xll.RiskData('Risk Summary'!K$32,$A36)/1000 ->  | D36: =_xll.RiskData('Risk Summary'!L$32,$A36)/1000 ->  | G36: =(_xll.RiskData(NR_to_Cash!C$16,$A36))/1000 ->  | H36: =(_xll.RiskData(NR_to_Cash!D$16,$A36))/1000 ->  | I36: =(_xll.RiskData(NR_to_Cash!E$16,$A36))/1000 -> 
A37: 30 | B37: =_xll.RiskData('Risk Summary'!J$32,$A37)/1000 ->  | C37: =_xll.RiskData('Risk Summary'!K$32,$A37)/1000 ->  | D37: =_xll.RiskData('Risk Summary'!L$32,$A37)/1000 ->  | G37: =(_xll.RiskData(NR_to_Cash!C$16,$A37))/1000 ->  | H37: =(_xll.RiskData(NR_to_Cash!D$16,$A37))/1000 ->  | I37: =(_xll.RiskData(NR_to_Cash!E$16,$A37))/1000 -> 
A38: 31 | B38: =_xll.RiskData('Risk Summary'!J$32,$A38)/1000 ->  | C38: =_xll.RiskData('Risk Summary'!K$32,$A38)/1000 ->  | D38: =_xll.RiskData('Risk Summary'!L$32,$A38)/1000 ->  | G38: =(_xll.RiskData(NR_to_Cash!C$16,$A38))/1000 ->  | H38: =(_xll.RiskData(NR_to_Cash!D$16,$A38))/1000 ->  | I38: =(_xll.RiskData(NR_to_Cash!E$16,$A38))/1000 -> 
A39: 32 | B39: =_xll.RiskData('Risk Summary'!J$32,$A39)/1000 ->  | C39: =_xll.RiskData('Risk Summary'!K$32,$A39)/1000 ->  | D39: =_xll.RiskData('Risk Summary'!L$32,$A39)/1000 ->  | G39: =(_xll.RiskData(NR_to_Cash!C$16,$A39))/1000 ->  | H39: =(_xll.RiskData(NR_to_Cash!D$16,$A39))/1000 ->  | I39: =(_xll.RiskData(NR_to_Cash!E$16,$A39))/1000 -> 
A40: 33 | B40: =_xll.RiskData('Risk Summary'!J$32,$A40)/1000 ->  | C40: =_xll.RiskData('Risk Summary'!K$32,$A40)/1000 ->  | D40: =_xll.RiskData('Risk Summary'!L$32,$A40)/1000 ->  | G40: =(_xll.RiskData(NR_to_Cash!C$16,$A40))/1000 ->  | H40: =(_xll.RiskData(NR_to_Cash!D$16,$A40))/1000 ->  | I40: =(_xll.RiskData(NR_to_Cash!E$16,$A40))/1000 -> 
A41: 34 | B41: =_xll.RiskData('Risk Summary'!J$32,$A41)/1000 ->  | C41: =_xll.RiskData('Risk Summary'!K$32,$A41)/1000 ->  | D41: =_xll.RiskData('Risk Summary'!L$32,$A41)/1000 ->  | G41: =(_xll.RiskData(NR_to_Cash!C$16,$A41))/1000 ->  | H41: =(_xll.RiskData(NR_to_Cash!D$16,$A41))/1000 ->  | I41: =(_xll.RiskData(NR_to_Cash!E$16,$A41))/1000 -> 
A42: 35 | B42: =_xll.RiskData('Risk Summary'!J$32,$A42)/1000 ->  | C42: =_xll.RiskData('Risk Summary'!K$32,$A42)/1000 ->  | D42: =_xll.RiskData('Risk Summary'!L$32,$A42)/1000 ->  | G42: =(_xll.RiskData(NR_to_Cash!C$16,$A42))/1000 ->  | H42: =(_xll.RiskData(NR_to_Cash!D$16,$A42))/1000 ->  | I42: =(_xll.RiskData(NR_to_Cash!E$16,$A42))/1000 -> 
A43: 36 | B43: =_xll.RiskData('Risk Summary'!J$32,$A43)/1000 ->  | C43: =_xll.RiskData('Risk Summary'!K$32,$A43)/1000 ->  | D43: =_xll.RiskData('Risk Summary'!L$32,$A43)/1000 ->  | G43: =(_xll.RiskData(NR_to_Cash!C$16,$A43))/1000 ->  | H43: =(_xll.RiskData(NR_to_Cash!D$16,$A43))/1000 ->  | I43: =(_xll.RiskData(NR_to_Cash!E$16,$A43))/1000 -> 
A44: 37 | B44: =_xll.RiskData('Risk Summary'!J$32,$A44)/1000 ->  | C44: =_xll.RiskData('Risk Summary'!K$32,$A44)/1000 ->  | D44: =_xll.RiskData('Risk Summary'!L$32,$A44)/1000 ->  | G44: =(_xll.RiskData(NR_to_Cash!C$16,$A44))/1000 ->  | H44: =(_xll.RiskData(NR_to_Cash!D$16,$A44))/1000 ->  | I44: =(_xll.RiskData(NR_to_Cash!E$16,$A44))/1000 -> 
A45: 38 | B45: =_xll.RiskData('Risk Summary'!J$32,$A45)/1000 ->  | C45: =_xll.RiskData('Risk Summary'!K$32,$A45)/1000 ->  | D45: =_xll.RiskData('Risk Summary'!L$32,$A45)/1000 ->  | G45: =(_xll.RiskData(NR_to_Cash!C$16,$A45))/1000 ->  | H45: =(_xll.RiskData(NR_to_Cash!D$16,$A45))/1000 ->  | I45: =(_xll.RiskData(NR_to_Cash!E$16,$A45))/1000 -> 
A46: 39 | B46: =_xll.RiskData('Risk Summary'!J$32,$A46)/1000 ->  | C46: =_xll.RiskData('Risk Summary'!K$32,$A46)/1000 ->  | D46: =_xll.RiskData('Risk Summary'!L$32,$A46)/1000 ->  | G46: =(_xll.RiskData(NR_to_Cash!C$16,$A46))/1000 ->  | H46: =(_xll.RiskData(NR_to_Cash!D$16,$A46))/1000 ->  | I46: =(_xll.RiskData(NR_to_Cash!E$16,$A46))/1000 -> 
A47: 40 | B47: =_xll.RiskData('Risk Summary'!J$32,$A47)/1000 ->  | C47: =_xll.RiskData('Risk Summary'!K$32,$A47)/1000 ->  | D47: =_xll.RiskData('Risk Summary'!L$32,$A47)/1000 ->  | G47: =(_xll.RiskData(NR_to_Cash!C$16,$A47))/1000 ->  | H47: =(_xll.RiskData(NR_to_Cash!D$16,$A47))/1000 ->  | I47: =(_xll.RiskData(NR_to_Cash!E$16,$A47))/1000 -> 
A48: 41 | B48: =_xll.RiskData('Risk Summary'!J$32,$A48)/1000 ->  | C48: =_xll.RiskData('Risk Summary'!K$32,$A48)/1000 ->  | D48: =_xll.RiskData('Risk Summary'!L$32,$A48)/1000 ->  | G48: =(_xll.RiskData(NR_to_Cash!C$16,$A48))/1000 ->  | H48: =(_xll.RiskData(NR_to_Cash!D$16,$A48))/1000 ->  | I48: =(_xll.RiskData(NR_to_Cash!E$16,$A48))/1000 -> 
A49: 42 | B49: =_xll.RiskData('Risk Summary'!J$32,$A49)/1000 ->  | C49: =_xll.RiskData('Risk Summary'!K$32,$A49)/1000 ->  | D49: =_xll.RiskData('Risk Summary'!L$32,$A49)/1000 ->  | G49: =(_xll.RiskData(NR_to_Cash!C$16,$A49))/1000 ->  | H49: =(_xll.RiskData(NR_to_Cash!D$16,$A49))/1000 ->  | I49: =(_xll.RiskData(NR_to_Cash!E$16,$A49))/1000 -> 
A50: 43 | B50: =_xll.RiskData('Risk Summary'!J$32,$A50)/1000 ->  | C50: =_xll.RiskData('Risk Summary'!K$32,$A50)/1000 ->  | D50: =_xll.RiskData('Risk Summary'!L$32,$A50)/1000 ->  | G50: =(_xll.RiskData(NR_to_Cash!C$16,$A50))/1000 ->  | H50: =(_xll.RiskData(NR_to_Cash!D$16,$A50))/1000 ->  | I50: =(_xll.RiskData(NR_to_Cash!E$16,$A50))/1000 -> 
A51: 44 | B51: =_xll.RiskData('Risk Summary'!J$32,$A51)/1000 ->  | C51: =_xll.RiskData('Risk Summary'!K$32,$A51)/1000 ->  | D51: =_xll.RiskData('Risk Summary'!L$32,$A51)/1000 ->  | G51: =(_xll.RiskData(NR_to_Cash!C$16,$A51))/1000 ->  | H51: =(_xll.RiskData(NR_to_Cash!D$16,$A51))/1000 ->  | I51: =(_xll.RiskData(NR_to_Cash!E$16,$A51))/1000 -> 
A52: 45 | B52: =_xll.RiskData('Risk Summary'!J$32,$A52)/1000 ->  | C52: =_xll.RiskData('Risk Summary'!K$32,$A52)/1000 ->  | D52: =_xll.RiskData('Risk Summary'!L$32,$A52)/1000 ->  | G52: =(_xll.RiskData(NR_to_Cash!C$16,$A52))/1000 ->  | H52: =(_xll.RiskData(NR_to_Cash!D$16,$A52))/1000 ->  | I52: =(_xll.RiskData(NR_to_Cash!E$16,$A52))/1000 -> 
A53: 46 | B53: =_xll.RiskData('Risk Summary'!J$32,$A53)/1000 ->  | C53: =_xll.RiskData('Risk Summary'!K$32,$A53)/1000 ->  | D53: =_xll.RiskData('Risk Summary'!L$32,$A53)/1000 ->  | G53: =(_xll.RiskData(NR_to_Cash!C$16,$A53))/1000 ->  | H53: =(_xll.RiskData(NR_to_Cash!D$16,$A53))/1000 ->  | I53: =(_xll.RiskData(NR_to_Cash!E$16,$A53))/1000 -> 
A54: 47 | B54: =_xll.RiskData('Risk Summary'!J$32,$A54)/1000 ->  | C54: =_xll.RiskData('Risk Summary'!K$32,$A54)/1000 ->  | D54: =_xll.RiskData('Risk Summary'!L$32,$A54)/1000 ->  | G54: =(_xll.RiskData(NR_to_Cash!C$16,$A54))/1000 ->  | H54: =(_xll.RiskData(NR_to_Cash!D$16,$A54))/1000 ->  | I54: =(_xll.RiskData(NR_to_Cash!E$16,$A54))/1000 -> 
A55: 48 | B55: =_xll.RiskData('Risk Summary'!J$32,$A55)/1000 ->  | C55: =_xll.RiskData('Risk Summary'!K$32,$A55)/1000 ->  | D55: =_xll.RiskData('Risk Summary'!L$32,$A55)/1000 ->  | G55: =(_xll.RiskData(NR_to_Cash!C$16,$A55))/1000 ->  | H55: =(_xll.RiskData(NR_to_Cash!D$16,$A55))/1000 ->  | I55: =(_xll.RiskData(NR_to_Cash!E$16,$A55))/1000 -> 
A56: 49 | B56: =_xll.RiskData('Risk Summary'!J$32,$A56)/1000 ->  | C56: =_xll.RiskData('Risk Summary'!K$32,$A56)/1000 ->  | D56: =_xll.RiskData('Risk Summary'!L$32,$A56)/1000 ->  | G56: =(_xll.RiskData(NR_to_Cash!C$16,$A56))/1000 ->  | H56: =(_xll.RiskData(NR_to_Cash!D$16,$A56))/1000 ->  | I56: =(_xll.RiskData(NR_to_Cash!E$16,$A56))/1000 -> 
A57: 50 | B57: =_xll.RiskData('Risk Summary'!J$32,$A57)/1000 ->  | C57: =_xll.RiskData('Risk Summary'!K$32,$A57)/1000 ->  | D57: =_xll.RiskData('Risk Summary'!L$32,$A57)/1000 ->  | G57: =(_xll.RiskData(NR_to_Cash!C$16,$A57))/1000 ->  | H57: =(_xll.RiskData(NR_to_Cash!D$16,$A57))/1000 ->  | I57: =(_xll.RiskData(NR_to_Cash!E$16,$A57))/1000 -> 
A58: 51 | B58: =_xll.RiskData('Risk Summary'!J$32,$A58)/1000 ->  | C58: =_xll.RiskData('Risk Summary'!K$32,$A58)/1000 ->  | D58: =_xll.RiskData('Risk Summary'!L$32,$A58)/1000 ->  | G58: =(_xll.RiskData(NR_to_Cash!C$16,$A58))/1000 ->  | H58: =(_xll.RiskData(NR_to_Cash!D$16,$A58))/1000 ->  | I58: =(_xll.RiskData(NR_to_Cash!E$16,$A58))/1000 -> 
A59: 52 | B59: =_xll.RiskData('Risk Summary'!J$32,$A59)/1000 ->  | C59: =_xll.RiskData('Risk Summary'!K$32,$A59)/1000 ->  | D59: =_xll.RiskData('Risk Summary'!L$32,$A59)/1000 ->  | G59: =(_xll.RiskData(NR_to_Cash!C$16,$A59))/1000 ->  | H59: =(_xll.RiskData(NR_to_Cash!D$16,$A59))/1000 ->  | I59: =(_xll.RiskData(NR_to_Cash!E$16,$A59))/1000 -> 
A60: 53 | B60: =_xll.RiskData('Risk Summary'!J$32,$A60)/1000 ->  | C60: =_xll.RiskData('Risk Summary'!K$32,$A60)/1000 ->  | D60: =_xll.RiskData('Risk Summary'!L$32,$A60)/1000 ->  | G60: =(_xll.RiskData(NR_to_Cash!C$16,$A60))/1000 ->  | H60: =(_xll.RiskData(NR_to_Cash!D$16,$A60))/1000 ->  | I60: =(_xll.RiskData(NR_to_Cash!E$16,$A60))/1000 -> 
A61: 54 | B61: =_xll.RiskData('Risk Summary'!J$32,$A61)/1000 ->  | C61: =_xll.RiskData('Risk Summary'!K$32,$A61)/1000 ->  | D61: =_xll.RiskData('Risk Summary'!L$32,$A61)/1000 ->  | G61: =(_xll.RiskData(NR_to_Cash!C$16,$A61))/1000 ->  | H61: =(_xll.RiskData(NR_to_Cash!D$16,$A61))/1000 ->  | I61: =(_xll.RiskData(NR_to_Cash!E$16,$A61))/1000 -> 
A62: 55 | B62: =_xll.RiskData('Risk Summary'!J$32,$A62)/1000 ->  | C62: =_xll.RiskData('Risk Summary'!K$32,$A62)/1000 ->  | D62: =_xll.RiskData('Risk Summary'!L$32,$A62)/1000 ->  | G62: =(_xll.RiskData(NR_to_Cash!C$16,$A62))/1000 ->  | H62: =(_xll.RiskData(NR_to_Cash!D$16,$A62))/1000 ->  | I62: =(_xll.RiskData(NR_to_Cash!E$16,$A62))/1000 -> 
A63: 56 | B63: =_xll.RiskData('Risk Summary'!J$32,$A63)/1000 ->  | C63: =_xll.RiskData('Risk Summary'!K$32,$A63)/1000 ->  | D63: =_xll.RiskData('Risk Summary'!L$32,$A63)/1000 ->  | G63: =(_xll.RiskData(NR_to_Cash!C$16,$A63))/1000 ->  | H63: =(_xll.RiskData(NR_to_Cash!D$16,$A63))/1000 ->  | I63: =(_xll.RiskData(NR_to_Cash!E$16,$A63))/1000 -> 
A64: 57 | B64: =_xll.RiskData('Risk Summary'!J$32,$A64)/1000 ->  | C64: =_xll.RiskData('Risk Summary'!K$32,$A64)/1000 ->  | D64: =_xll.RiskData('Risk Summary'!L$32,$A64)/1000 ->  | G64: =(_xll.RiskData(NR_to_Cash!C$16,$A64))/1000 ->  | H64: =(_xll.RiskData(NR_to_Cash!D$16,$A64))/1000 ->  | I64: =(_xll.RiskData(NR_to_Cash!E$16,$A64))/1000 -> 
A65: 58 | B65: =_xll.RiskData('Risk Summary'!J$32,$A65)/1000 ->  | C65: =_xll.RiskData('Risk Summary'!K$32,$A65)/1000 ->  | D65: =_xll.RiskData('Risk Summary'!L$32,$A65)/1000 ->  | G65: =(_xll.RiskData(NR_to_Cash!C$16,$A65))/1000 ->  | H65: =(_xll.RiskData(NR_to_Cash!D$16,$A65))/1000 ->  | I65: =(_xll.RiskData(NR_to_Cash!E$16,$A65))/1000 -> 
A66: 59 | B66: =_xll.RiskData('Risk Summary'!J$32,$A66)/1000 ->  | C66: =_xll.RiskData('Risk Summary'!K$32,$A66)/1000 ->  | D66: =_xll.RiskData('Risk Summary'!L$32,$A66)/1000 ->  | G66: =(_xll.RiskData(NR_to_Cash!C$16,$A66))/1000 ->  | H66: =(_xll.RiskData(NR_to_Cash!D$16,$A66))/1000 ->  | I66: =(_xll.RiskData(NR_to_Cash!E$16,$A66))/1000 -> 
A67: 60 | B67: =_xll.RiskData('Risk Summary'!J$32,$A67)/1000 ->  | C67: =_xll.RiskData('Risk Summary'!K$32,$A67)/1000 ->  | D67: =_xll.RiskData('Risk Summary'!L$32,$A67)/1000 ->  | G67: =(_xll.RiskData(NR_to_Cash!C$16,$A67))/1000 ->  | H67: =(_xll.RiskData(NR_to_Cash!D$16,$A67))/1000 ->  | I67: =(_xll.RiskData(NR_to_Cash!E$16,$A67))/1000 -> 
A68: 61 | B68: =_xll.RiskData('Risk Summary'!J$32,$A68)/1000 ->  | C68: =_xll.RiskData('Risk Summary'!K$32,$A68)/1000 ->  | D68: =_xll.RiskData('Risk Summary'!L$32,$A68)/1000 ->  | G68: =(_xll.RiskData(NR_to_Cash!C$16,$A68))/1000 ->  | H68: =(_xll.RiskData(NR_to_Cash!D$16,$A68))/1000 ->  | I68: =(_xll.RiskData(NR_to_Cash!E$16,$A68))/1000 -> 
A69: 62 | B69: =_xll.RiskData('Risk Summary'!J$32,$A69)/1000 ->  | C69: =_xll.RiskData('Risk Summary'!K$32,$A69)/1000 ->  | D69: =_xll.RiskData('Risk Summary'!L$32,$A69)/1000 ->  | G69: =(_xll.RiskData(NR_to_Cash!C$16,$A69))/1000 ->  | H69: =(_xll.RiskData(NR_to_Cash!D$16,$A69))/1000 ->  | I69: =(_xll.RiskData(NR_to_Cash!E$16,$A69))/1000 -> 
A70: 63 | B70: =_xll.RiskData('Risk Summary'!J$32,$A70)/1000 ->  | C70: =_xll.RiskData('Risk Summary'!K$32,$A70)/1000 ->  | D70: =_xll.RiskData('Risk Summary'!L$32,$A70)/1000 ->  | G70: =(_xll.RiskData(NR_to_Cash!C$16,$A70))/1000 ->  | H70: =(_xll.RiskData(NR_to_Cash!D$16,$A70))/1000 ->  | I70: =(_xll.RiskData(NR_to_Cash!E$16,$A70))/1000 -> 
A71: 64 | B71: =_xll.RiskData('Risk Summary'!J$32,$A71)/1000 ->  | C71: =_xll.RiskData('Risk Summary'!K$32,$A71)/1000 ->  | D71: =_xll.RiskData('Risk Summary'!L$32,$A71)/1000 ->  | G71: =(_xll.RiskData(NR_to_Cash!C$16,$A71))/1000 ->  | H71: =(_xll.RiskData(NR_to_Cash!D$16,$A71))/1000 ->  | I71: =(_xll.RiskData(NR_to_Cash!E$16,$A71))/1000 -> 
A72: 65 | B72: =_xll.RiskData('Risk Summary'!J$32,$A72)/1000 ->  | C72: =_xll.RiskData('Risk Summary'!K$32,$A72)/1000 ->  | D72: =_xll.RiskData('Risk Summary'!L$32,$A72)/1000 ->  | G72: =(_xll.RiskData(NR_to_Cash!C$16,$A72))/1000 ->  | H72: =(_xll.RiskData(NR_to_Cash!D$16,$A72))/1000 ->  | I72: =(_xll.RiskData(NR_to_Cash!E$16,$A72))/1000 -> 
A73: 66 | B73: =_xll.RiskData('Risk Summary'!J$32,$A73)/1000 ->  | C73: =_xll.RiskData('Risk Summary'!K$32,$A73)/1000 ->  | D73: =_xll.RiskData('Risk Summary'!L$32,$A73)/1000 ->  | G73: =(_xll.RiskData(NR_to_Cash!C$16,$A73))/1000 ->  | H73: =(_xll.RiskData(NR_to_Cash!D$16,$A73))/1000 ->  | I73: =(_xll.RiskData(NR_to_Cash!E$16,$A73))/1000 -> 
A74: 67 | B74: =_xll.RiskData('Risk Summary'!J$32,$A74)/1000 ->  | C74: =_xll.RiskData('Risk Summary'!K$32,$A74)/1000 ->  | D74: =_xll.RiskData('Risk Summary'!L$32,$A74)/1000 ->  | G74: =(_xll.RiskData(NR_to_Cash!C$16,$A74))/1000 ->  | H74: =(_xll.RiskData(NR_to_Cash!D$16,$A74))/1000 ->  | I74: =(_xll.RiskData(NR_to_Cash!E$16,$A74))/1000 -> 
A75: 68 | B75: =_xll.RiskData('Risk Summary'!J$32,$A75)/1000 ->  | C75: =_xll.RiskData('Risk Summary'!K$32,$A75)/1000 ->  | D75: =_xll.RiskData('Risk Summary'!L$32,$A75)/1000 ->  | G75: =(_xll.RiskData(NR_to_Cash!C$16,$A75))/1000 ->  | H75: =(_xll.RiskData(NR_to_Cash!D$16,$A75))/1000 ->  | I75: =(_xll.RiskData(NR_to_Cash!E$16,$A75))/1000 -> 
A76: 69 | B76: =_xll.RiskData('Risk Summary'!J$32,$A76)/1000 ->  | C76: =_xll.RiskData('Risk Summary'!K$32,$A76)/1000 ->  | D76: =_xll.RiskData('Risk Summary'!L$32,$A76)/1000 ->  | G76: =(_xll.RiskData(NR_to_Cash!C$16,$A76))/1000 ->  | H76: =(_xll.RiskData(NR_to_Cash!D$16,$A76))/1000 ->  | I76: =(_xll.RiskData(NR_to_Cash!E$16,$A76))/1000 -> 
A77: 70 | B77: =_xll.RiskData('Risk Summary'!J$32,$A77)/1000 ->  | C77: =_xll.RiskData('Risk Summary'!K$32,$A77)/1000 ->  | D77: =_xll.RiskData('Risk Summary'!L$32,$A77)/1000 ->  | G77: =(_xll.RiskData(NR_to_Cash!C$16,$A77))/1000 ->  | H77: =(_xll.RiskData(NR_to_Cash!D$16,$A77))/1000 ->  | I77: =(_xll.RiskData(NR_to_Cash!E$16,$A77))/1000 -> 
A78: 71 | B78: =_xll.RiskData('Risk Summary'!J$32,$A78)/1000 ->  | C78: =_xll.RiskData('Risk Summary'!K$32,$A78)/1000 ->  | D78: =_xll.RiskData('Risk Summary'!L$32,$A78)/1000 ->  | G78: =(_xll.RiskData(NR_to_Cash!C$16,$A78))/1000 ->  | H78: =(_xll.RiskData(NR_to_Cash!D$16,$A78))/1000 ->  | I78: =(_xll.RiskData(NR_to_Cash!E$16,$A78))/1000 -> 
A79: 72 | B79: =_xll.RiskData('Risk Summary'!J$32,$A79)/1000 ->  | C79: =_xll.RiskData('Risk Summary'!K$32,$A79)/1000 ->  | D79: =_xll.RiskData('Risk Summary'!L$32,$A79)/1000 ->  | G79: =(_xll.RiskData(NR_to_Cash!C$16,$A79))/1000 ->  | H79: =(_xll.RiskData(NR_to_Cash!D$16,$A79))/1000 ->  | I79: =(_xll.RiskData(NR_to_Cash!E$16,$A79))/1000 -> 
A80: 73 | B80: =_xll.RiskData('Risk Summary'!J$32,$A80)/1000 ->  | C80: =_xll.RiskData('Risk Summary'!K$32,$A80)/1000 ->  | D80: =_xll.RiskData('Risk Summary'!L$32,$A80)/1000 ->  | G80: =(_xll.RiskData(NR_to_Cash!C$16,$A80))/1000 ->  | H80: =(_xll.RiskData(NR_to_Cash!D$16,$A80))/1000 ->  | I80: =(_xll.RiskData(NR_to_Cash!E$16,$A80))/1000 -> 
A81: 74 | B81: =_xll.RiskData('Risk Summary'!J$32,$A81)/1000 ->  | C81: =_xll.RiskData('Risk Summary'!K$32,$A81)/1000 ->  | D81: =_xll.RiskData('Risk Summary'!L$32,$A81)/1000 ->  | G81: =(_xll.RiskData(NR_to_Cash!C$16,$A81))/1000 ->  | H81: =(_xll.RiskData(NR_to_Cash!D$16,$A81))/1000 ->  | I81: =(_xll.RiskData(NR_to_Cash!E$16,$A81))/1000 -> 
A82: 75 | B82: =_xll.RiskData('Risk Summary'!J$32,$A82)/1000 ->  | C82: =_xll.RiskData('Risk Summary'!K$32,$A82)/1000 ->  | D82: =_xll.RiskData('Risk Summary'!L$32,$A82)/1000 ->  | G82: =(_xll.RiskData(NR_to_Cash!C$16,$A82))/1000 ->  | H82: =(_xll.RiskData(NR_to_Cash!D$16,$A82))/1000 ->  | I82: =(_xll.RiskData(NR_to_Cash!E$16,$A82))/1000 -> 
A83: 76 | B83: =_xll.RiskData('Risk Summary'!J$32,$A83)/1000 ->  | C83: =_xll.RiskData('Risk Summary'!K$32,$A83)/1000 ->  | D83: =_xll.RiskData('Risk Summary'!L$32,$A83)/1000 ->  | G83: =(_xll.RiskData(NR_to_Cash!C$16,$A83))/1000 ->  | H83: =(_xll.RiskData(NR_to_Cash!D$16,$A83))/1000 ->  | I83: =(_xll.RiskData(NR_to_Cash!E$16,$A83))/1000 -> 
A84: 77 | B84: =_xll.RiskData('Risk Summary'!J$32,$A84)/1000 ->  | C84: =_xll.RiskData('Risk Summary'!K$32,$A84)/1000 ->  | D84: =_xll.RiskData('Risk Summary'!L$32,$A84)/1000 ->  | G84: =(_xll.RiskData(NR_to_Cash!C$16,$A84))/1000 ->  | H84: =(_xll.RiskData(NR_to_Cash!D$16,$A84))/1000 ->  | I84: =(_xll.RiskData(NR_to_Cash!E$16,$A84))/1000 -> 
A85: 78 | B85: =_xll.RiskData('Risk Summary'!J$32,$A85)/1000 ->  | C85: =_xll.RiskData('Risk Summary'!K$32,$A85)/1000 ->  | D85: =_xll.RiskData('Risk Summary'!L$32,$A85)/1000 ->  | G85: =(_xll.RiskData(NR_to_Cash!C$16,$A85))/1000 ->  | H85: =(_xll.RiskData(NR_to_Cash!D$16,$A85))/1000 ->  | I85: =(_xll.RiskData(NR_to_Cash!E$16,$A85))/1000 -> 
A86: 79 | B86: =_xll.RiskData('Risk Summary'!J$32,$A86)/1000 ->  | C86: =_xll.RiskData('Risk Summary'!K$32,$A86)/1000 ->  | D86: =_xll.RiskData('Risk Summary'!L$32,$A86)/1000 ->  | G86: =(_xll.RiskData(NR_to_Cash!C$16,$A86))/1000 ->  | H86: =(_xll.RiskData(NR_to_Cash!D$16,$A86))/1000 ->  | I86: =(_xll.RiskData(NR_to_Cash!E$16,$A86))/1000 -> 
A87: 80 | B87: =_xll.RiskData('Risk Summary'!J$32,$A87)/1000 ->  | C87: =_xll.RiskData('Risk Summary'!K$32,$A87)/1000 ->  | D87: =_xll.RiskData('Risk Summary'!L$32,$A87)/1000 ->  | G87: =(_xll.RiskData(NR_to_Cash!C$16,$A87))/1000 ->  | H87: =(_xll.RiskData(NR_to_Cash!D$16,$A87))/1000 ->  | I87: =(_xll.RiskData(NR_to_Cash!E$16,$A87))/1000 -> 
A88: 81 | B88: =_xll.RiskData('Risk Summary'!J$32,$A88)/1000 ->  | C88: =_xll.RiskData('Risk Summary'!K$32,$A88)/1000 ->  | D88: =_xll.RiskData('Risk Summary'!L$32,$A88)/1000 ->  | G88: =(_xll.RiskData(NR_to_Cash!C$16,$A88))/1000 ->  | H88: =(_xll.RiskData(NR_to_Cash!D$16,$A88))/1000 ->  | I88: =(_xll.RiskData(NR_to_Cash!E$16,$A88))/1000 -> 
A89: 82 | B89: =_xll.RiskData('Risk Summary'!J$32,$A89)/1000 ->  | C89: =_xll.RiskData('Risk Summary'!K$32,$A89)/1000 ->  | D89: =_xll.RiskData('Risk Summary'!L$32,$A89)/1000 ->  | G89: =(_xll.RiskData(NR_to_Cash!C$16,$A89))/1000 ->  | H89: =(_xll.RiskData(NR_to_Cash!D$16,$A89))/1000 ->  | I89: =(_xll.RiskData(NR_to_Cash!E$16,$A89))/1000 -> 
A90: 83 | B90: =_xll.RiskData('Risk Summary'!J$32,$A90)/1000 ->  | C90: =_xll.RiskData('Risk Summary'!K$32,$A90)/1000 ->  | D90: =_xll.RiskData('Risk Summary'!L$32,$A90)/1000 ->  | G90: =(_xll.RiskData(NR_to_Cash!C$16,$A90))/1000 ->  | H90: =(_xll.RiskData(NR_to_Cash!D$16,$A90))/1000 ->  | I90: =(_xll.RiskData(NR_to_Cash!E$16,$A90))/1000 -> 
A91: 84 | B91: =_xll.RiskData('Risk Summary'!J$32,$A91)/1000 ->  | C91: =_xll.RiskData('Risk Summary'!K$32,$A91)/1000 ->  | D91: =_xll.RiskData('Risk Summary'!L$32,$A91)/1000 ->  | G91: =(_xll.RiskData(NR_to_Cash!C$16,$A91))/1000 ->  | H91: =(_xll.RiskData(NR_to_Cash!D$16,$A91))/1000 ->  | I91: =(_xll.RiskData(NR_to_Cash!E$16,$A91))/1000 -> 
A92: 85 | B92: =_xll.RiskData('Risk Summary'!J$32,$A92)/1000 ->  | C92: =_xll.RiskData('Risk Summary'!K$32,$A92)/1000 ->  | D92: =_xll.RiskData('Risk Summary'!L$32,$A92)/1000 ->  | G92: =(_xll.RiskData(NR_to_Cash!C$16,$A92))/1000 ->  | H92: =(_xll.RiskData(NR_to_Cash!D$16,$A92))/1000 ->  | I92: =(_xll.RiskData(NR_to_Cash!E$16,$A92))/1000 -> 
A93: 86 | B93: =_xll.RiskData('Risk Summary'!J$32,$A93)/1000 ->  | C93: =_xll.RiskData('Risk Summary'!K$32,$A93)/1000 ->  | D93: =_xll.RiskData('Risk Summary'!L$32,$A93)/1000 ->  | G93: =(_xll.RiskData(NR_to_Cash!C$16,$A93))/1000 ->  | H93: =(_xll.RiskData(NR_to_Cash!D$16,$A93))/1000 ->  | I93: =(_xll.RiskData(NR_to_Cash!E$16,$A93))/1000 -> 
A94: 87 | B94: =_xll.RiskData('Risk Summary'!J$32,$A94)/1000 ->  | C94: =_xll.RiskData('Risk Summary'!K$32,$A94)/1000 ->  | D94: =_xll.RiskData('Risk Summary'!L$32,$A94)/1000 ->  | G94: =(_xll.RiskData(NR_to_Cash!C$16,$A94))/1000 ->  | H94: =(_xll.RiskData(NR_to_Cash!D$16,$A94))/1000 ->  | I94: =(_xll.RiskData(NR_to_Cash!E$16,$A94))/1000 -> 
A95: 88 | B95: =_xll.RiskData('Risk Summary'!J$32,$A95)/1000 ->  | C95: =_xll.RiskData('Risk Summary'!K$32,$A95)/1000 ->  | D95: =_xll.RiskData('Risk Summary'!L$32,$A95)/1000 ->  | G95: =(_xll.RiskData(NR_to_Cash!C$16,$A95))/1000 ->  | H95: =(_xll.RiskData(NR_to_Cash!D$16,$A95))/1000 ->  | I95: =(_xll.RiskData(NR_to_Cash!E$16,$A95))/1000 -> 
A96: 89 | B96: =_xll.RiskData('Risk Summary'!J$32,$A96)/1000 ->  | C96: =_xll.RiskData('Risk Summary'!K$32,$A96)/1000 ->  | D96: =_xll.RiskData('Risk Summary'!L$32,$A96)/1000 ->  | G96: =(_xll.RiskData(NR_to_Cash!C$16,$A96))/1000 ->  | H96: =(_xll.RiskData(NR_to_Cash!D$16,$A96))/1000 ->  | I96: =(_xll.RiskData(NR_to_Cash!E$16,$A96))/1000 -> 
A97: 90 | B97: =_xll.RiskData('Risk Summary'!J$32,$A97)/1000 ->  | C97: =_xll.RiskData('Risk Summary'!K$32,$A97)/1000 ->  | D97: =_xll.RiskData('Risk Summary'!L$32,$A97)/1000 ->  | G97: =(_xll.RiskData(NR_to_Cash!C$16,$A97))/1000 ->  | H97: =(_xll.RiskData(NR_to_Cash!D$16,$A97))/1000 ->  | I97: =(_xll.RiskData(NR_to_Cash!E$16,$A97))/1000 -> 
A98: 91 | B98: =_xll.RiskData('Risk Summary'!J$32,$A98)/1000 ->  | C98: =_xll.RiskData('Risk Summary'!K$32,$A98)/1000 ->  | D98: =_xll.RiskData('Risk Summary'!L$32,$A98)/1000 ->  | G98: =(_xll.RiskData(NR_to_Cash!C$16,$A98))/1000 ->  | H98: =(_xll.RiskData(NR_to_Cash!D$16,$A98))/1000 ->  | I98: =(_xll.RiskData(NR_to_Cash!E$16,$A98))/1000 -> 
A99: 92 | B99: =_xll.RiskData('Risk Summary'!J$32,$A99)/1000 ->  | C99: =_xll.RiskData('Risk Summary'!K$32,$A99)/1000 ->  | D99: =_xll.RiskData('Risk Summary'!L$32,$A99)/1000 ->  | G99: =(_xll.RiskData(NR_to_Cash!C$16,$A99))/1000 ->  | H99: =(_xll.RiskData(NR_to_Cash!D$16,$A99))/1000 ->  | I99: =(_xll.RiskData(NR_to_Cash!E$16,$A99))/1000 -> 
A100: 93 | B100: =_xll.RiskData('Risk Summary'!J$32,$A100)/1000 ->  | C100: =_xll.RiskData('Risk Summary'!K$32,$A100)/1000 ->  | D100: =_xll.RiskData('Risk Summary'!L$32,$A100)/1000 ->  | G100: =(_xll.RiskData(NR_to_Cash!C$16,$A100))/1000 ->  | H100: =(_xll.RiskData(NR_to_Cash!D$16,$A100))/1000 ->  | I100: =(_xll.RiskData(NR_to_Cash!E$16,$A100))/1000 -> 
A101: 94 | B101: =_xll.RiskData('Risk Summary'!J$32,$A101)/1000 ->  | C101: =_xll.RiskData('Risk Summary'!K$32,$A101)/1000 ->  | D101: =_xll.RiskData('Risk Summary'!L$32,$A101)/1000 ->  | G101: =(_xll.RiskData(NR_to_Cash!C$16,$A101))/1000 ->  | H101: =(_xll.RiskData(NR_to_Cash!D$16,$A101))/1000 ->  | I101: =(_xll.RiskData(NR_to_Cash!E$16,$A101))/1000 -> 
A102: 95 | B102: =_xll.RiskData('Risk Summary'!J$32,$A102)/1000 ->  | C102: =_xll.RiskData('Risk Summary'!K$32,$A102)/1000 ->  | D102: =_xll.RiskData('Risk Summary'!L$32,$A102)/1000 ->  | G102: =(_xll.RiskData(NR_to_Cash!C$16,$A102))/1000 ->  | H102: =(_xll.RiskData(NR_to_Cash!D$16,$A102))/1000 ->  | I102: =(_xll.RiskData(NR_to_Cash!E$16,$A102))/1000 -> 
A103: 96 | B103: =_xll.RiskData('Risk Summary'!J$32,$A103)/1000 ->  | C103: =_xll.RiskData('Risk Summary'!K$32,$A103)/1000 ->  | D103: =_xll.RiskData('Risk Summary'!L$32,$A103)/1000 ->  | G103: =(_xll.RiskData(NR_to_Cash!C$16,$A103))/1000 ->  | H103: =(_xll.RiskData(NR_to_Cash!D$16,$A103))/1000 ->  | I103: =(_xll.RiskData(NR_to_Cash!E$16,$A103))/1000 -> 
A104: 97 | B104: =_xll.RiskData('Risk Summary'!J$32,$A104)/1000 ->  | C104: =_xll.RiskData('Risk Summary'!K$32,$A104)/1000 ->  | D104: =_xll.RiskData('Risk Summary'!L$32,$A104)/1000 ->  | G104: =(_xll.RiskData(NR_to_Cash!C$16,$A104))/1000 ->  | H104: =(_xll.RiskData(NR_to_Cash!D$16,$A104))/1000 ->  | I104: =(_xll.RiskData(NR_to_Cash!E$16,$A104))/1000 -> 
A105: 98 | B105: =_xll.RiskData('Risk Summary'!J$32,$A105)/1000 ->  | C105: =_xll.RiskData('Risk Summary'!K$32,$A105)/1000 ->  | D105: =_xll.RiskData('Risk Summary'!L$32,$A105)/1000 ->  | G105: =(_xll.RiskData(NR_to_Cash!C$16,$A105))/1000 ->  | H105: =(_xll.RiskData(NR_to_Cash!D$16,$A105))/1000 ->  | I105: =(_xll.RiskData(NR_to_Cash!E$16,$A105))/1000 -> 
A106: 99 | B106: =_xll.RiskData('Risk Summary'!J$32,$A106)/1000 ->  | C106: =_xll.RiskData('Risk Summary'!K$32,$A106)/1000 ->  | D106: =_xll.RiskData('Risk Summary'!L$32,$A106)/1000 ->  | G106: =(_xll.RiskData(NR_to_Cash!C$16,$A106))/1000 ->  | H106: =(_xll.RiskData(NR_to_Cash!D$16,$A106))/1000 ->  | I106: =(_xll.RiskData(NR_to_Cash!E$16,$A106))/1000 -> 
A107: 100 | B107: =_xll.RiskData('Risk Summary'!J$32,$A107)/1000 ->  | C107: =_xll.RiskData('Risk Summary'!K$32,$A107)/1000 ->  | D107: =_xll.RiskData('Risk Summary'!L$32,$A107)/1000 ->  | G107: =(_xll.RiskData(NR_to_Cash!C$16,$A107))/1000 ->  | H107: =(_xll.RiskData(NR_to_Cash!D$16,$A107))/1000 ->  | I107: =(_xll.RiskData(NR_to_Cash!E$16,$A107))/1000 -> 
A108: 101 | B108: =_xll.RiskData('Risk Summary'!J$32,$A108)/1000 ->  | C108: =_xll.RiskData('Risk Summary'!K$32,$A108)/1000 ->  | D108: =_xll.RiskData('Risk Summary'!L$32,$A108)/1000 ->  | G108: =(_xll.RiskData(NR_to_Cash!C$16,$A108))/1000 ->  | H108: =(_xll.RiskData(NR_to_Cash!D$16,$A108))/1000 ->  | I108: =(_xll.RiskData(NR_to_Cash!E$16,$A108))/1000 -> 
A109: 102 | B109: =_xll.RiskData('Risk Summary'!J$32,$A109)/1000 ->  | C109: =_xll.RiskData('Risk Summary'!K$32,$A109)/1000 ->  | D109: =_xll.RiskData('Risk Summary'!L$32,$A109)/1000 ->  | G109: =(_xll.RiskData(NR_to_Cash!C$16,$A109))/1000 ->  | H109: =(_xll.RiskData(NR_to_Cash!D$16,$A109))/1000 ->  | I109: =(_xll.RiskData(NR_to_Cash!E$16,$A109))/1000 -> 
A110: 103 | B110: =_xll.RiskData('Risk Summary'!J$32,$A110)/1000 ->  | C110: =_xll.RiskData('Risk Summary'!K$32,$A110)/1000 ->  | D110: =_xll.RiskData('Risk Summary'!L$32,$A110)/1000 ->  | G110: =(_xll.RiskData(NR_to_Cash!C$16,$A110))/1000 ->  | H110: =(_xll.RiskData(NR_to_Cash!D$16,$A110))/1000 ->  | I110: =(_xll.RiskData(NR_to_Cash!E$16,$A110))/1000 -> 
A111: 104 | B111: =_xll.RiskData('Risk Summary'!J$32,$A111)/1000 ->  | C111: =_xll.RiskData('Risk Summary'!K$32,$A111)/1000 ->  | D111: =_xll.RiskData('Risk Summary'!L$32,$A111)/1000 ->  | G111: =(_xll.RiskData(NR_to_Cash!C$16,$A111))/1000 ->  | H111: =(_xll.RiskData(NR_to_Cash!D$16,$A111))/1000 ->  | I111: =(_xll.RiskData(NR_to_Cash!E$16,$A111))/1000 -> 
A112: 105 | B112: =_xll.RiskData('Risk Summary'!J$32,$A112)/1000 ->  | C112: =_xll.RiskData('Risk Summary'!K$32,$A112)/1000 ->  | D112: =_xll.RiskData('Risk Summary'!L$32,$A112)/1000 ->  | G112: =(_xll.RiskData(NR_to_Cash!C$16,$A112))/1000 ->  | H112: =(_xll.RiskData(NR_to_Cash!D$16,$A112))/1000 ->  | I112: =(_xll.RiskData(NR_to_Cash!E$16,$A112))/1000 -> 
A113: 106 | B113: =_xll.RiskData('Risk Summary'!J$32,$A113)/1000 ->  | C113: =_xll.RiskData('Risk Summary'!K$32,$A113)/1000 ->  | D113: =_xll.RiskData('Risk Summary'!L$32,$A113)/1000 ->  | G113: =(_xll.RiskData(NR_to_Cash!C$16,$A113))/1000 ->  | H113: =(_xll.RiskData(NR_to_Cash!D$16,$A113))/1000 ->  | I113: =(_xll.RiskData(NR_to_Cash!E$16,$A113))/1000 -> 
A114: 107 | B114: =_xll.RiskData('Risk Summary'!J$32,$A114)/1000 ->  | C114: =_xll.RiskData('Risk Summary'!K$32,$A114)/1000 ->  | D114: =_xll.RiskData('Risk Summary'!L$32,$A114)/1000 ->  | G114: =(_xll.RiskData(NR_to_Cash!C$16,$A114))/1000 ->  | H114: =(_xll.RiskData(NR_to_Cash!D$16,$A114))/1000 ->  | I114: =(_xll.RiskData(NR_to_Cash!E$16,$A114))/1000 -> 
A115: 108 | B115: =_xll.RiskData('Risk Summary'!J$32,$A115)/1000 ->  | C115: =_xll.RiskData('Risk Summary'!K$32,$A115)/1000 ->  | D115: =_xll.RiskData('Risk Summary'!L$32,$A115)/1000 ->  | G115: =(_xll.RiskData(NR_to_Cash!C$16,$A115))/1000 ->  | H115: =(_xll.RiskData(NR_to_Cash!D$16,$A115))/1000 ->  | I115: =(_xll.RiskData(NR_to_Cash!E$16,$A115))/1000 -> 
A116: 109 | B116: =_xll.RiskData('Risk Summary'!J$32,$A116)/1000 ->  | C116: =_xll.RiskData('Risk Summary'!K$32,$A116)/1000 ->  | D116: =_xll.RiskData('Risk Summary'!L$32,$A116)/1000 ->  | G116: =(_xll.RiskData(NR_to_Cash!C$16,$A116))/1000 ->  | H116: =(_xll.RiskData(NR_to_Cash!D$16,$A116))/1000 ->  | I116: =(_xll.RiskData(NR_to_Cash!E$16,$A116))/1000 -> 
A117: 110 | B117: =_xll.RiskData('Risk Summary'!J$32,$A117)/1000 ->  | C117: =_xll.RiskData('Risk Summary'!K$32,$A117)/1000 ->  | D117: =_xll.RiskData('Risk Summary'!L$32,$A117)/1000 ->  | G117: =(_xll.RiskData(NR_to_Cash!C$16,$A117))/1000 ->  | H117: =(_xll.RiskData(NR_to_Cash!D$16,$A117))/1000 ->  | I117: =(_xll.RiskData(NR_to_Cash!E$16,$A117))/1000 -> 
A118: 111 | B118: =_xll.RiskData('Risk Summary'!J$32,$A118)/1000 ->  | C118: =_xll.RiskData('Risk Summary'!K$32,$A118)/1000 ->  | D118: =_xll.RiskData('Risk Summary'!L$32,$A118)/1000 ->  | G118: =(_xll.RiskData(NR_to_Cash!C$16,$A118))/1000 ->  | H118: =(_xll.RiskData(NR_to_Cash!D$16,$A118))/1000 ->  | I118: =(_xll.RiskData(NR_to_Cash!E$16,$A118))/1000 -> 
A119: 112 | B119: =_xll.RiskData('Risk Summary'!J$32,$A119)/1000 ->  | C119: =_xll.RiskData('Risk Summary'!K$32,$A119)/1000 ->  | D119: =_xll.RiskData('Risk Summary'!L$32,$A119)/1000 ->  | G119: =(_xll.RiskData(NR_to_Cash!C$16,$A119))/1000 ->  | H119: =(_xll.RiskData(NR_to_Cash!D$16,$A119))/1000 ->  | I119: =(_xll.RiskData(NR_to_Cash!E$16,$A119))/1000 -> 
A120: 113 | B120: =_xll.RiskData('Risk Summary'!J$32,$A120)/1000 ->  | C120: =_xll.RiskData('Risk Summary'!K$32,$A120)/1000 ->  | D120: =_xll.RiskData('Risk Summary'!L$32,$A120)/1000 ->  | G120: =(_xll.RiskData(NR_to_Cash!C$16,$A120))/1000 ->  | H120: =(_xll.RiskData(NR_to_Cash!D$16,$A120))/1000 ->  | I120: =(_xll.RiskData(NR_to_Cash!E$16,$A120))/1000 -> 
A121: 114 | B121: =_xll.RiskData('Risk Summary'!J$32,$A121)/1000 ->  | C121: =_xll.RiskData('Risk Summary'!K$32,$A121)/1000 ->  | D121: =_xll.RiskData('Risk Summary'!L$32,$A121)/1000 ->  | G121: =(_xll.RiskData(NR_to_Cash!C$16,$A121))/1000 ->  | H121: =(_xll.RiskData(NR_to_Cash!D$16,$A121))/1000 ->  | I121: =(_xll.RiskData(NR_to_Cash!E$16,$A121))/1000 -> 
A122: 115 | B122: =_xll.RiskData('Risk Summary'!J$32,$A122)/1000 ->  | C122: =_xll.RiskData('Risk Summary'!K$32,$A122)/1000 ->  | D122: =_xll.RiskData('Risk Summary'!L$32,$A122)/1000 ->  | G122: =(_xll.RiskData(NR_to_Cash!C$16,$A122))/1000 ->  | H122: =(_xll.RiskData(NR_to_Cash!D$16,$A122))/1000 ->  | I122: =(_xll.RiskData(NR_to_Cash!E$16,$A122))/1000 -> 
A123: 116 | B123: =_xll.RiskData('Risk Summary'!J$32,$A123)/1000 ->  | C123: =_xll.RiskData('Risk Summary'!K$32,$A123)/1000 ->  | D123: =_xll.RiskData('Risk Summary'!L$32,$A123)/1000 ->  | G123: =(_xll.RiskData(NR_to_Cash!C$16,$A123))/1000 ->  | H123: =(_xll.RiskData(NR_to_Cash!D$16,$A123))/1000 ->  | I123: =(_xll.RiskData(NR_to_Cash!E$16,$A123))/1000 -> 
A124: 117 | B124: =_xll.RiskData('Risk Summary'!J$32,$A124)/1000 ->  | C124: =_xll.RiskData('Risk Summary'!K$32,$A124)/1000 ->  | D124: =_xll.RiskData('Risk Summary'!L$32,$A124)/1000 ->  | G124: =(_xll.RiskData(NR_to_Cash!C$16,$A124))/1000 ->  | H124: =(_xll.RiskData(NR_to_Cash!D$16,$A124))/1000 ->  | I124: =(_xll.RiskData(NR_to_Cash!E$16,$A124))/1000 -> 
A125: 118 | B125: =_xll.RiskData('Risk Summary'!J$32,$A125)/1000 ->  | C125: =_xll.RiskData('Risk Summary'!K$32,$A125)/1000 ->  | D125: =_xll.RiskData('Risk Summary'!L$32,$A125)/1000 ->  | G125: =(_xll.RiskData(NR_to_Cash!C$16,$A125))/1000 ->  | H125: =(_xll.RiskData(NR_to_Cash!D$16,$A125))/1000 ->  | I125: =(_xll.RiskData(NR_to_Cash!E$16,$A125))/1000 -> 
A126: 119 | B126: =_xll.RiskData('Risk Summary'!J$32,$A126)/1000 ->  | C126: =_xll.RiskData('Risk Summary'!K$32,$A126)/1000 ->  | D126: =_xll.RiskData('Risk Summary'!L$32,$A126)/1000 ->  | G126: =(_xll.RiskData(NR_to_Cash!C$16,$A126))/1000 ->  | H126: =(_xll.RiskData(NR_to_Cash!D$16,$A126))/1000 ->  | I126: =(_xll.RiskData(NR_to_Cash!E$16,$A126))/1000 -> 
A127: 120 | B127: =_xll.RiskData('Risk Summary'!J$32,$A127)/1000 ->  | C127: =_xll.RiskData('Risk Summary'!K$32,$A127)/1000 ->  | D127: =_xll.RiskData('Risk Summary'!L$32,$A127)/1000 ->  | G127: =(_xll.RiskData(NR_to_Cash!C$16,$A127))/1000 ->  | H127: =(_xll.RiskData(NR_to_Cash!D$16,$A127))/1000 ->  | I127: =(_xll.RiskData(NR_to_Cash!E$16,$A127))/1000 -> 
A128: 121 | B128: =_xll.RiskData('Risk Summary'!J$32,$A128)/1000 ->  | C128: =_xll.RiskData('Risk Summary'!K$32,$A128)/1000 ->  | D128: =_xll.RiskData('Risk Summary'!L$32,$A128)/1000 ->  | G128: =(_xll.RiskData(NR_to_Cash!C$16,$A128))/1000 ->  | H128: =(_xll.RiskData(NR_to_Cash!D$16,$A128))/1000 ->  | I128: =(_xll.RiskData(NR_to_Cash!E$16,$A128))/1000 -> 
A129: 122 | B129: =_xll.RiskData('Risk Summary'!J$32,$A129)/1000 ->  | C129: =_xll.RiskData('Risk Summary'!K$32,$A129)/1000 ->  | D129: =_xll.RiskData('Risk Summary'!L$32,$A129)/1000 ->  | G129: =(_xll.RiskData(NR_to_Cash!C$16,$A129))/1000 ->  | H129: =(_xll.RiskData(NR_to_Cash!D$16,$A129))/1000 ->  | I129: =(_xll.RiskData(NR_to_Cash!E$16,$A129))/1000 -> 
A130: 123 | B130: =_xll.RiskData('Risk Summary'!J$32,$A130)/1000 ->  | C130: =_xll.RiskData('Risk Summary'!K$32,$A130)/1000 ->  | D130: =_xll.RiskData('Risk Summary'!L$32,$A130)/1000 ->  | G130: =(_xll.RiskData(NR_to_Cash!C$16,$A130))/1000 ->  | H130: =(_xll.RiskData(NR_to_Cash!D$16,$A130))/1000 ->  | I130: =(_xll.RiskData(NR_to_Cash!E$16,$A130))/1000 -> 
A131: 124 | B131: =_xll.RiskData('Risk Summary'!J$32,$A131)/1000 ->  | C131: =_xll.RiskData('Risk Summary'!K$32,$A131)/1000 ->  | D131: =_xll.RiskData('Risk Summary'!L$32,$A131)/1000 ->  | G131: =(_xll.RiskData(NR_to_Cash!C$16,$A131))/1000 ->  | H131: =(_xll.RiskData(NR_to_Cash!D$16,$A131))/1000 ->  | I131: =(_xll.RiskData(NR_to_Cash!E$16,$A131))/1000 -> 
A132: 125 | B132: =_xll.RiskData('Risk Summary'!J$32,$A132)/1000 ->  | C132: =_xll.RiskData('Risk Summary'!K$32,$A132)/1000 ->  | D132: =_xll.RiskData('Risk Summary'!L$32,$A132)/1000 ->  | G132: =(_xll.RiskData(NR_to_Cash!C$16,$A132))/1000 ->  | H132: =(_xll.RiskData(NR_to_Cash!D$16,$A132))/1000 ->  | I132: =(_xll.RiskData(NR_to_Cash!E$16,$A132))/1000 -> 
A133: 126 | B133: =_xll.RiskData('Risk Summary'!J$32,$A133)/1000 ->  | C133: =_xll.RiskData('Risk Summary'!K$32,$A133)/1000 ->  | D133: =_xll.RiskData('Risk Summary'!L$32,$A133)/1000 ->  | G133: =(_xll.RiskData(NR_to_Cash!C$16,$A133))/1000 ->  | H133: =(_xll.RiskData(NR_to_Cash!D$16,$A133))/1000 ->  | I133: =(_xll.RiskData(NR_to_Cash!E$16,$A133))/1000 -> 
A134: 127 | B134: =_xll.RiskData('Risk Summary'!J$32,$A134)/1000 ->  | C134: =_xll.RiskData('Risk Summary'!K$32,$A134)/1000 ->  | D134: =_xll.RiskData('Risk Summary'!L$32,$A134)/1000 ->  | G134: =(_xll.RiskData(NR_to_Cash!C$16,$A134))/1000 ->  | H134: =(_xll.RiskData(NR_to_Cash!D$16,$A134))/1000 ->  | I134: =(_xll.RiskData(NR_to_Cash!E$16,$A134))/1000 -> 
A135: 128 | B135: =_xll.RiskData('Risk Summary'!J$32,$A135)/1000 ->  | C135: =_xll.RiskData('Risk Summary'!K$32,$A135)/1000 ->  | D135: =_xll.RiskData('Risk Summary'!L$32,$A135)/1000 ->  | G135: =(_xll.RiskData(NR_to_Cash!C$16,$A135))/1000 ->  | H135: =(_xll.RiskData(NR_to_Cash!D$16,$A135))/1000 ->  | I135: =(_xll.RiskData(NR_to_Cash!E$16,$A135))/1000 -> 
A136: 129 | B136: =_xll.RiskData('Risk Summary'!J$32,$A136)/1000 ->  | C136: =_xll.RiskData('Risk Summary'!K$32,$A136)/1000 ->  | D136: =_xll.RiskData('Risk Summary'!L$32,$A136)/1000 ->  | G136: =(_xll.RiskData(NR_to_Cash!C$16,$A136))/1000 ->  | H136: =(_xll.RiskData(NR_to_Cash!D$16,$A136))/1000 ->  | I136: =(_xll.RiskData(NR_to_Cash!E$16,$A136))/1000 -> 
A137: 130 | B137: =_xll.RiskData('Risk Summary'!J$32,$A137)/1000 ->  | C137: =_xll.RiskData('Risk Summary'!K$32,$A137)/1000 ->  | D137: =_xll.RiskData('Risk Summary'!L$32,$A137)/1000 ->  | G137: =(_xll.RiskData(NR_to_Cash!C$16,$A137))/1000 ->  | H137: =(_xll.RiskData(NR_to_Cash!D$16,$A137))/1000 ->  | I137: =(_xll.RiskData(NR_to_Cash!E$16,$A137))/1000 -> 
A138: 131 | B138: =_xll.RiskData('Risk Summary'!J$32,$A138)/1000 ->  | C138: =_xll.RiskData('Risk Summary'!K$32,$A138)/1000 ->  | D138: =_xll.RiskData('Risk Summary'!L$32,$A138)/1000 ->  | G138: =(_xll.RiskData(NR_to_Cash!C$16,$A138))/1000 ->  | H138: =(_xll.RiskData(NR_to_Cash!D$16,$A138))/1000 ->  | I138: =(_xll.RiskData(NR_to_Cash!E$16,$A138))/1000 -> 
A139: 132 | B139: =_xll.RiskData('Risk Summary'!J$32,$A139)/1000 ->  | C139: =_xll.RiskData('Risk Summary'!K$32,$A139)/1000 ->  | D139: =_xll.RiskData('Risk Summary'!L$32,$A139)/1000 ->  | G139: =(_xll.RiskData(NR_to_Cash!C$16,$A139))/1000 ->  | H139: =(_xll.RiskData(NR_to_Cash!D$16,$A139))/1000 ->  | I139: =(_xll.RiskData(NR_to_Cash!E$16,$A139))/1000 -> 
A140: 133 | B140: =_xll.RiskData('Risk Summary'!J$32,$A140)/1000 ->  | C140: =_xll.RiskData('Risk Summary'!K$32,$A140)/1000 ->  | D140: =_xll.RiskData('Risk Summary'!L$32,$A140)/1000 ->  | G140: =(_xll.RiskData(NR_to_Cash!C$16,$A140))/1000 ->  | H140: =(_xll.RiskData(NR_to_Cash!D$16,$A140))/1000 ->  | I140: =(_xll.RiskData(NR_to_Cash!E$16,$A140))/1000 -> 
A141: 134 | B141: =_xll.RiskData('Risk Summary'!J$32,$A141)/1000 ->  | C141: =_xll.RiskData('Risk Summary'!K$32,$A141)/1000 ->  | D141: =_xll.RiskData('Risk Summary'!L$32,$A141)/1000 ->  | G141: =(_xll.RiskData(NR_to_Cash!C$16,$A141))/1000 ->  | H141: =(_xll.RiskData(NR_to_Cash!D$16,$A141))/1000 ->  | I141: =(_xll.RiskData(NR_to_Cash!E$16,$A141))/1000 -> 
A142: 135 | B142: =_xll.RiskData('Risk Summary'!J$32,$A142)/1000 ->  | C142: =_xll.RiskData('Risk Summary'!K$32,$A142)/1000 ->  | D142: =_xll.RiskData('Risk Summary'!L$32,$A142)/1000 ->  | G142: =(_xll.RiskData(NR_to_Cash!C$16,$A142))/1000 ->  | H142: =(_xll.RiskData(NR_to_Cash!D$16,$A142))/1000 ->  | I142: =(_xll.RiskData(NR_to_Cash!E$16,$A142))/1000 -> 
A143: 136 | B143: =_xll.RiskData('Risk Summary'!J$32,$A143)/1000 ->  | C143: =_xll.RiskData('Risk Summary'!K$32,$A143)/1000 ->  | D143: =_xll.RiskData('Risk Summary'!L$32,$A143)/1000 ->  | G143: =(_xll.RiskData(NR_to_Cash!C$16,$A143))/1000 ->  | H143: =(_xll.RiskData(NR_to_Cash!D$16,$A143))/1000 ->  | I143: =(_xll.RiskData(NR_to_Cash!E$16,$A143))/1000 -> 
A144: 137 | B144: =_xll.RiskData('Risk Summary'!J$32,$A144)/1000 ->  | C144: =_xll.RiskData('Risk Summary'!K$32,$A144)/1000 ->  | D144: =_xll.RiskData('Risk Summary'!L$32,$A144)/1000 ->  | G144: =(_xll.RiskData(NR_to_Cash!C$16,$A144))/1000 ->  | H144: =(_xll.RiskData(NR_to_Cash!D$16,$A144))/1000 ->  | I144: =(_xll.RiskData(NR_to_Cash!E$16,$A144))/1000 -> 
A145: 138 | B145: =_xll.RiskData('Risk Summary'!J$32,$A145)/1000 ->  | C145: =_xll.RiskData('Risk Summary'!K$32,$A145)/1000 ->  | D145: =_xll.RiskData('Risk Summary'!L$32,$A145)/1000 ->  | G145: =(_xll.RiskData(NR_to_Cash!C$16,$A145))/1000 ->  | H145: =(_xll.RiskData(NR_to_Cash!D$16,$A145))/1000 ->  | I145: =(_xll.RiskData(NR_to_Cash!E$16,$A145))/1000 -> 
A146: 139 | B146: =_xll.RiskData('Risk Summary'!J$32,$A146)/1000 ->  | C146: =_xll.RiskData('Risk Summary'!K$32,$A146)/1000 ->  | D146: =_xll.RiskData('Risk Summary'!L$32,$A146)/1000 ->  | G146: =(_xll.RiskData(NR_to_Cash!C$16,$A146))/1000 ->  | H146: =(_xll.RiskData(NR_to_Cash!D$16,$A146))/1000 ->  | I146: =(_xll.RiskData(NR_to_Cash!E$16,$A146))/1000 -> 
A147: 140 | B147: =_xll.RiskData('Risk Summary'!J$32,$A147)/1000 ->  | C147: =_xll.RiskData('Risk Summary'!K$32,$A147)/1000 ->  | D147: =_xll.RiskData('Risk Summary'!L$32,$A147)/1000 ->  | G147: =(_xll.RiskData(NR_to_Cash!C$16,$A147))/1000 ->  | H147: =(_xll.RiskData(NR_to_Cash!D$16,$A147))/1000 ->  | I147: =(_xll.RiskData(NR_to_Cash!E$16,$A147))/1000 -> 
A148: 141 | B148: =_xll.RiskData('Risk Summary'!J$32,$A148)/1000 ->  | C148: =_xll.RiskData('Risk Summary'!K$32,$A148)/1000 ->  | D148: =_xll.RiskData('Risk Summary'!L$32,$A148)/1000 ->  | G148: =(_xll.RiskData(NR_to_Cash!C$16,$A148))/1000 ->  | H148: =(_xll.RiskData(NR_to_Cash!D$16,$A148))/1000 ->  | I148: =(_xll.RiskData(NR_to_Cash!E$16,$A148))/1000 -> 
A149: 142 | B149: =_xll.RiskData('Risk Summary'!J$32,$A149)/1000 ->  | C149: =_xll.RiskData('Risk Summary'!K$32,$A149)/1000 ->  | D149: =_xll.RiskData('Risk Summary'!L$32,$A149)/1000 ->  | G149: =(_xll.RiskData(NR_to_Cash!C$16,$A149))/1000 ->  | H149: =(_xll.RiskData(NR_to_Cash!D$16,$A149))/1000 ->  | I149: =(_xll.RiskData(NR_to_Cash!E$16,$A149))/1000 -> 
A150: 143 | B150: =_xll.RiskData('Risk Summary'!J$32,$A150)/1000 ->  | C150: =_xll.RiskData('Risk Summary'!K$32,$A150)/1000 ->  | D150: =_xll.RiskData('Risk Summary'!L$32,$A150)/1000 ->  | G150: =(_xll.RiskData(NR_to_Cash!C$16,$A150))/1000 ->  | H150: =(_xll.RiskData(NR_to_Cash!D$16,$A150))/1000 ->  | I150: =(_xll.RiskData(NR_to_Cash!E$16,$A150))/1000 -> 
A151: 144 | B151: =_xll.RiskData('Risk Summary'!J$32,$A151)/1000 ->  | C151: =_xll.RiskData('Risk Summary'!K$32,$A151)/1000 ->  | D151: =_xll.RiskData('Risk Summary'!L$32,$A151)/1000 ->  | G151: =(_xll.RiskData(NR_to_Cash!C$16,$A151))/1000 ->  | H151: =(_xll.RiskData(NR_to_Cash!D$16,$A151))/1000 ->  | I151: =(_xll.RiskData(NR_to_Cash!E$16,$A151))/1000 -> 
A152: 145 | B152: =_xll.RiskData('Risk Summary'!J$32,$A152)/1000 ->  | C152: =_xll.RiskData('Risk Summary'!K$32,$A152)/1000 ->  | D152: =_xll.RiskData('Risk Summary'!L$32,$A152)/1000 ->  | G152: =(_xll.RiskData(NR_to_Cash!C$16,$A152))/1000 ->  | H152: =(_xll.RiskData(NR_to_Cash!D$16,$A152))/1000 ->  | I152: =(_xll.RiskData(NR_to_Cash!E$16,$A152))/1000 -> 
A153: 146 | B153: =_xll.RiskData('Risk Summary'!J$32,$A153)/1000 ->  | C153: =_xll.RiskData('Risk Summary'!K$32,$A153)/1000 ->  | D153: =_xll.RiskData('Risk Summary'!L$32,$A153)/1000 ->  | G153: =(_xll.RiskData(NR_to_Cash!C$16,$A153))/1000 ->  | H153: =(_xll.RiskData(NR_to_Cash!D$16,$A153))/1000 ->  | I153: =(_xll.RiskData(NR_to_Cash!E$16,$A153))/1000 -> 
A154: 147 | B154: =_xll.RiskData('Risk Summary'!J$32,$A154)/1000 ->  | C154: =_xll.RiskData('Risk Summary'!K$32,$A154)/1000 ->  | D154: =_xll.RiskData('Risk Summary'!L$32,$A154)/1000 ->  | G154: =(_xll.RiskData(NR_to_Cash!C$16,$A154))/1000 ->  | H154: =(_xll.RiskData(NR_to_Cash!D$16,$A154))/1000 ->  | I154: =(_xll.RiskData(NR_to_Cash!E$16,$A154))/1000 -> 
A155: 148 | B155: =_xll.RiskData('Risk Summary'!J$32,$A155)/1000 ->  | C155: =_xll.RiskData('Risk Summary'!K$32,$A155)/1000 ->  | D155: =_xll.RiskData('Risk Summary'!L$32,$A155)/1000 ->  | G155: =(_xll.RiskData(NR_to_Cash!C$16,$A155))/1000 ->  | H155: =(_xll.RiskData(NR_to_Cash!D$16,$A155))/1000 ->  | I155: =(_xll.RiskData(NR_to_Cash!E$16,$A155))/1000 -> 
A156: 149 | B156: =_xll.RiskData('Risk Summary'!J$32,$A156)/1000 ->  | C156: =_xll.RiskData('Risk Summary'!K$32,$A156)/1000 ->  | D156: =_xll.RiskData('Risk Summary'!L$32,$A156)/1000 ->  | G156: =(_xll.RiskData(NR_to_Cash!C$16,$A156))/1000 ->  | H156: =(_xll.RiskData(NR_to_Cash!D$16,$A156))/1000 ->  | I156: =(_xll.RiskData(NR_to_Cash!E$16,$A156))/1000 -> 
A157: 150 | B157: =_xll.RiskData('Risk Summary'!J$32,$A157)/1000 ->  | C157: =_xll.RiskData('Risk Summary'!K$32,$A157)/1000 ->  | D157: =_xll.RiskData('Risk Summary'!L$32,$A157)/1000 ->  | G157: =(_xll.RiskData(NR_to_Cash!C$16,$A157))/1000 ->  | H157: =(_xll.RiskData(NR_to_Cash!D$16,$A157))/1000 ->  | I157: =(_xll.RiskData(NR_to_Cash!E$16,$A157))/1000 -> 
A158: 151 | B158: =_xll.RiskData('Risk Summary'!J$32,$A158)/1000 ->  | C158: =_xll.RiskData('Risk Summary'!K$32,$A158)/1000 ->  | D158: =_xll.RiskData('Risk Summary'!L$32,$A158)/1000 ->  | G158: =(_xll.RiskData(NR_to_Cash!C$16,$A158))/1000 ->  | H158: =(_xll.RiskData(NR_to_Cash!D$16,$A158))/1000 ->  | I158: =(_xll.RiskData(NR_to_Cash!E$16,$A158))/1000 -> 
A159: 152 | B159: =_xll.RiskData('Risk Summary'!J$32,$A159)/1000 ->  | C159: =_xll.RiskData('Risk Summary'!K$32,$A159)/1000 ->  | D159: =_xll.RiskData('Risk Summary'!L$32,$A159)/1000 ->  | G159: =(_xll.RiskData(NR_to_Cash!C$16,$A159))/1000 ->  | H159: =(_xll.RiskData(NR_to_Cash!D$16,$A159))/1000 ->  | I159: =(_xll.RiskData(NR_to_Cash!E$16,$A159))/1000 -> 
A160: 153 | B160: =_xll.RiskData('Risk Summary'!J$32,$A160)/1000 ->  | C160: =_xll.RiskData('Risk Summary'!K$32,$A160)/1000 ->  | D160: =_xll.RiskData('Risk Summary'!L$32,$A160)/1000 ->  | G160: =(_xll.RiskData(NR_to_Cash!C$16,$A160))/1000 ->  | H160: =(_xll.RiskData(NR_to_Cash!D$16,$A160))/1000 ->  | I160: =(_xll.RiskData(NR_to_Cash!E$16,$A160))/1000 -> 
A161: 154 | B161: =_xll.RiskData('Risk Summary'!J$32,$A161)/1000 ->  | C161: =_xll.RiskData('Risk Summary'!K$32,$A161)/1000 ->  | D161: =_xll.RiskData('Risk Summary'!L$32,$A161)/1000 ->  | G161: =(_xll.RiskData(NR_to_Cash!C$16,$A161))/1000 ->  | H161: =(_xll.RiskData(NR_to_Cash!D$16,$A161))/1000 ->  | I161: =(_xll.RiskData(NR_to_Cash!E$16,$A161))/1000 -> 
A162: 155 | B162: =_xll.RiskData('Risk Summary'!J$32,$A162)/1000 ->  | C162: =_xll.RiskData('Risk Summary'!K$32,$A162)/1000 ->  | D162: =_xll.RiskData('Risk Summary'!L$32,$A162)/1000 ->  | G162: =(_xll.RiskData(NR_to_Cash!C$16,$A162))/1000 ->  | H162: =(_xll.RiskData(NR_to_Cash!D$16,$A162))/1000 ->  | I162: =(_xll.RiskData(NR_to_Cash!E$16,$A162))/1000 -> 
A163: 156 | B163: =_xll.RiskData('Risk Summary'!J$32,$A163)/1000 ->  | C163: =_xll.RiskData('Risk Summary'!K$32,$A163)/1000 ->  | D163: =_xll.RiskData('Risk Summary'!L$32,$A163)/1000 ->  | G163: =(_xll.RiskData(NR_to_Cash!C$16,$A163))/1000 ->  | H163: =(_xll.RiskData(NR_to_Cash!D$16,$A163))/1000 ->  | I163: =(_xll.RiskData(NR_to_Cash!E$16,$A163))/1000 -> 
A164: 157 | B164: =_xll.RiskData('Risk Summary'!J$32,$A164)/1000 ->  | C164: =_xll.RiskData('Risk Summary'!K$32,$A164)/1000 ->  | D164: =_xll.RiskData('Risk Summary'!L$32,$A164)/1000 ->  | G164: =(_xll.RiskData(NR_to_Cash!C$16,$A164))/1000 ->  | H164: =(_xll.RiskData(NR_to_Cash!D$16,$A164))/1000 ->  | I164: =(_xll.RiskData(NR_to_Cash!E$16,$A164))/1000 -> 
A165: 158 | B165: =_xll.RiskData('Risk Summary'!J$32,$A165)/1000 ->  | C165: =_xll.RiskData('Risk Summary'!K$32,$A165)/1000 ->  | D165: =_xll.RiskData('Risk Summary'!L$32,$A165)/1000 ->  | G165: =(_xll.RiskData(NR_to_Cash!C$16,$A165))/1000 ->  | H165: =(_xll.RiskData(NR_to_Cash!D$16,$A165))/1000 ->  | I165: =(_xll.RiskData(NR_to_Cash!E$16,$A165))/1000 -> 
A166: 159 | B166: =_xll.RiskData('Risk Summary'!J$32,$A166)/1000 ->  | C166: =_xll.RiskData('Risk Summary'!K$32,$A166)/1000 ->  | D166: =_xll.RiskData('Risk Summary'!L$32,$A166)/1000 ->  | G166: =(_xll.RiskData(NR_to_Cash!C$16,$A166))/1000 ->  | H166: =(_xll.RiskData(NR_to_Cash!D$16,$A166))/1000 ->  | I166: =(_xll.RiskData(NR_to_Cash!E$16,$A166))/1000 -> 
A167: 160 | B167: =_xll.RiskData('Risk Summary'!J$32,$A167)/1000 ->  | C167: =_xll.RiskData('Risk Summary'!K$32,$A167)/1000 ->  | D167: =_xll.RiskData('Risk Summary'!L$32,$A167)/1000 ->  | G167: =(_xll.RiskData(NR_to_Cash!C$16,$A167))/1000 ->  | H167: =(_xll.RiskData(NR_to_Cash!D$16,$A167))/1000 ->  | I167: =(_xll.RiskData(NR_to_Cash!E$16,$A167))/1000 -> 
A168: 161 | B168: =_xll.RiskData('Risk Summary'!J$32,$A168)/1000 ->  | C168: =_xll.RiskData('Risk Summary'!K$32,$A168)/1000 ->  | D168: =_xll.RiskData('Risk Summary'!L$32,$A168)/1000 ->  | G168: =(_xll.RiskData(NR_to_Cash!C$16,$A168))/1000 ->  | H168: =(_xll.RiskData(NR_to_Cash!D$16,$A168))/1000 ->  | I168: =(_xll.RiskData(NR_to_Cash!E$16,$A168))/1000 -> 
A169: 162 | B169: =_xll.RiskData('Risk Summary'!J$32,$A169)/1000 ->  | C169: =_xll.RiskData('Risk Summary'!K$32,$A169)/1000 ->  | D169: =_xll.RiskData('Risk Summary'!L$32,$A169)/1000 ->  | G169: =(_xll.RiskData(NR_to_Cash!C$16,$A169))/1000 ->  | H169: =(_xll.RiskData(NR_to_Cash!D$16,$A169))/1000 ->  | I169: =(_xll.RiskData(NR_to_Cash!E$16,$A169))/1000 -> 
A170: 163 | B170: =_xll.RiskData('Risk Summary'!J$32,$A170)/1000 ->  | C170: =_xll.RiskData('Risk Summary'!K$32,$A170)/1000 ->  | D170: =_xll.RiskData('Risk Summary'!L$32,$A170)/1000 ->  | G170: =(_xll.RiskData(NR_to_Cash!C$16,$A170))/1000 ->  | H170: =(_xll.RiskData(NR_to_Cash!D$16,$A170))/1000 ->  | I170: =(_xll.RiskData(NR_to_Cash!E$16,$A170))/1000 -> 
A171: 164 | B171: =_xll.RiskData('Risk Summary'!J$32,$A171)/1000 ->  | C171: =_xll.RiskData('Risk Summary'!K$32,$A171)/1000 ->  | D171: =_xll.RiskData('Risk Summary'!L$32,$A171)/1000 ->  | G171: =(_xll.RiskData(NR_to_Cash!C$16,$A171))/1000 ->  | H171: =(_xll.RiskData(NR_to_Cash!D$16,$A171))/1000 ->  | I171: =(_xll.RiskData(NR_to_Cash!E$16,$A171))/1000 -> 
A172: 165 | B172: =_xll.RiskData('Risk Summary'!J$32,$A172)/1000 ->  | C172: =_xll.RiskData('Risk Summary'!K$32,$A172)/1000 ->  | D172: =_xll.RiskData('Risk Summary'!L$32,$A172)/1000 ->  | G172: =(_xll.RiskData(NR_to_Cash!C$16,$A172))/1000 ->  | H172: =(_xll.RiskData(NR_to_Cash!D$16,$A172))/1000 ->  | I172: =(_xll.RiskData(NR_to_Cash!E$16,$A172))/1000 -> 
A173: 166 | B173: =_xll.RiskData('Risk Summary'!J$32,$A173)/1000 ->  | C173: =_xll.RiskData('Risk Summary'!K$32,$A173)/1000 ->  | D173: =_xll.RiskData('Risk Summary'!L$32,$A173)/1000 ->  | G173: =(_xll.RiskData(NR_to_Cash!C$16,$A173))/1000 ->  | H173: =(_xll.RiskData(NR_to_Cash!D$16,$A173))/1000 ->  | I173: =(_xll.RiskData(NR_to_Cash!E$16,$A173))/1000 -> 
A174: 167 | B174: =_xll.RiskData('Risk Summary'!J$32,$A174)/1000 ->  | C174: =_xll.RiskData('Risk Summary'!K$32,$A174)/1000 ->  | D174: =_xll.RiskData('Risk Summary'!L$32,$A174)/1000 ->  | G174: =(_xll.RiskData(NR_to_Cash!C$16,$A174))/1000 ->  | H174: =(_xll.RiskData(NR_to_Cash!D$16,$A174))/1000 ->  | I174: =(_xll.RiskData(NR_to_Cash!E$16,$A174))/1000 -> 
A175: 168 | B175: =_xll.RiskData('Risk Summary'!J$32,$A175)/1000 ->  | C175: =_xll.RiskData('Risk Summary'!K$32,$A175)/1000 ->  | D175: =_xll.RiskData('Risk Summary'!L$32,$A175)/1000 ->  | G175: =(_xll.RiskData(NR_to_Cash!C$16,$A175))/1000 ->  | H175: =(_xll.RiskData(NR_to_Cash!D$16,$A175))/1000 ->  | I175: =(_xll.RiskData(NR_to_Cash!E$16,$A175))/1000 -> 
A176: 169 | B176: =_xll.RiskData('Risk Summary'!J$32,$A176)/1000 ->  | C176: =_xll.RiskData('Risk Summary'!K$32,$A176)/1000 ->  | D176: =_xll.RiskData('Risk Summary'!L$32,$A176)/1000 ->  | G176: =(_xll.RiskData(NR_to_Cash!C$16,$A176))/1000 ->  | H176: =(_xll.RiskData(NR_to_Cash!D$16,$A176))/1000 ->  | I176: =(_xll.RiskData(NR_to_Cash!E$16,$A176))/1000 -> 
A177: 170 | B177: =_xll.RiskData('Risk Summary'!J$32,$A177)/1000 ->  | C177: =_xll.RiskData('Risk Summary'!K$32,$A177)/1000 ->  | D177: =_xll.RiskData('Risk Summary'!L$32,$A177)/1000 ->  | G177: =(_xll.RiskData(NR_to_Cash!C$16,$A177))/1000 ->  | H177: =(_xll.RiskData(NR_to_Cash!D$16,$A177))/1000 ->  | I177: =(_xll.RiskData(NR_to_Cash!E$16,$A177))/1000 -> 
A178: 171 | B178: =_xll.RiskData('Risk Summary'!J$32,$A178)/1000 ->  | C178: =_xll.RiskData('Risk Summary'!K$32,$A178)/1000 ->  | D178: =_xll.RiskData('Risk Summary'!L$32,$A178)/1000 ->  | G178: =(_xll.RiskData(NR_to_Cash!C$16,$A178))/1000 ->  | H178: =(_xll.RiskData(NR_to_Cash!D$16,$A178))/1000 ->  | I178: =(_xll.RiskData(NR_to_Cash!E$16,$A178))/1000 -> 
A179: 172 | B179: =_xll.RiskData('Risk Summary'!J$32,$A179)/1000 ->  | C179: =_xll.RiskData('Risk Summary'!K$32,$A179)/1000 ->  | D179: =_xll.RiskData('Risk Summary'!L$32,$A179)/1000 ->  | G179: =(_xll.RiskData(NR_to_Cash!C$16,$A179))/1000 ->  | H179: =(_xll.RiskData(NR_to_Cash!D$16,$A179))/1000 ->  | I179: =(_xll.RiskData(NR_to_Cash!E$16,$A179))/1000 -> 
A180: 173 | B180: =_xll.RiskData('Risk Summary'!J$32,$A180)/1000 ->  | C180: =_xll.RiskData('Risk Summary'!K$32,$A180)/1000 ->  | D180: =_xll.RiskData('Risk Summary'!L$32,$A180)/1000 ->  | G180: =(_xll.RiskData(NR_to_Cash!C$16,$A180))/1000 ->  | H180: =(_xll.RiskData(NR_to_Cash!D$16,$A180))/1000 ->  | I180: =(_xll.RiskData(NR_to_Cash!E$16,$A180))/1000 -> 
A181: 174 | B181: =_xll.RiskData('Risk Summary'!J$32,$A181)/1000 ->  | C181: =_xll.RiskData('Risk Summary'!K$32,$A181)/1000 ->  | D181: =_xll.RiskData('Risk Summary'!L$32,$A181)/1000 ->  | G181: =(_xll.RiskData(NR_to_Cash!C$16,$A181))/1000 ->  | H181: =(_xll.RiskData(NR_to_Cash!D$16,$A181))/1000 ->  | I181: =(_xll.RiskData(NR_to_Cash!E$16,$A181))/1000 -> 
A182: 175 | B182: =_xll.RiskData('Risk Summary'!J$32,$A182)/1000 ->  | C182: =_xll.RiskData('Risk Summary'!K$32,$A182)/1000 ->  | D182: =_xll.RiskData('Risk Summary'!L$32,$A182)/1000 ->  | G182: =(_xll.RiskData(NR_to_Cash!C$16,$A182))/1000 ->  | H182: =(_xll.RiskData(NR_to_Cash!D$16,$A182))/1000 ->  | I182: =(_xll.RiskData(NR_to_Cash!E$16,$A182))/1000 -> 
A183: 176 | B183: =_xll.RiskData('Risk Summary'!J$32,$A183)/1000 ->  | C183: =_xll.RiskData('Risk Summary'!K$32,$A183)/1000 ->  | D183: =_xll.RiskData('Risk Summary'!L$32,$A183)/1000 ->  | G183: =(_xll.RiskData(NR_to_Cash!C$16,$A183))/1000 ->  | H183: =(_xll.RiskData(NR_to_Cash!D$16,$A183))/1000 ->  | I183: =(_xll.RiskData(NR_to_Cash!E$16,$A183))/1000 -> 
A184: 177 | B184: =_xll.RiskData('Risk Summary'!J$32,$A184)/1000 ->  | C184: =_xll.RiskData('Risk Summary'!K$32,$A184)/1000 ->  | D184: =_xll.RiskData('Risk Summary'!L$32,$A184)/1000 ->  | G184: =(_xll.RiskData(NR_to_Cash!C$16,$A184))/1000 ->  | H184: =(_xll.RiskData(NR_to_Cash!D$16,$A184))/1000 ->  | I184: =(_xll.RiskData(NR_to_Cash!E$16,$A184))/1000 -> 
A185: 178 | B185: =_xll.RiskData('Risk Summary'!J$32,$A185)/1000 ->  | C185: =_xll.RiskData('Risk Summary'!K$32,$A185)/1000 ->  | D185: =_xll.RiskData('Risk Summary'!L$32,$A185)/1000 ->  | G185: =(_xll.RiskData(NR_to_Cash!C$16,$A185))/1000 ->  | H185: =(_xll.RiskData(NR_to_Cash!D$16,$A185))/1000 ->  | I185: =(_xll.RiskData(NR_to_Cash!E$16,$A185))/1000 -> 
A186: 179 | B186: =_xll.RiskData('Risk Summary'!J$32,$A186)/1000 ->  | C186: =_xll.RiskData('Risk Summary'!K$32,$A186)/1000 ->  | D186: =_xll.RiskData('Risk Summary'!L$32,$A186)/1000 ->  | G186: =(_xll.RiskData(NR_to_Cash!C$16,$A186))/1000 ->  | H186: =(_xll.RiskData(NR_to_Cash!D$16,$A186))/1000 ->  | I186: =(_xll.RiskData(NR_to_Cash!E$16,$A186))/1000 -> 
A187: 180 | B187: =_xll.RiskData('Risk Summary'!J$32,$A187)/1000 ->  | C187: =_xll.RiskData('Risk Summary'!K$32,$A187)/1000 ->  | D187: =_xll.RiskData('Risk Summary'!L$32,$A187)/1000 ->  | G187: =(_xll.RiskData(NR_to_Cash!C$16,$A187))/1000 ->  | H187: =(_xll.RiskData(NR_to_Cash!D$16,$A187))/1000 ->  | I187: =(_xll.RiskData(NR_to_Cash!E$16,$A187))/1000 -> 
A188: 181 | B188: =_xll.RiskData('Risk Summary'!J$32,$A188)/1000 ->  | C188: =_xll.RiskData('Risk Summary'!K$32,$A188)/1000 ->  | D188: =_xll.RiskData('Risk Summary'!L$32,$A188)/1000 ->  | G188: =(_xll.RiskData(NR_to_Cash!C$16,$A188))/1000 ->  | H188: =(_xll.RiskData(NR_to_Cash!D$16,$A188))/1000 ->  | I188: =(_xll.RiskData(NR_to_Cash!E$16,$A188))/1000 -> 
A189: 182 | B189: =_xll.RiskData('Risk Summary'!J$32,$A189)/1000 ->  | C189: =_xll.RiskData('Risk Summary'!K$32,$A189)/1000 ->  | D189: =_xll.RiskData('Risk Summary'!L$32,$A189)/1000 ->  | G189: =(_xll.RiskData(NR_to_Cash!C$16,$A189))/1000 ->  | H189: =(_xll.RiskData(NR_to_Cash!D$16,$A189))/1000 ->  | I189: =(_xll.RiskData(NR_to_Cash!E$16,$A189))/1000 -> 
A190: 183 | B190: =_xll.RiskData('Risk Summary'!J$32,$A190)/1000 ->  | C190: =_xll.RiskData('Risk Summary'!K$32,$A190)/1000 ->  | D190: =_xll.RiskData('Risk Summary'!L$32,$A190)/1000 ->  | G190: =(_xll.RiskData(NR_to_Cash!C$16,$A190))/1000 ->  | H190: =(_xll.RiskData(NR_to_Cash!D$16,$A190))/1000 ->  | I190: =(_xll.RiskData(NR_to_Cash!E$16,$A190))/1000 -> 
A191: 184 | B191: =_xll.RiskData('Risk Summary'!J$32,$A191)/1000 ->  | C191: =_xll.RiskData('Risk Summary'!K$32,$A191)/1000 ->  | D191: =_xll.RiskData('Risk Summary'!L$32,$A191)/1000 ->  | G191: =(_xll.RiskData(NR_to_Cash!C$16,$A191))/1000 ->  | H191: =(_xll.RiskData(NR_to_Cash!D$16,$A191))/1000 ->  | I191: =(_xll.RiskData(NR_to_Cash!E$16,$A191))/1000 -> 
A192: 185 | B192: =_xll.RiskData('Risk Summary'!J$32,$A192)/1000 ->  | C192: =_xll.RiskData('Risk Summary'!K$32,$A192)/1000 ->  | D192: =_xll.RiskData('Risk Summary'!L$32,$A192)/1000 ->  | G192: =(_xll.RiskData(NR_to_Cash!C$16,$A192))/1000 ->  | H192: =(_xll.RiskData(NR_to_Cash!D$16,$A192))/1000 ->  | I192: =(_xll.RiskData(NR_to_Cash!E$16,$A192))/1000 -> 
A193: 186 | B193: =_xll.RiskData('Risk Summary'!J$32,$A193)/1000 ->  | C193: =_xll.RiskData('Risk Summary'!K$32,$A193)/1000 ->  | D193: =_xll.RiskData('Risk Summary'!L$32,$A193)/1000 ->  | G193: =(_xll.RiskData(NR_to_Cash!C$16,$A193))/1000 ->  | H193: =(_xll.RiskData(NR_to_Cash!D$16,$A193))/1000 ->  | I193: =(_xll.RiskData(NR_to_Cash!E$16,$A193))/1000 -> 
A194: 187 | B194: =_xll.RiskData('Risk Summary'!J$32,$A194)/1000 ->  | C194: =_xll.RiskData('Risk Summary'!K$32,$A194)/1000 ->  | D194: =_xll.RiskData('Risk Summary'!L$32,$A194)/1000 ->  | G194: =(_xll.RiskData(NR_to_Cash!C$16,$A194))/1000 ->  | H194: =(_xll.RiskData(NR_to_Cash!D$16,$A194))/1000 ->  | I194: =(_xll.RiskData(NR_to_Cash!E$16,$A194))/1000 -> 
A195: 188 | B195: =_xll.RiskData('Risk Summary'!J$32,$A195)/1000 ->  | C195: =_xll.RiskData('Risk Summary'!K$32,$A195)/1000 ->  | D195: =_xll.RiskData('Risk Summary'!L$32,$A195)/1000 ->  | G195: =(_xll.RiskData(NR_to_Cash!C$16,$A195))/1000 ->  | H195: =(_xll.RiskData(NR_to_Cash!D$16,$A195))/1000 ->  | I195: =(_xll.RiskData(NR_to_Cash!E$16,$A195))/1000 -> 
A196: 189 | B196: =_xll.RiskData('Risk Summary'!J$32,$A196)/1000 ->  | C196: =_xll.RiskData('Risk Summary'!K$32,$A196)/1000 ->  | D196: =_xll.RiskData('Risk Summary'!L$32,$A196)/1000 ->  | G196: =(_xll.RiskData(NR_to_Cash!C$16,$A196))/1000 ->  | H196: =(_xll.RiskData(NR_to_Cash!D$16,$A196))/1000 ->  | I196: =(_xll.RiskData(NR_to_Cash!E$16,$A196))/1000 -> 
A197: 190 | B197: =_xll.RiskData('Risk Summary'!J$32,$A197)/1000 ->  | C197: =_xll.RiskData('Risk Summary'!K$32,$A197)/1000 ->  | D197: =_xll.RiskData('Risk Summary'!L$32,$A197)/1000 ->  | G197: =(_xll.RiskData(NR_to_Cash!C$16,$A197))/1000 ->  | H197: =(_xll.RiskData(NR_to_Cash!D$16,$A197))/1000 ->  | I197: =(_xll.RiskData(NR_to_Cash!E$16,$A197))/1000 -> 
A198: 191 | B198: =_xll.RiskData('Risk Summary'!J$32,$A198)/1000 ->  | C198: =_xll.RiskData('Risk Summary'!K$32,$A198)/1000 ->  | D198: =_xll.RiskData('Risk Summary'!L$32,$A198)/1000 ->  | G198: =(_xll.RiskData(NR_to_Cash!C$16,$A198))/1000 ->  | H198: =(_xll.RiskData(NR_to_Cash!D$16,$A198))/1000 ->  | I198: =(_xll.RiskData(NR_to_Cash!E$16,$A198))/1000 -> 
A199: 192 | B199: =_xll.RiskData('Risk Summary'!J$32,$A199)/1000 ->  | C199: =_xll.RiskData('Risk Summary'!K$32,$A199)/1000 ->  | D199: =_xll.RiskData('Risk Summary'!L$32,$A199)/1000 ->  | G199: =(_xll.RiskData(NR_to_Cash!C$16,$A199))/1000 ->  | H199: =(_xll.RiskData(NR_to_Cash!D$16,$A199))/1000 ->  | I199: =(_xll.RiskData(NR_to_Cash!E$16,$A199))/1000 -> 
A200: 193 | B200: =_xll.RiskData('Risk Summary'!J$32,$A200)/1000 ->  | C200: =_xll.RiskData('Risk Summary'!K$32,$A200)/1000 ->  | D200: =_xll.RiskData('Risk Summary'!L$32,$A200)/1000 ->  | G200: =(_xll.RiskData(NR_to_Cash!C$16,$A200))/1000 ->  | H200: =(_xll.RiskData(NR_to_Cash!D$16,$A200))/1000 ->  | I200: =(_xll.RiskData(NR_to_Cash!E$16,$A200))/1000 -> 
A201: 194 | B201: =_xll.RiskData('Risk Summary'!J$32,$A201)/1000 ->  | C201: =_xll.RiskData('Risk Summary'!K$32,$A201)/1000 ->  | D201: =_xll.RiskData('Risk Summary'!L$32,$A201)/1000 ->  | G201: =(_xll.RiskData(NR_to_Cash!C$16,$A201))/1000 ->  | H201: =(_xll.RiskData(NR_to_Cash!D$16,$A201))/1000 ->  | I201: =(_xll.RiskData(NR_to_Cash!E$16,$A201))/1000 -> 
A202: 195 | B202: =_xll.RiskData('Risk Summary'!J$32,$A202)/1000 ->  | C202: =_xll.RiskData('Risk Summary'!K$32,$A202)/1000 ->  | D202: =_xll.RiskData('Risk Summary'!L$32,$A202)/1000 ->  | G202: =(_xll.RiskData(NR_to_Cash!C$16,$A202))/1000 ->  | H202: =(_xll.RiskData(NR_to_Cash!D$16,$A202))/1000 ->  | I202: =(_xll.RiskData(NR_to_Cash!E$16,$A202))/1000 -> 
A203: 196 | B203: =_xll.RiskData('Risk Summary'!J$32,$A203)/1000 ->  | C203: =_xll.RiskData('Risk Summary'!K$32,$A203)/1000 ->  | D203: =_xll.RiskData('Risk Summary'!L$32,$A203)/1000 ->  | G203: =(_xll.RiskData(NR_to_Cash!C$16,$A203))/1000 ->  | H203: =(_xll.RiskData(NR_to_Cash!D$16,$A203))/1000 ->  | I203: =(_xll.RiskData(NR_to_Cash!E$16,$A203))/1000 -> 
A204: 197 | B204: =_xll.RiskData('Risk Summary'!J$32,$A204)/1000 ->  | C204: =_xll.RiskData('Risk Summary'!K$32,$A204)/1000 ->  | D204: =_xll.RiskData('Risk Summary'!L$32,$A204)/1000 ->  | G204: =(_xll.RiskData(NR_to_Cash!C$16,$A204))/1000 ->  | H204: =(_xll.RiskData(NR_to_Cash!D$16,$A204))/1000 ->  | I204: =(_xll.RiskData(NR_to_Cash!E$16,$A204))/1000 -> 
A205: 198 | B205: =_xll.RiskData('Risk Summary'!J$32,$A205)/1000 ->  | C205: =_xll.RiskData('Risk Summary'!K$32,$A205)/1000 ->  | D205: =_xll.RiskData('Risk Summary'!L$32,$A205)/1000 ->  | G205: =(_xll.RiskData(NR_to_Cash!C$16,$A205))/1000 ->  | H205: =(_xll.RiskData(NR_to_Cash!D$16,$A205))/1000 ->  | I205: =(_xll.RiskData(NR_to_Cash!E$16,$A205))/1000 -> 
... 3008 more rows

Sheet Study Table
B1: A | C1: B | D1: C | E1: D | F1: E | G1: F | H1: G
B2: P-NORM Risk Summary ($000,000) | J2: Source Data
B3: Study Section | C3: Risk Title | D3: Fiscal Year | E3: Forecast | F3: 5th Percentile | G3: Mean | H3: 95th Percentile | J3: ProForma | K3: Risk
A4: 1 | B4: 4.1.2.1.1 | C4: CGS Operations and Maintenance (O&M) | D4: 2017 | E4: =J4/1000 -> 325.2507582 | F4: =_xll.RiskPercentile($K4,5%)/1000 ->  | G4: =_xll.RiskMean($K4)/1000 ->  | H4: =_xll.RiskPercentile($K4,95%)/1000 ->  | J4: ='Risk Summary'!C8 -> 325250.7582 | K4: ='Risk Summary'!D8 -> 
A5: =A4+1 -> 2 | D5: 2018 | E5: 262.470836 | F5: =_xll.RiskPercentile($K5,5%)/1000 ->  | G5: =_xll.RiskMean($K5)/1000 ->  | H5: =_xll.RiskPercentile($K5,95%)/1000 ->  | J5: ='Risk Summary'!E8 -> 262470.836 | K5: ='Risk Summary'!F8 -> 
A6: =A5+1 -> 3 | D6: 2019 | E6: 319.461597 | F6: =_xll.RiskPercentile($K6,5%)/1000 ->  | G6: =_xll.RiskMean($K6)/1000 ->  | H6: =_xll.RiskPercentile($K6,95%)/1000 ->  | J6: ='Risk Summary'!G8 -> 319461.597 | K6: ='Risk Summary'!H8 -> 
A7: 4 | B7: 4.1.2.1.2 | C7: U.S. Army Corps of Engineers (Corps) and Bureau of Reclamation (Reclamation) O&M | D7: 2017 | E7: 408.546 | F7: =_xll.RiskPercentile($K7,5%)/1000 ->  | G7: =_xll.RiskMean($K7)/1000 ->  | H7: =_xll.RiskPercentile($K7,95%)/1000 ->  | J7: ='Risk Summary'!C9+'Risk Summary'!C10 -> 408546 | K7: ='Risk Summary'!D9+'Risk Summary'!D10 -> 
A8: 5 | D8: 2018 | E8: 406.166 | F8: =_xll.RiskPercentile($K8,5%)/1000 ->  | G8: =_xll.RiskMean($K8)/1000 ->  | H8: =_xll.RiskPercentile($K8,95%)/1000 ->  | J8: ='Risk Summary'!E9+'Risk Summary'!E10 -> 406166 | K8: ='Risk Summary'!F9+'Risk Summary'!F10 -> 
A9: 6 | D9: 2019 | E9: 404.18 | F9: =_xll.RiskPercentile($K9,5%)/1000 ->  | G9: =_xll.RiskMean($K9)/1000 ->  | H9: =_xll.RiskPercentile($K9,95%)/1000 ->  | J9: ='Risk Summary'!G9+'Risk Summary'!G10 -> 404180 | K9: ='Risk Summary'!H9+'Risk Summary'!H10 -> 
A10: 7 | B10: 4.1.2.1.3 | C10: Conservation Expense | D10: 2017 | E10: 68.00926897 | F10: =_xll.RiskPercentile($K10,5%)/1000 ->  | G10: =_xll.RiskMean($K10)/1000 ->  | H10: =_xll.RiskPercentile($K10,95%)/1000 ->  | J10: ='Risk Summary'!C13+'Risk Summary'!C14 -> 68009.26897 | K10: ='Risk Summary'!D13+'Risk Summary'!D14 -> 
A11: 8 | D11: 2018 | E11: 72.739 | F11: =_xll.RiskPercentile($K11,5%)/1000 ->  | G11: =_xll.RiskMean($K11)/1000 ->  | H11: =_xll.RiskPercentile($K11,95%)/1000 ->  | J11: ='Risk Summary'!E13+'Risk Summary'!E14 -> 72739 | K11: ='Risk Summary'!F13+'Risk Summary'!F14 -> 
A12: 9 | D12: 2019 | E12: 72.853 | F12: =_xll.RiskPercentile($K12,5%)/1000 ->  | G12: =_xll.RiskMean($K12)/1000 ->  | H12: =_xll.RiskPercentile($K12,95%)/1000 ->  | J12: ='Risk Summary'!G13+'Risk Summary'!G14 -> 72853 | K12: ='Risk Summary'!H13+'Risk Summary'!H14 -> 
A13: 10 | B13: 4.1.2.1.4 | C13: Spokane Settlement | D13: 2017 | E13: 19.64291996 | F13: =_xll.RiskPercentile($K13,5%)/1000 ->  | G13: =_xll.RiskMean($K13)/1000 ->  | H13: =_xll.RiskPercentile($K13,95%)/1000 ->  | J13: ='Risk Summary'!C11 -> 19642.91996 | K13: ='Risk Summary'!D11 -> 
A14: 11 | D14: 2018 | E14: 22.997 | F14: =_xll.RiskPercentile($K14,5%)/1000 ->  | G14: =_xll.RiskMean($K14)/1000 ->  | H14: =_xll.RiskPercentile($K14,95%)/1000 ->  | J14: ='Risk Summary'!E11 -> 22997 | K14: ='Risk Summary'!F11 -> 
A15: 12 | D15: 2019 | E15: 22.997 | F15: =_xll.RiskPercentile($K15,5%)/1000 ->  | G15: =_xll.RiskMean($K15)/1000 ->  | H15: =_xll.RiskPercentile($K15,95%)/1000 ->  | J15: ='Risk Summary'!G11 -> 22997 | K15: ='Risk Summary'!H11 -> 
A16: 13 | B16: 4.1.2.1.5 | C16: Power Services Transmission Acquisition and Ancillary Services | D16: 2017 | E16: 83.27315996 | F16: =_xll.RiskPercentile($K16,5%)/1000 ->  | G16: =_xll.RiskMean($K16)/1000 ->  | H16: =_xll.RiskPercentile($K16,95%)/1000 ->  | J16: ='Risk Summary'!C16+'Risk Summary'!C17 -> 83273.15996 | K16: ='Risk Summary'!D16+'Risk Summary'!D17 -> 
A17: 14 | D17: 2018 | E17: 98.538 | F17: =_xll.RiskPercentile($K17,5%)/1000 ->  | G17: =_xll.RiskMean($K17)/1000 ->  | H17: =_xll.RiskPercentile($K17,95%)/1000 ->  | J17: ='Risk Summary'!E16+'Risk Summary'!E17 -> 98538 | K17: ='Risk Summary'!F16+'Risk Summary'!F17 -> 
A18: 15 | D18: 2019 | E18: 98.584 | F18: =_xll.RiskPercentile($K18,5%)/1000 ->  | G18: =_xll.RiskMean($K18)/1000 ->  | H18: =_xll.RiskPercentile($K18,95%)/1000 ->  | J18: ='Risk Summary'!G16+'Risk Summary'!G17 -> 98584 | K18: ='Risk Summary'!H16+'Risk Summary'!H17 -> 
A19: 16 | B19: 4.1.2.1.6 | C19: Fish & Wildlife Expenses | D19: 2017 | E19: =J19/1000 -> 273.4829999 | F19: =_xll.RiskPercentile($K19,5%)/1000 ->  | G19: =_xll.RiskMean($K19)/1000 ->  | H19: =_xll.RiskPercentile($K19,95%)/1000 ->  | J19: =SUM('Risk Summary'!C22:'Risk Summary'!C23) -> 273482.9999 | K19: =SUM('Risk Summary'!D22:'Risk Summary'!D23) -> 
A20: 17 | D20: 2018 | E20: 280.086237 | F20: =_xll.RiskPercentile($K20,5%)/1000 ->  | G20: =_xll.RiskMean($K20)/1000 ->  | H20: =_xll.RiskPercentile($K20,95%)/1000 ->  | J20: =SUM('Risk Summary'!E22:'Risk Summary'!E23) -> 280086.237 | K20: =SUM('Risk Summary'!F22:'Risk Summary'!F23) -> 
A21: 18 | D21: 2019 | E21: 280.514469 | F21: =_xll.RiskPercentile($K21,5%)/1000 ->  | G21: =_xll.RiskMean($K21)/1000 ->  | H21: =_xll.RiskPercentile($K21,95%)/1000 ->  | J21: =SUM('Risk Summary'!G22:'Risk Summary'!G23) -> 280514.469 | K21: =SUM('Risk Summary'!H22:'Risk Summary'!H23) -> 
A22: 19 | B22: 4.1.2.1.7 | C22: Interest Expense Risk | D22: 2017 | E22: 70.58332498 | F22: =_xll.RiskPercentile($K22,5%)/1000 ->  | G22: =_xll.RiskMean($K22)/1000 ->  | H22: =_xll.RiskPercentile($K22,95%)/1000 ->  | J22: ='Risk Summary'!C25 -> 70583.32498 | K22: ='Risk Summary'!D25 -> 
A23: 20 | D23: 2018 | E23: 60.88987656 | F23: =_xll.RiskPercentile($K23,5%)/1000 ->  | G23: =_xll.RiskMean($K23)/1000 ->  | H23: =_xll.RiskPercentile($K23,95%)/1000 ->  | J23: ='Risk Summary'!E25 -> 60889.87656 | K23: ='Risk Summary'!F25 -> 
A24: 21 | D24: 2019 | E24: 67.6877088 | F24: =_xll.RiskPercentile($K24,5%)/1000 ->  | G24: =_xll.RiskMean($K24)/1000 ->  | H24: =_xll.RiskPercentile($K24,95%)/1000 ->  | J24: ='Risk Summary'!G25 -> 67687.7088 | K24: ='Risk Summary'!H25 -> 
A25: 22 | B25: 4.1.2.1.8 | C25: CGS Refueling Outage Risk | D25: 2017 | E25: N/A | F25: =_xll.RiskPercentile($K25,5%)/1000 ->  | G25: =_xll.RiskMean($K25)/1000 ->  | H25: =_xll.RiskPercentile($K25,95%)/1000 ->  | K25: ='Risk Summary'!$D$6 -> 
A26: 23 | D26: 2018 | E26: N/A | F26: =_xll.RiskPercentile($K26,5%)/1000 ->  | G26: =_xll.RiskMean($K26)/1000 ->  | H26: =_xll.RiskPercentile($K26,95%)/1000 ->  | K26: ='Risk Summary'!$F$6 -> 
A27: 24 | D27: 2019 | E27: N/A | F27: =_xll.RiskPercentile($K27,5%)/1000 ->  | G27: =_xll.RiskMean($K27)/1000 ->  | H27: =_xll.RiskPercentile($K27,95%)/1000 ->  | K27: ='Risk Summary'!$H$6 -> 
B30: A | C30: B | D30: C | E30: D | F30: E | G30: F | H30: G
B31: P-NORM Risk Summary ($000,000)
B32: Study Section | C32: Risk Title | D32: Fiscal Year | E32: Forecast | F32: 5th Percentile | G32: Mean | H32: 95th Percentile
A33: 1 | B33: 4.1.2.1.1 | C33: CGS Operations and Maintenance (O&M) | D33: 2017 | E33: 327.374754 | F33: 326.4907675 | G33: 326.7497655 | H33: 326.9107066
A34: 2 | D34: 2018 | E34: 266.570836 | F34: 258.8868397 | G34: 266.702081 | H34: 275.2085417
A35: 3 | D35: 2019 | E35: 323.761597 | F35: 314.4919222 | G35: 324.0834772 | H35: 334.4459452
A36: 4 | B36: 4.1.2.1.2 | C36: U.S. Army Corps of Engineers (Corps) and Bureau of Reclamation (Reclamation) O&M | D36: 2017 | E36: 418.68 | F36: 418.68 | G36: 420.43 | H36: 424.68
A37: 5 | D37: 2018 | E37: 406.166 | F37: 406.166 | G37: 407.916 | H37: 412.166
A38: 6 | D38: 2019 | E38: 404.18 | F38: 404.18 | G38: 405.93 | H38: 410.18
A39: 7 | B39: 4.1.2.1.3 | C39: Conservation Expense | D39: 2017 | E39: 77.524 | F39: 73.43119503 | G39: 76.92581675 | H39: 79.91698828
A40: 8 | D40: 2018 | E40: 72.739 | F40: 68.8957495 | G40: 72.18066352 | H40: 75.00794727
A41: 9 | D41: 2019 | E41: 72.853 | F41: 69.03558067 | G41: 72.29461372 | H41: 75.11162882
A42: 10 | B42: 4.1.2.1.4 | C42: Spokane Settlement | D42: 2017 | E42: 22.99689 | F42: 22.99689 | G42: 22.99689 | H42: 22.99689
A43: 11 | D43: 2018 | E43: 22.997 | F43: 22.997 | G43: 23.56473844 | H43: 28.74625
A44: 12 | D44: 2019 | E44: 22.997 | F44: 22.997 | G44: 24.14685 | H44: 28.74625
A45: 13 | B45: 4.1.2.1.5 | C45: Power Services Transmission Acquisition and Ancillary Services | D45: 2017 | E45: 95.78916004 | F45: 94.75856009 | G45: 95.66221997 | H45: 96.43882429
A46: 14 | D46: 2018 | E46: 92.038 | F46: 90.0292941 | G46: 91.77895393 | H46: 93.27272384
A47: 15 | D47: 2019 | E47: 92.084 | F47: 89.99355347 | G47: 91.99714404 | H47: 93.87293295
A48: 16 | B48: 4.1.2.1.6 | C48: Fish & Wildlife Expenses | D48: 2017 | E48: 289.395935 | F48: 277.1928159 | G48: 281.3440088 | H48: 285.5007504
A49: 17 | D49: 2018 | E49: 280.086237 | F49: 267.7788596 | G49: 271.7540654 | H49: 275.7259649
A50: 18 | D50: 2019 | E50: 280.514469 | F50: 267.796028 | G50: 271.7540383 | H50: 275.7624042
A51: 19 | B51: 4.1.2.1.7 | C51: Interest Expense Risk | D51: 2017 | E51: 67.34058144 | F51: 67.00217836 | G51: 67.73935618 | H51: 69.2740835
A52: 20 | D52: 2018 | E52: 284.4804609 | F52: 283.5524668 | G52: 286.5088263 | H52: 293.5219166
A53: 21 | D53: 2019 | E53: 283.5154733 | F53: 282.6522746 | G53: 287.7946166 | H53: 299.9504227
A54: 22 | B54: 4.1.2.1.8 | C54: CGS Refueling Outage Risk | D54: 2017 | E54: N/A | F54: -4.132866781 | G54: -0.8481822964 | H54: 0.6562688964
A55: 23 | D55: 2018 | E55: N/A | F55: 0 | G55: 0 | H55: 0
A56: 24 | D56: 2019 | E56: N/A | F56: -7.052112761 | G56: -1.600682218 | H56: 0.8335535044
